Body_Code,Body_Name,Service,Posting Date,GL Code,GL Code Desc,Doc Number,Doc Net Amount,Supplier Name
http://statistics.data.gov.uk/id/local-authority/38,Oxfordshire County Council,COMM DRAWDOWN FUNDNG,09/12/2022,8004,Design Consultant,2201058863,"-135,300.74",Balfour Beatty
http://statistics.data.gov.uk/id/local-authority/38,Oxfordshire County Council,Hub Beds - Short Stay OCC,12/12/2022,5687,,3111310952,"-84,150.00",Banbury Heights Nursing Home
http://statistics.data.gov.uk/id/local-authority/38,Oxfordshire County Council,LANDLORD & TENANT,16/12/2022,8102,Payments to main contractor,2201062095,"-59,759.75",Ameresco Limited
http://statistics.data.gov.uk/id/local-authority/38,Oxfordshire County Council,Continuing Care - Care Homes - 65+,12/12/2022,5687,,3111310253,"-54,071.32",Vale House
http://statistics.data.gov.uk/id/local-authority/38,Oxfordshire County Council,COVID-19 response COD,06/12/2022,4494,Purchase of IT Equipment,2201057109,"-50,575.20",Dell Corporation Limited
http://statistics.data.gov.uk/id/local-authority/38,Oxfordshire County Council,CAP CHRGES-PRIM SCHS,07/12/2022,8102,Payments to main contractor,3111308442,"-41,498.13",OCC One Time Vendor
http://statistics.data.gov.uk/id/local-authority/38,Oxfordshire County Council,COMM DRAWDOWN FUNDNG,13/12/2022,8004,Design Consultant,2201060017,"-39,352.37",Milestone Infrastructure Limited
http://statistics.data.gov.uk/id/local-authority/38,Oxfordshire County Council,Support at Home 65+ Physical Support,12/12/2022,5686,,3111312925,"-34,414.30",GCH (St Katherines) Ltd
http://statistics.data.gov.uk/id/local-authority/38,Oxfordshire County Council,Continuing Care - Care Homes - 65+,12/12/2022,5687,,3111314034,"-33,836.26",Tall Trees
http://statistics.data.gov.uk/id/local-authority/38,Oxfordshire County Council,High Cost INMSS Placements,02/12/2022,5537,Payments to Other Establishments,3111305321,"-30,674.16",Swalcliffe Park school
http://statistics.data.gov.uk/id/local-authority/38,Oxfordshire County Council,CAP CHRGES-PRIM SCHS,07/12/2022,8102,Payments to main contractor,3111308444,"-28,173.31",OCC One Time Vendor
http://statistics.data.gov.uk/id/local-authority/38,Oxfordshire County Council,,09/12/2022,1433,U/C Misc Payments,3111309121,"-27,720.00",Cherwell DC
http://statistics.data.gov.uk/id/local-authority/38,Oxfordshire County Council,Health Acquired Brain Injury C Homes U65,12/12/2022,5687,,3111310934,"-25,290.88",Elysium Neurological Services (Badb
http://statistics.data.gov.uk/id/local-authority/38,Oxfordshire County Council,Test and Trace Grant,09/12/2022,5500,Payments to Other Local Authorities,2201058591,"-23,100.00",Cherwell DC
http://statistics.data.gov.uk/id/local-authority/38,Oxfordshire County Council,CAP CHRGES-PRIM SCHS,07/12/2022,8102,Payments to main contractor,3111308443,"-22,184.35",OCC One Time Vendor
http://statistics.data.gov.uk/id/local-authority/38,Oxfordshire County Council,COMM DRAWDOWN FUNDNG,08/12/2022,8102,Payments to main contractor,2201058081,"-22,026.81",NEOS NETWORKS LIMITED
http://statistics.data.gov.uk/id/local-authority/38,Oxfordshire County Council,High Cost INMSS Placements,20/12/2022,5500,Payments to Other Local Authorities,3111320376,"-20,136.54",Chiltern Way Academy
http://statistics.data.gov.uk/id/local-authority/38,Oxfordshire County Council,Support at Home 65+ Physical Support,12/12/2022,5686,,3111311052,"-19,995.00",Beech Court Nursing Home
http://statistics.data.gov.uk/id/local-authority/38,Oxfordshire County Council,Care Homes - Under 65 Leaning Disability,12/12/2022,5686,,3111312297,"-18,584.00",Choice Pathways Ltd
http://statistics.data.gov.uk/id/local-authority/38,Oxfordshire County Council,Sports England Grant 22-23,06/12/2022,4940,Other Services,2201057172,"-18,200.00",Cherwell District Council
http://statistics.data.gov.uk/id/local-authority/38,Oxfordshire County Council,Continuing Care - Support at Home - 65+,14/12/2022,5691,,3111316235,"-17,280.00",Henley Care Ltd
http://statistics.data.gov.uk/id/local-authority/38,Oxfordshire County Council,Unregistered Placements,05/12/2022,2040,Agency Staff,2201056808,"-16,707.40",NURSELINE COMMUNITY SERVICES
http://statistics.data.gov.uk/id/local-authority/38,Oxfordshire County Council,SEN Alternative Provision,01/12/2022,5554,Childrens' Social Care - Direct Payments,3111304955,"-16,153.80",Redacted Personal Data
http://statistics.data.gov.uk/id/local-authority/38,Oxfordshire County Council,Homes2Inspire Block,28/12/2022,5558,,3111322278,"-16,146.00",Homes 2 Inspire Limited
http://statistics.data.gov.uk/id/local-authority/38,Oxfordshire County Council,Unregistered Placements,05/12/2022,2040,Agency Staff,2201056814,"-15,993.57",LEAF COMPLEX CARE LTD
http://statistics.data.gov.uk/id/local-authority/38,Oxfordshire County Council,Care Homes - Over 65 Memory & Cognition,12/12/2022,5686,,3111311038,"-15,125.14",SANCTUARY CARE LTD
http://statistics.data.gov.uk/id/local-authority/38,Oxfordshire County Council,Continuing Care - Care Homes - 65+,12/12/2022,5687,,3111313899,"-13,667.70",Stowford House
http://statistics.data.gov.uk/id/local-authority/38,Oxfordshire County Council,Unregistered Placements,28/12/2022,3787,Premises Repairs,2201064389,"-13,633.71",Oxfordshire Accommodation Ltd
http://statistics.data.gov.uk/id/local-authority/38,Oxfordshire County Council,COMM DRAWDOWN FUNDNG,16/12/2022,8102,Payments to main contractor,2201061942,"-13,512.40",Milestone Infrastructure Limited
http://statistics.data.gov.uk/id/local-authority/38,Oxfordshire County Council,Support at Home 65+ Physical Support,12/12/2022,5686,,3111311821,"-12,817.44",OSJ  - Old Station House
http://statistics.data.gov.uk/id/local-authority/38,Oxfordshire County Council,COMM DRAWDOWN FUNDNG,16/12/2022,8102,Payments to main contractor,2201061947,"-12,724.27",Milestone Infrastructure Limited
http://statistics.data.gov.uk/id/local-authority/38,Oxfordshire County Council,COMM DRAWDOWN FUNDNG,16/12/2022,8102,Payments to main contractor,2201061954,"-12,307.47",Milestone Infrastructure Limited
http://statistics.data.gov.uk/id/local-authority/38,Oxfordshire County Council,Mainstream Res,14/12/2022,5558,,3111315842,"-11,965.71",Acorn Care & Education Ltd
http://statistics.data.gov.uk/id/local-authority/38,Oxfordshire County Council,Support at Home 65+ Mental Health,06/12/2022,5699,,3111305727,"-11,914.84",All Care GB Ltd
http://statistics.data.gov.uk/id/local-authority/38,Oxfordshire County Council,Care Homes - Over 65 Physical Sypport,12/12/2022,5687,,3111312781,"-11,314.29",Freeland House
http://statistics.data.gov.uk/id/local-authority/38,Oxfordshire County Council,Care Homes - Over 65 Physical Sypport,12/12/2022,5686,,3111312630,"-10,978.57",Enstone House
http://statistics.data.gov.uk/id/local-authority/38,Oxfordshire County Council,Care Homes - Over 65 Memory & Cognition,12/12/2022,5686,,3111312628,"-10,419.05",Enstone House
http://statistics.data.gov.uk/id/local-authority/38,Oxfordshire County Council,Support at Home 65+ Physical Support,06/12/2022,5699,,3111306527,"-10,010.70",PLL Care Services
http://statistics.data.gov.uk/id/local-authority/38,Oxfordshire County Council,Support at Home 65+ Physical Support,12/12/2022,5687,,3111312086,"-9,987.97",Orders of St John
http://statistics.data.gov.uk/id/local-authority/38,Oxfordshire County Council,Support at Home 65+ Physical Support,12/12/2022,5686,,3111312111,"-9,600.00",Cheney House Care Home
http://statistics.data.gov.uk/id/local-authority/38,Oxfordshire County Council,Support at Home 65+ Physical Support,12/12/2022,5686,,3111311596,"-9,528.01",Orders of St John
http://statistics.data.gov.uk/id/local-authority/38,Oxfordshire County Council,CHC Fast Track - Care Homes - Over 65,12/12/2022,5687,,3111313350,"-9,228.57",Lincroft Meadow
http://statistics.data.gov.uk/id/local-authority/38,Oxfordshire County Council,Care Homes - Over 65 Memory & Cognition,12/12/2022,5685,B*Cycle tracks,3111310720,"-9,031.97",ACER HEALTHCARE LTD
http://statistics.data.gov.uk/id/local-authority/38,Oxfordshire County Council,Continuing Care - Support at Home - U65,14/12/2022,5691,,3111316167,"-8,725.25",Team Brain Injury Support Ltd
http://statistics.data.gov.uk/id/local-authority/38,Oxfordshire County Council,Continuing Care - Care Homes - 65+,12/12/2022,5687,,3111310806,"-8,700.00",Acacia Lodge Care Home
http://statistics.data.gov.uk/id/local-authority/38,Oxfordshire County Council,Support at Home 65+ Memory & Cognition,12/12/2022,5686,,3111312834,"-8,228.57",Freeland House
http://statistics.data.gov.uk/id/local-authority/38,Oxfordshire County Council,Support at Home U65 Learning Disability,12/12/2022,5688,,3111311595,"-7,967.43",Dimensions (UK) Ltd
http://statistics.data.gov.uk/id/local-authority/38,Oxfordshire County Council,Care Homes - Under 65 Memory & Cognition,12/12/2022,5686,,3111313925,"-7,725.13",St Johns Residential Home
http://statistics.data.gov.uk/id/local-authority/38,Oxfordshire County Council,COMM DRAWDOWN FUNDNG,16/12/2022,8102,Payments to main contractor,2201061950,"-7,684.92",Milestone Infrastructure Limited
http://statistics.data.gov.uk/id/local-authority/38,Oxfordshire County Council,Continuing Care - Care Homes - 65+,12/12/2022,5687,,3111310654,"-7,518.85",ACER HEALTHCARE LTD
http://statistics.data.gov.uk/id/local-authority/38,Oxfordshire County Council,Funded Nursing Care  - Over 65,12/12/2022,5692,,3111313572,"-6,903.26",Oakenholt Care Ltd
http://statistics.data.gov.uk/id/local-authority/38,Oxfordshire County Council,COMM DRAWDOWN FUNDNG,16/12/2022,8102,Payments to main contractor,2201061856,"-6,883.36",Milestone Infrastructure Limited
http://statistics.data.gov.uk/id/local-authority/38,Oxfordshire County Council,CAP CHRGES-PRIM SCHS,07/12/2022,8102,Payments to main contractor,3111308441,"-6,400.07",OCC One Time Vendor
http://statistics.data.gov.uk/id/local-authority/38,Oxfordshire County Council,SEN TRANSPORT,15/12/2022,4330,Transport to School Activities,3111316383,"-6,230.40",Oxford Premier Cars Services Limite
http://statistics.data.gov.uk/id/local-authority/38,Oxfordshire County Council,Care Homes - Over 65 Mental Health,12/12/2022,5687,,3111313847,"-6,181.85",Barchester Healthcare Homes Ltd
http://statistics.data.gov.uk/id/local-authority/38,Oxfordshire County Council,School Improvement Grant,28/12/2022,5380,"Author, Speaker and Lecturer Fees",2201064392,"-6,000.00",Paul Atkins Education
http://statistics.data.gov.uk/id/local-authority/38,Oxfordshire County Council,Care Homes - Over 65 Memory & Cognition,12/12/2022,5685,B*Cycle tracks,3111313641,"-5,812.26",PJ Care Ltd
http://statistics.data.gov.uk/id/local-authority/38,Oxfordshire County Council,Continuing Care - Care Homes - 65+,12/12/2022,5687,,3111310762,"-5,785.71",Acacia Lodge Care Home
http://statistics.data.gov.uk/id/local-authority/38,Oxfordshire County Council,Funded Nursing Care  - Over 65,12/12/2022,5692,,3111314027,"-5,618.24",Tall Trees
http://statistics.data.gov.uk/id/local-authority/38,Oxfordshire County Council,Support at Home 65+ Learning Disability,12/12/2022,5688,,3111312268,"-5,138.10",The Brandon Trust
http://statistics.data.gov.uk/id/local-authority/38,Oxfordshire County Council,Support at Home 65+ Physical Support,12/12/2022,5686,,3111311399,"-4,764.00",Orders of St John
http://statistics.data.gov.uk/id/local-authority/38,Oxfordshire County Council,Support at Home 65+ Physical Support,12/12/2022,5687,,3111314111,"-4,737.13",The Grange Care Centre
http://statistics.data.gov.uk/id/local-authority/38,Oxfordshire County Council,CHC Fast Track - Care Homes - Over 65,12/12/2022,5687,,3111310983,"-4,725.00",Orders of St John
http://statistics.data.gov.uk/id/local-authority/38,Oxfordshire County Council,Funded Nursing Care  - Over 65,12/12/2022,5692,,3111313717,"-4,721.71",RICHMOND VILLAGE WITNEY
http://statistics.data.gov.uk/id/local-authority/38,Oxfordshire County Council,Care Homes - Over 65 Physical Sypport,12/12/2022,5687,,3111314475,"-4,646.15",MARIA MALLABAND CARE GROUP
http://statistics.data.gov.uk/id/local-authority/38,Oxfordshire County Council,Funded Nursing Care  - Over 65,12/12/2022,5692,,3111311206,"-4,602.17",Bondcare (Henley) Ltd
http://statistics.data.gov.uk/id/local-authority/38,Oxfordshire County Council,Property Cleaning,08/12/2022,4060,Cleaning Materials,2201058029,"-4,421.16",Seldram Supplies
http://statistics.data.gov.uk/id/local-authority/38,Oxfordshire County Council,CHC Fast Track - Care Homes - Over 65,12/12/2022,5687,,3111314364,"-4,400.00",SANCTUARY CARE LTD
http://statistics.data.gov.uk/id/local-authority/38,Oxfordshire County Council,CHC Fast Track - Care Homes - Over 65,12/12/2022,5687,,3111313367,"-4,366.29",Lincroft Meadow
http://statistics.data.gov.uk/id/local-authority/38,Oxfordshire County Council,Care Homes - Over 65 Physical Sypport,12/12/2022,5687,,3111311624,"-4,149.70",Grace Care Service Ltd T/A Burford
http://statistics.data.gov.uk/id/local-authority/38,Oxfordshire County Council,Care Homes - Over 65 Physical Sypport,12/12/2022,5686,,3111314553,"-4,142.86",SANCTUARY CARE LTD
http://statistics.data.gov.uk/id/local-authority/38,Oxfordshire County Council,Care Homes - Over 65 Physical Sypport,12/12/2022,5687,,3111313079,"-4,050.00",Cedar Court Care Home
http://statistics.data.gov.uk/id/local-authority/38,Oxfordshire County Council,Interim Funding  - Care Homes - Over 65,12/12/2022,5687,,3111314265,"-4,000.00",MARIPOSA CARE GROUP LIMITED
http://statistics.data.gov.uk/id/local-authority/38,Oxfordshire County Council,Care Homes - Over 65 Mental Health,12/12/2022,5687,,3111310829,"-3,934.65",Orders of St John
http://statistics.data.gov.uk/id/local-authority/38,Oxfordshire County Council,Care Homes - Over 65 Physical Sypport,12/12/2022,5687,,3111314181,"-3,714.29",Four Seasons (Headington) Ltd
http://statistics.data.gov.uk/id/local-authority/38,Oxfordshire County Council,Continuing Care - Care Homes - 65+,12/12/2022,5687,,3111314395,"-3,655.00",Wardington House Nursing Home
http://statistics.data.gov.uk/id/local-authority/38,Oxfordshire County Council,Care Homes - Over 65 Memory & Cognition,12/12/2022,5686,,3111313294,"-3,614.29",Kirlena House
http://statistics.data.gov.uk/id/local-authority/38,Oxfordshire County Council,COMM DRAWDOWN FUNDNG,16/12/2022,8102,Payments to main contractor,2201061860,"-3,593.99",Milestone Infrastructure Limited
http://statistics.data.gov.uk/id/local-authority/38,Oxfordshire County Council,Support at Home 65+ Physical Support,12/12/2022,5686,,3111312025,"-3,516.29",Orders of St John
http://statistics.data.gov.uk/id/local-authority/38,Oxfordshire County Council,Funded Nursing Care  - Over 65,12/12/2022,5692,,3111312868,"-3,406.81",LAWTON GROUP LTD
http://statistics.data.gov.uk/id/local-authority/38,Oxfordshire County Council,Support at Home 65+ Physical Support,06/12/2022,5699,,3111305717,"-3,301.20",All Care GB Ltd
http://statistics.data.gov.uk/id/local-authority/38,Oxfordshire County Council,Care Homes - Over 65 Memory & Cognition,12/12/2022,5686,,3111312932,"-3,142.86",GCH (St Katherines) Ltd
http://statistics.data.gov.uk/id/local-authority/38,Oxfordshire County Council,Care Homes - Over 65 Physical Sypport,12/12/2022,5687,,3111313378,"-3,001.18",Lincroft Meadow
http://statistics.data.gov.uk/id/local-authority/38,Oxfordshire County Council,SEN TRANSPORT,13/12/2022,4330,Transport to School Activities,3111314948,"-2,700.00",The Oxfordshire Taxi Company Ltd T/
http://statistics.data.gov.uk/id/local-authority/38,Oxfordshire County Council,Funded Nursing Care  - Over 65,12/12/2022,5692,,3111310596,"-2,510.28",Abbey Crest Nursing Home
http://statistics.data.gov.uk/id/local-authority/38,Oxfordshire County Council,Funded Nursing Care  - Over 65,12/12/2022,5692,,3111312305,"-2,510.28",CHURCHFIELDS CARE HOME
http://statistics.data.gov.uk/id/local-authority/38,Oxfordshire County Council,Care Homes - Over 65 Physical Sypport,12/12/2022,5686,,3111310665,"-2,495.43",Orders of St John
http://statistics.data.gov.uk/id/local-authority/38,Oxfordshire County Council,Care Homes - Over 65 Physical Sypport,12/12/2022,5686,,3111313549,"-2,494.48",Mon Choisy
http://statistics.data.gov.uk/id/local-authority/38,Oxfordshire County Council,Care Homes - Over 65 Physical Sypport,12/12/2022,5687,,3111311090,"-2,421.33",Orders of St John
http://statistics.data.gov.uk/id/local-authority/38,Oxfordshire County Council,Care Homes - Over 65 Physical Sypport,12/12/2022,5686,,3111310836,"-2,400.00",Orders of St John
http://statistics.data.gov.uk/id/local-authority/38,Oxfordshire County Council,Care Homes - Over 65 Physical Sypport,12/12/2022,5687,,3111310674,"-2,398.67",ACER HEALTHCARE LTD
http://statistics.data.gov.uk/id/local-authority/38,Oxfordshire County Council,Support at Home 65+ Physical Support,12/12/2022,5686,,3111311564,"-2,382.00",Orders of St John
http://statistics.data.gov.uk/id/local-authority/38,Oxfordshire County Council,Support at Home 65+ Physical Support,12/12/2022,5686,,3111311856,"-2,382.00",Orders of St John
http://statistics.data.gov.uk/id/local-authority/38,Oxfordshire County Council,Care Homes - Over 65 Physical Sypport,12/12/2022,5687,,3111313400,"-2,352.66",Meadow View Nursing Home
http://statistics.data.gov.uk/id/local-authority/38,Oxfordshire County Council,Support at Home 65+ Physical Support,06/12/2022,5699,,3111306201,"-2,343.60",CaringPlus Healthcare Services Ltd
http://statistics.data.gov.uk/id/local-authority/38,Oxfordshire County Council,Support at Home 65+ Memory & Cognition,12/12/2022,5686,,3111312084,"-2,285.71",Cheney House Care Home
http://statistics.data.gov.uk/id/local-authority/38,Oxfordshire County Council,Funded Nursing Care  - Over 65,12/12/2022,5692,,3111312312,"-2,181.55",CHURCHFIELDS CARE HOME
http://statistics.data.gov.uk/id/local-authority/38,Oxfordshire County Council,Support at Home 65+ Memory & Cognition,12/12/2022,5685,B*Cycle tracks,3111313138,"-2,150.42",Heathfield House Nursing Home
http://statistics.data.gov.uk/id/local-authority/38,Oxfordshire County Council,PREMISES,28/12/2022,4525,Furniture,2201064390,"-2,103.84",Combined Office Interiors Ltd
http://statistics.data.gov.uk/id/local-authority/38,Oxfordshire County Council,Support at Home U65 Physical Support,12/12/2022,5686,,3111313457,"-2,071.43",Middletown Grange Care Home
http://statistics.data.gov.uk/id/local-authority/38,Oxfordshire County Council,PARENT & BABY,21/12/2022,5559,,3111320768,"-2,071.40",Compass Fostering South Limited
http://statistics.data.gov.uk/id/local-authority/38,Oxfordshire County Council,SEN TRANSPORT,13/12/2022,4330,Transport to School Activities,3111314952,"-2,070.00",The Oxfordshire Taxi Company Ltd T/
http://statistics.data.gov.uk/id/local-authority/38,Oxfordshire County Council,Care Homes - Over 65 Physical Sypport,12/12/2022,5686,,3111310935,"-2,054.29",Orders of St John
http://statistics.data.gov.uk/id/local-authority/38,Oxfordshire County Council,CHC Fast Track - Care Homes - Over 65,12/12/2022,5687,,3111311283,"-1,967.33",Orders of St John
http://statistics.data.gov.uk/id/local-authority/38,Oxfordshire County Council,Care Homes - Over 65 Memory & Cognition,12/12/2022,5685,B*Cycle tracks,3111311054,"-1,962.63",Beech Court Nursing Home
http://statistics.data.gov.uk/id/local-authority/38,Oxfordshire County Council,Support at Home 65+ Physical Support,12/12/2022,5686,,3111310719,"-1,928.29",Orders of St John
http://statistics.data.gov.uk/id/local-authority/38,Oxfordshire County Council,STI TESTING+TREATMEN,16/12/2022,4940,Other Services,3111318245,"-1,887.00",Great Western Hospital NHS FT
http://statistics.data.gov.uk/id/local-authority/38,Oxfordshire County Council,CHC Fast Track - Sup at Homes - Over 65,08/12/2022,5691,,3111308628,"-1,879.00",PLL Care Services
http://statistics.data.gov.uk/id/local-authority/38,Oxfordshire County Council,Support at Home 65+ Physical Support,06/12/2022,5699,,3111306246,"-1,852.20",Direct Link Care Ltd
http://statistics.data.gov.uk/id/local-authority/38,Oxfordshire County Council,NURSERY ED FUND,16/12/2022,5537,Payments to Other Establishments,3111316946,"-1,827.00",Kidsunlimited (Milton Park)
http://statistics.data.gov.uk/id/local-authority/38,Oxfordshire County Council,NURSERY ED FUND,16/12/2022,5537,Payments to Other Establishments,3111316986,"-1,827.00",Louise King
http://statistics.data.gov.uk/id/local-authority/38,Oxfordshire County Council,NURSERY ED FUND,16/12/2022,5537,Payments to Other Establishments,3111316988,"-1,827.00",Louise King
http://statistics.data.gov.uk/id/local-authority/38,Oxfordshire County Council,NURSERY ED FUND,16/12/2022,5537,Payments to Other Establishments,3111316917,"-1,827.00",Robin Playgroup
http://statistics.data.gov.uk/id/local-authority/38,Oxfordshire County Council,NURSERY ED FUND,16/12/2022,5537,Payments to Other Establishments,3111316918,"-1,827.00",Robin Playgroup
http://statistics.data.gov.uk/id/local-authority/38,Oxfordshire County Council,Care Homes - Over 65 Physical Sypport,12/12/2022,5687,,3111312104,"-1,815.99",Orders of St John
http://statistics.data.gov.uk/id/local-authority/38,Oxfordshire County Council,Support at Home 65+ Physical Support,06/12/2022,5699,,3111305722,"-1,814.40",All Care GB Ltd
http://statistics.data.gov.uk/id/local-authority/38,Oxfordshire County Council,NURSERY ED FUND,16/12/2022,5537,Payments to Other Establishments,3111316961,"-1,713.50",Eynsham Community
http://statistics.data.gov.uk/id/local-authority/38,Oxfordshire County Council,Care Homes - Under 65 Substance Abuse,12/12/2022,5686,,3111310898,"-1,707.14",Equinox Care
http://statistics.data.gov.uk/id/local-authority/38,Oxfordshire County Council,PLACEMENTS- RELEVANT,28/12/2022,5785,Client Lodgings and Accommodation,3111322204,"-1,683.53",A2dominion
http://statistics.data.gov.uk/id/local-authority/38,Oxfordshire County Council,NURSERY ED FUND,16/12/2022,5537,Payments to Other Establishments,3111317650,"-1,656.48",Larkrise Primary School
http://statistics.data.gov.uk/id/local-authority/38,Oxfordshire County Council,Care Homes - Over 65 Memory & Cognition,12/12/2022,5686,,3111314556,"-1,648.57",SANCTUARY CARE LTD
http://statistics.data.gov.uk/id/local-authority/38,Oxfordshire County Council,Care Homes - Under 65 MH - OBC Contract,12/12/2022,5686,,3111313694,"-1,571.43",2 Care
http://statistics.data.gov.uk/id/local-authority/38,Oxfordshire County Council,Care Homes - Over 65 Memory & Cognition,12/12/2022,5685,B*Cycle tracks,3111312861,"-1,563.40",LAWTON GROUP LTD
http://statistics.data.gov.uk/id/local-authority/38,Oxfordshire County Council,POST18 UASC DCSF FND,28/12/2022,5785,Client Lodgings and Accommodation,3111322152,"-1,508.52",Response Organisation
http://statistics.data.gov.uk/id/local-authority/38,Oxfordshire County Council,Funded Nursing Care  - Over 65,12/12/2022,5692,,3111312521,"-1,494.22",CUMNOR HILL HOUSE
http://statistics.data.gov.uk/id/local-authority/38,Oxfordshire County Council,Corp Proc Service,14/12/2022,4940,Other Services,2201060845,"-1,468.45",Meridian Cost Benefit Ltd
http://statistics.data.gov.uk/id/local-authority/38,Oxfordshire County Council,Funded Nursing Care  - Over 65,12/12/2022,5692,,3111312308,"-1,464.33",CHURCHFIELDS CARE HOME
http://statistics.data.gov.uk/id/local-authority/38,Oxfordshire County Council,NURSERY ED FUND,16/12/2022,5537,Payments to Other Establishments,3111316982,"-1,461.60",Bright Horizon Didcot Day Nursery
http://statistics.data.gov.uk/id/local-authority/38,Oxfordshire County Council,COMMUNITY & ROAD SAFETY,19/12/2022,3103,Other Training Courses and Qualification,2201062231,"-1,440.00",Windrush Bike Project CIC
http://statistics.data.gov.uk/id/local-authority/38,Oxfordshire County Council,Support at Home 65+ Memory & Cognition,12/12/2022,5686,,3111313301,"-1,428.57",Kirlena House
http://statistics.data.gov.uk/id/local-authority/38,Oxfordshire County Council,Care Homes - Over 65 Physical Sypport,12/12/2022,5686,,3111314285,"-1,413.28",The Ridings (Anchor Trust)
http://statistics.data.gov.uk/id/local-authority/38,Oxfordshire County Council,Care Homes - Over 65 Physical Sypport,12/12/2022,5686,,3111313528,"-1,375.00",Maria Malllaband Care Group
http://statistics.data.gov.uk/id/local-authority/38,Oxfordshire County Council,Care Homes - Over 65 Physical Sypport,12/12/2022,5687,,3111313833,"-1,344.38",Barchester Healthcare Homes Ltd
http://statistics.data.gov.uk/id/local-authority/38,Oxfordshire County Council,Support at Home 65+ Memory & Cognition,06/12/2022,5699,,3111306811,"-1,323.00",YOD Ltd
http://statistics.data.gov.uk/id/local-authority/38,Oxfordshire County Council,SEN TRANSPORT,15/12/2022,5227,Other Transport Arrangements,3111316384,"-1,320.00",Oxford Premier Cars Services Limite
http://statistics.data.gov.uk/id/local-authority/38,Oxfordshire County Council,Funded Nursing Care  - Over 65,12/12/2022,5692,,3111312220,"-1,314.91",Cherwood House Care Centre
http://statistics.data.gov.uk/id/local-authority/38,Oxfordshire County Council,COMM DRAWDOWN FUNDNG,16/12/2022,8102,Payments to main contractor,2201061937,"-1,313.06",Milestone Infrastructure Limited
http://statistics.data.gov.uk/id/local-authority/38,Oxfordshire County Council,Care Homes - Over 65 Mental Health,12/12/2022,5686,,3111311739,"-1,311.43",CARE UK COMMUNITY PARTNERSHIPS LIMI
http://statistics.data.gov.uk/id/local-authority/38,Oxfordshire County Council,Support at Home U65 Learning Disability,12/12/2022,5690,,3111310509,"-1,301.15",Autism at Kingwood Limited
http://statistics.data.gov.uk/id/local-authority/38,Oxfordshire County Council,Family Solutions Plus Non-staff - North,19/12/2022,4940,Other Services,2201062258,"-1,286.80",The Old Station Nursery Ltd
http://statistics.data.gov.uk/id/local-authority/38,Oxfordshire County Council,Funded Nursing Care  - Over 65,12/12/2022,5692,,3111314077,"-1,285.03",The Close Nursing Home
http://statistics.data.gov.uk/id/local-authority/38,Oxfordshire County Council,Funded Nursing Care  - Over 65,12/12/2022,5692,,3111311156,"-1,225.26",Bondcare (Henley) Ltd
http://statistics.data.gov.uk/id/local-authority/38,Oxfordshire County Council,Support at Home 65+ Physical Support,06/12/2022,5699,,3111305946,"-1,197.00",All Care GB Ltd
http://statistics.data.gov.uk/id/local-authority/38,Oxfordshire County Council,Support at Home 65+ Memory & Cognition,12/12/2022,5685,B*Cycle tracks,3111313478,"-1,189.03",Middletown Grange Care Home
http://statistics.data.gov.uk/id/local-authority/38,Oxfordshire County Council,Independent Foster,14/12/2022,5559,,3111315870,"-1,173.25",Compass Fostering West Limited
http://statistics.data.gov.uk/id/local-authority/38,Oxfordshire County Council,Independent Foster,14/12/2022,5559,,3111315871,"-1,173.25",Compass Fostering West Limited
http://statistics.data.gov.uk/id/local-authority/38,Oxfordshire County Council,Support at Home U65 Learning Disability,12/12/2022,5688,,3111311537,"-1,163.23",H F TRUST LTD
http://statistics.data.gov.uk/id/local-authority/38,Oxfordshire County Council,Support at Home 65+ Physical Support,06/12/2022,5699,,3111306205,"-1,146.47",CaringPlus Healthcare Services Ltd
http://statistics.data.gov.uk/id/local-authority/38,Oxfordshire County Council,Care Homes - Over 65 Physical Sypport,12/12/2022,5686,,3111313873,"-1,142.86",ST ANNES RESIDENTIAL  HOME
http://statistics.data.gov.uk/id/local-authority/38,Oxfordshire County Council,Early Years Pupil Premium,16/12/2022,5537,Payments to Other Establishments,3111316975,"-1,138.20",Hook Norton Pre-School Playgroup
http://statistics.data.gov.uk/id/local-authority/38,Oxfordshire County Council,Early Years Pupil Premium,16/12/2022,5537,Payments to Other Establishments,3111316958,"-1,138.20",Orchard Meadow Primary School
http://statistics.data.gov.uk/id/local-authority/38,Oxfordshire County Council,Early Years Pupil Premium,16/12/2022,5537,Payments to Other Establishments,3111316959,"-1,138.20",Pegasus Primary School
http://statistics.data.gov.uk/id/local-authority/38,Oxfordshire County Council,POST 16 SEN,19/12/2022,4330,Transport to School Activities,3111318045,"-1,117.18",Redacted Personal Data
http://statistics.data.gov.uk/id/local-authority/38,Oxfordshire County Council,Early Years Pupil Premium,16/12/2022,5537,Payments to Other Establishments,3111316987,"-1,089.42",Louise King
http://statistics.data.gov.uk/id/local-authority/38,Oxfordshire County Council,Continuing Care - Support at Home - U65,14/12/2022,5691,,3111316229,"-1,052.63",Home Helpers Care Ltd
http://statistics.data.gov.uk/id/local-authority/38,Oxfordshire County Council,Continuing Care - Support at Home - U65,14/12/2022,5691,,3111316230,"-1,052.63",Home Helpers Care Ltd
http://statistics.data.gov.uk/id/local-authority/38,Oxfordshire County Council,Continuing Care - Support at Home - U65,14/12/2022,5691,,3111316231,"-1,052.63",Home Helpers Care Ltd
http://statistics.data.gov.uk/id/local-authority/38,Oxfordshire County Council,Continuing Care - Support at Home - U65,14/12/2022,5691,,3111316232,"-1,052.63",Home Helpers Care Ltd
http://statistics.data.gov.uk/id/local-authority/38,Oxfordshire County Council,Continuing Care - Support at Home - U65,19/12/2022,5691,,3111318119,"-1,052.63",Home Helpers Care Ltd
http://statistics.data.gov.uk/id/local-authority/38,Oxfordshire County Council,SEN TRANSPORT,13/12/2022,5227,Other Transport Arrangements,3111314949,"-1,050.00",The Oxfordshire Taxi Company Ltd T/
http://statistics.data.gov.uk/id/local-authority/38,Oxfordshire County Council,Funded Nursing Care  - Over 65,12/12/2022,5692,,3111312396,"-1,045.95",Coxwell Hall & Mews Nursing Home
http://statistics.data.gov.uk/id/local-authority/38,Oxfordshire County Council,Oxfordshire Adoption Support Fund,09/12/2022,4861,Hired and Contracted Services,2201058554,"-1,040.00",Topaz Therapeutic Life Story
http://statistics.data.gov.uk/id/local-authority/38,Oxfordshire County Council,Care Homes - Over 65 Physical Sypport,12/12/2022,5687,,3111312864,"-1,037.47",LAWTON GROUP LTD
http://statistics.data.gov.uk/id/local-authority/38,Oxfordshire County Council,Support at Home 65+ Physical Support,12/12/2022,5686,,3111311241,"-1,020.86",Orders of St John
http://statistics.data.gov.uk/id/local-authority/38,Oxfordshire County Council,Care Homes - Over 65 Physical Sypport,12/12/2022,5687,,3111311007,"-1,008.28",Banbury Heights Nursing Home
http://statistics.data.gov.uk/id/local-authority/38,Oxfordshire County Council,NURSERY ED FUND,16/12/2022,5537,Payments to Other Establishments,3111316925,-913.50,Bloxham Pre-School
http://statistics.data.gov.uk/id/local-authority/38,Oxfordshire County Council,NURSERY ED FUND,16/12/2022,5537,Payments to Other Establishments,3111316957,-913.50,"Cutteslowe Primary, Cherwell School"
http://statistics.data.gov.uk/id/local-authority/38,Oxfordshire County Council,NURSERY ED FUND,16/12/2022,5537,Payments to Other Establishments,3111316974,-913.50,Hook Norton Pre-School Playgroup
http://statistics.data.gov.uk/id/local-authority/38,Oxfordshire County Council,NURSERY ED FUND,16/12/2022,5537,Payments to Other Establishments,3111316955,-913.50,John Henry Newman Academy
http://statistics.data.gov.uk/id/local-authority/38,Oxfordshire County Council,NURSERY ED FUND,16/12/2022,5537,Payments to Other Establishments,3111316956,-913.50,John Henry Newman Academy
http://statistics.data.gov.uk/id/local-authority/38,Oxfordshire County Council,NURSERY ED FUND,16/12/2022,5537,Payments to Other Establishments,3111316947,-913.50,Kidsunlimited (Milton Park)
http://statistics.data.gov.uk/id/local-authority/38,Oxfordshire County Council,NURSERY ED FUND,16/12/2022,5537,Payments to Other Establishments,3111316943,-913.50,Ladygrove Day Nursery and Nursery S
http://statistics.data.gov.uk/id/local-authority/38,Oxfordshire County Council,NURSERY ED FUND,16/12/2022,5537,Payments to Other Establishments,3111316989,-913.50,Louise King
http://statistics.data.gov.uk/id/local-authority/38,Oxfordshire County Council,NURSERY ED FUND,16/12/2022,5537,Payments to Other Establishments,3111316994,-913.50,New Marston Primary School
http://statistics.data.gov.uk/id/local-authority/38,Oxfordshire County Council,NURSERY ED FUND,16/12/2022,5537,Payments to Other Establishments,3111316995,-913.50,Our Lady's Catholic Primary School
http://statistics.data.gov.uk/id/local-authority/38,Oxfordshire County Council,NURSERY ED FUND,16/12/2022,5537,Payments to Other Establishments,3111316978,-913.50,Rachel Mobbs
http://statistics.data.gov.uk/id/local-authority/38,Oxfordshire County Council,NURSERY ED FUND,16/12/2022,5537,Payments to Other Establishments,3111317620,-913.50,St Josephs Catholic Primary School
http://statistics.data.gov.uk/id/local-authority/38,Oxfordshire County Council,NURSERY ED FUND,16/12/2022,5537,Payments to Other Establishments,3111317593,-913.50,The Sunshine Centre
http://statistics.data.gov.uk/id/local-authority/38,Oxfordshire County Council,Marketing,15/12/2022,4790,"Publicity, Promotions and Advertisement",3111316285,-900.00,OCC One Time Vendor
http://statistics.data.gov.uk/id/local-authority/38,Oxfordshire County Council,LD Continuing Care - Sup at Home - U65,02/12/2022,5691,,3111305487,-885.41,Angel Care Group
http://statistics.data.gov.uk/id/local-authority/38,Oxfordshire County Council,NURSERY ED FUND,16/12/2022,5537,Payments to Other Establishments,3111316970,-874.35,Bayards Hill Primary School
http://statistics.data.gov.uk/id/local-authority/38,Oxfordshire County Council,NURSERY ED FUND,16/12/2022,5537,Payments to Other Establishments,3111316977,-874.35,Sue Leverton
http://statistics.data.gov.uk/id/local-authority/38,Oxfordshire County Council,NURSERY ED FUND,16/12/2022,5537,Payments to Other Establishments,3111316960,-809.10,Pegasus Primary School
http://statistics.data.gov.uk/id/local-authority/38,Oxfordshire County Council,Support at Home 65+ Memory & Cognition,12/12/2022,5686,,3111311581,-794.00,Orders of St John
http://statistics.data.gov.uk/id/local-authority/38,Oxfordshire County Council,Healthy Place Shaping,01/12/2022,4940,Other Services,2201055336,-792.00,OXFORD BROOKES UNIVERSITY
http://statistics.data.gov.uk/id/local-authority/38,Oxfordshire County Council,CHC Fast Track - Sup at Homes - Over 65,14/12/2022,5691,,3111316228,-772.00,Joining Hands Healthcare Ltd
http://statistics.data.gov.uk/id/local-authority/38,Oxfordshire County Council,Care Homes - Over 65 Physical Sypport,12/12/2022,5687,,3111313429,-764.52,Meadow View Nursing Home
http://statistics.data.gov.uk/id/local-authority/38,Oxfordshire County Council,Care Homes - Over 65 Memory & Cognition,12/12/2022,5687,,3111311207,-756.66,Orders of St John
http://statistics.data.gov.uk/id/local-authority/38,Oxfordshire County Council,Care Homes - Over 65 Physical Sypport,12/12/2022,5687,,3111310757,-751.75,Orders of St John
http://statistics.data.gov.uk/id/local-authority/38,Oxfordshire County Council,LEAVING CARE CITY 1,09/12/2022,5394,Other Expenses,3111309499,-746.20,OCC One Time Vendor
http://statistics.data.gov.uk/id/local-authority/38,Oxfordshire County Council,Care Homes - Over 65 Memory & Cognition,12/12/2022,5687,,3111312807,-742.86,Freeland House
http://statistics.data.gov.uk/id/local-authority/38,Oxfordshire County Council,NURSERY ED FUND,16/12/2022,5537,Payments to Other Establishments,3111317588,-730.80,Rainbow (Bicester)
http://statistics.data.gov.uk/id/local-authority/38,Oxfordshire County Council,Support at Home U65 Physical Support,12/12/2022,5688,,3111311522,-707.50,H F TRUST LTD
http://statistics.data.gov.uk/id/local-authority/38,Oxfordshire County Council,SEN TRANSPORT,13/12/2022,5227,Other Transport Arrangements,3111314953,-702.00,The Oxfordshire Taxi Company Ltd T/
http://statistics.data.gov.uk/id/local-authority/38,Oxfordshire County Council,NURSERY ED FUND,16/12/2022,5537,Payments to Other Establishments,3111316927,-691.65,Ladybird Pre-School
http://statistics.data.gov.uk/id/local-authority/38,Oxfordshire County Council,Care Homes - Over 65 Physical Sypport,12/12/2022,5686,,3111311441,-680.57,Orders of St John
http://statistics.data.gov.uk/id/local-authority/38,Oxfordshire County Council,Care Homes - Over 65 Memory & Cognition,12/12/2022,5687,,3111310230,-672.00,Vale House
http://statistics.data.gov.uk/id/local-authority/38,Oxfordshire County Council,Support at Home 65+ Physical Support,12/12/2022,5686,,3111314283,-653.14,The Ridings (Anchor Trust)
http://statistics.data.gov.uk/id/local-authority/38,Oxfordshire County Council,Support at Home 65+ Physical Support,06/12/2022,5699,,3111306207,-617.40,CaringPlus Healthcare Services Ltd
http://statistics.data.gov.uk/id/local-authority/38,Oxfordshire County Council,PLACEMENTS- RELEVANT,28/12/2022,5785,Client Lodgings and Accommodation,3111322202,-594.46,A2dominion
http://statistics.data.gov.uk/id/local-authority/38,Oxfordshire County Council,Oxfordshire Safeguarding Adults Board,30/12/2022,4861,Hired and Contracted Services,2201064727,-587.00,Susan Ross
http://statistics.data.gov.uk/id/local-authority/38,Oxfordshire County Council,Early Years Pupil Premium,16/12/2022,5537,Payments to Other Establishments,3111317531,-569.10,Hardwick & Arden Pre-School
http://statistics.data.gov.uk/id/local-authority/38,Oxfordshire County Council,Funded Nursing Care  - Over 65,12/12/2022,5692,,3111310816,-567.80,Acacia Lodge Care Home
http://statistics.data.gov.uk/id/local-authority/38,Oxfordshire County Council,Funded Nursing Care  - Over 65,12/12/2022,5692,,3111311019,-567.80,Banbury Heights Nursing Home
http://statistics.data.gov.uk/id/local-authority/38,Oxfordshire County Council,Funded Nursing Care  - Over 65,12/12/2022,5692,,3111311666,-567.80,Grace Care Service Ltd T/A Burford
http://statistics.data.gov.uk/id/local-authority/38,Oxfordshire County Council,FOSTERING MAIN,13/12/2022,5549,B*Fostering Allowance - Regulation 38,3111315226,-565.90,Redacted Personal Data
http://statistics.data.gov.uk/id/local-authority/38,Oxfordshire County Council,MAINSTREAM-SECONDARY,01/12/2022,4322,"Season Tickets - Bus, Rail & Ferry",3111304315,-554.75,Oxford Bus Company Ltd
http://statistics.data.gov.uk/id/local-authority/38,Oxfordshire County Council,NURSERY ED FUND,16/12/2022,5537,Payments to Other Establishments,3111317510,-548.10,Cholsey Pre-School (PFSU)
http://statistics.data.gov.uk/id/local-authority/38,Oxfordshire County Council,FOSTERING MAIN,06/12/2022,5548,B*Fostering - Special Rates & Plus Amou,3111307764,-546.86,Redacted Personal Data
http://statistics.data.gov.uk/id/local-authority/38,Oxfordshire County Council,Household Support Fund 3,16/12/2022,7690,Additional Grant for Schools,3111317743,-540.00,Faringdon Academy Schools
http://statistics.data.gov.uk/id/local-authority/38,Oxfordshire County Council,SEN Inclusion Fund,16/12/2022,5537,Payments to Other Establishments,3111317021,-539.00,Brightwell Pre-school
http://statistics.data.gov.uk/id/local-authority/38,Oxfordshire County Council,SEN Inclusion Fund,16/12/2022,5537,Payments to Other Establishments,3111317019,-539.00,Dalton Pre-School Nurser
http://statistics.data.gov.uk/id/local-authority/38,Oxfordshire County Council,SEN Inclusion Fund,16/12/2022,5537,Payments to Other Establishments,3111317012,-539.00,Highmoor Nursery School Ltd
http://statistics.data.gov.uk/id/local-authority/38,Oxfordshire County Council,SEN Inclusion Fund,16/12/2022,5537,Payments to Other Establishments,3111317047,-539.00,Little Oak Pre-School
http://statistics.data.gov.uk/id/local-authority/38,Oxfordshire County Council,SEN Inclusion Fund,16/12/2022,5537,Payments to Other Establishments,3111317166,-539.00,Northbourne CE(A) Primary School
http://statistics.data.gov.uk/id/local-authority/38,Oxfordshire County Council,SEN Inclusion Fund,16/12/2022,5537,Payments to Other Establishments,3111317018,-539.00,Rainbow Pre-School
http://statistics.data.gov.uk/id/local-authority/38,Oxfordshire County Council,SEN Inclusion Fund,16/12/2022,5537,Payments to Other Establishments,3111317109,-539.00,Windale Community Primary School
http://statistics.data.gov.uk/id/local-authority/38,Oxfordshire County Council,Support at Home 65+ Memory & Cognition,06/12/2022,5699,,3111305950,-535.50,All Care GB Ltd
http://statistics.data.gov.uk/id/local-authority/38,Oxfordshire County Council,Continuing Care - Support at Home - U65,12/12/2022,5688,,3111311505,-529.91,Fitzroy Support
http://statistics.data.gov.uk/id/local-authority/38,Oxfordshire County Council,Care Homes - Over 65 Memory & Cognition,12/12/2022,5686,,3111313577,-514.29,Oakenholt Care Ltd
http://statistics.data.gov.uk/id/local-authority/38,Oxfordshire County Council,SEN Inclusion Fund,16/12/2022,5537,Payments to Other Establishments,3111317153,-500.50,Longford Park Primary School
http://statistics.data.gov.uk/id/local-authority/38,Oxfordshire County Council,SEN Inclusion Fund,16/12/2022,5537,Payments to Other Establishments,3111317705,-500.50,Shelswell & Fringford Playgroup
http://statistics.data.gov.uk/id/local-authority/38,Oxfordshire County Council,SEN Inclusion Fund,16/12/2022,5537,Payments to Other Establishments,3111317110,-500.50,Windale Community Primary School
http://statistics.data.gov.uk/id/local-authority/38,Oxfordshire County Council,TRADING STANDARDS,12/12/2022,5251,Legal Costs,2201058921,500.00,12CP Barristers
http://statistics.data.gov.uk/id/local-authority/38,Oxfordshire County Council,Support at Home U65 Physical Support,12/12/2022,5227,Other Transport Arrangements,3111309620,500.00,Faringdon Cars
http://statistics.data.gov.uk/id/local-authority/38,Oxfordshire County Council,Fostering Panel,07/12/2022,4861,Hired and Contracted Services,2201057418,500.00,Green Light People Solutions
http://statistics.data.gov.uk/id/local-authority/38,Oxfordshire County Council,Fostering Panel,07/12/2022,4861,Hired and Contracted Services,2201057419,500.00,Green Light People Solutions
http://statistics.data.gov.uk/id/local-authority/38,Oxfordshire County Council,Fostering Panel,07/12/2022,4861,Hired and Contracted Services,2201057420,500.00,Green Light People Solutions
http://statistics.data.gov.uk/id/local-authority/38,Oxfordshire County Council,Fostering Panel,19/12/2022,4861,Hired and Contracted Services,2201062692,500.00,Green Light People Solutions
http://statistics.data.gov.uk/id/local-authority/38,Oxfordshire County Council,Fostering Panel,19/12/2022,4861,Hired and Contracted Services,2201062693,500.00,Green Light People Solutions
http://statistics.data.gov.uk/id/local-authority/38,Oxfordshire County Council,LAC PUPIL PREMIUM,14/12/2022,5537,Payments to Other Establishments,3111316158,500.00,Heyford Park School
http://statistics.data.gov.uk/id/local-authority/38,Oxfordshire County Council,Planned Maintenance,13/12/2022,3787,Premises Repairs,2201060070,500.00,Inside Out Developments Ltd
http://statistics.data.gov.uk/id/local-authority/38,Oxfordshire County Council,Panel Costs,05/12/2022,4940,Other Services,2201056284,500.00,Janet Fishwick
http://statistics.data.gov.uk/id/local-authority/38,Oxfordshire County Council,LEGAL BUDGET,02/12/2022,5251,Legal Costs,2201055914,500.00,Johnson & Gaunt Solicitors
http://statistics.data.gov.uk/id/local-authority/38,Oxfordshire County Council,SIP MANAGEMENT,08/12/2022,4940,Other Services,2201058201,500.00,Lee Hecht Harrison Penna Limited
http://statistics.data.gov.uk/id/local-authority/38,Oxfordshire County Council,BAMPTON LIBRARY,20/12/2022,3190,Redundancy Paymts-Other Staff,2201063268,500.00,Lee Hecht Harrison Penna Limited
http://statistics.data.gov.uk/id/local-authority/38,Oxfordshire County Council,Support at Home U65 Physical Support,16/12/2022,5227,Other Transport Arrangements,3111317375,500.00,LINK SHIRES LTD
http://statistics.data.gov.uk/id/local-authority/38,Oxfordshire County Council,LAC PUPIL PREMIUM,14/12/2022,5537,Payments to Other Establishments,3111316089,500.00,Millbrook Primary School
http://statistics.data.gov.uk/id/local-authority/38,Oxfordshire County Council,HIGHWAYS GENERAL,14/12/2022,5055,Insurance Costs,3111315825,500.00,OCC One Time Vendor
http://statistics.data.gov.uk/id/local-authority/38,Oxfordshire County Council,HIGHWAYS GENERAL,14/12/2022,5055,Insurance Costs,3111315828,500.00,OCC One Time Vendor
http://statistics.data.gov.uk/id/local-authority/38,Oxfordshire County Council,HIGHWAYS GENERAL,14/12/2022,5055,Insurance Costs,3111315832,500.00,OCC One Time Vendor
http://statistics.data.gov.uk/id/local-authority/38,Oxfordshire County Council,LANDLORD & TENANT,14/12/2022,8510,Other expenses,3111316267,500.00,OCC One Time Vendor
http://statistics.data.gov.uk/id/local-authority/38,Oxfordshire County Council,Support at Home U65 Learning Disability,16/12/2022,5227,Other Transport Arrangements,3111317423,500.00,OXFORD BLUE CARS
http://statistics.data.gov.uk/id/local-authority/38,Oxfordshire County Council,LDD AFTER SCHOOL,22/12/2022,4330,Transport to School Activities,3111322799,500.00,Oxon Transport Services Ltd
http://statistics.data.gov.uk/id/local-authority/38,Oxfordshire County Council,Property Cleaning,21/12/2022,4070,Cleaning services,2201063923,500.00,Parker Contract Cleaning
http://statistics.data.gov.uk/id/local-authority/38,Oxfordshire County Council,SEN Alternative Provision,22/12/2022,4861,Hired and Contracted Services,3111321282,500.00,THE DARE2DREAM FOUNDATION
http://statistics.data.gov.uk/id/local-authority/38,Oxfordshire County Council,SEN Alternative Provision,28/12/2022,4861,Hired and Contracted Services,2201064324,500.00,THE DARE2DREAM FOUNDATION
http://statistics.data.gov.uk/id/local-authority/38,Oxfordshire County Council,Oxfordshire Adoption Support Fund,13/12/2022,4861,Hired and Contracted Services,2201060056,500.00,The Sensory Smart Child Ltd
http://statistics.data.gov.uk/id/local-authority/38,Oxfordshire County Council,Reactive Maintenance,08/12/2022,3787,Premises Repairs,2201058177,500.00,Wolseley UK Limited
http://statistics.data.gov.uk/id/local-authority/38,Oxfordshire County Council,Family Solutions Plus Non-staff - North,03/12/2022,5394,Other Expenses,3500090580,500.00,Redacted Personal Data
http://statistics.data.gov.uk/id/local-authority/38,Oxfordshire County Council,VOIDS/VACANCY COSTS,12/12/2022,3945,Rent,3111312741,500.25,Oxford Citizens Housing Association
http://statistics.data.gov.uk/id/local-authority/38,Oxfordshire County Council,SEN Inclusion Fund,16/12/2022,5537,Payments to Other Establishments,3111317149,500.50,Edith Moorhouse Primary School
http://statistics.data.gov.uk/id/local-authority/38,Oxfordshire County Council,SEN Inclusion Fund,16/12/2022,5537,Payments to Other Establishments,3111317106,500.50,Orchard Meadow Primary School
http://statistics.data.gov.uk/id/local-authority/38,Oxfordshire County Council,SEN Inclusion Fund,16/12/2022,5537,Payments to Other Establishments,3111317091,500.50,St John Fisher Catholic Primary
http://statistics.data.gov.uk/id/local-authority/38,Oxfordshire County Council,SEN Inclusion Fund,16/12/2022,5537,Payments to Other Establishments,3111317178,500.50,Tackley COFE Primary School
http://statistics.data.gov.uk/id/local-authority/38,Oxfordshire County Council,SEN TRANSPORT,22/12/2022,4320,Pupil / Client Travel Reimbursement,3111321068,500.58,Redacted Personal Data
http://statistics.data.gov.uk/id/local-authority/38,Oxfordshire County Council,Early Years SEN Funding,02/12/2022,5537,Payments to Other Establishments,3111305485,500.73,Grovelands Park Pre-School
http://statistics.data.gov.uk/id/local-authority/38,Oxfordshire County Council,Early Years SEN Funding,22/12/2022,5537,Payments to Other Establishments,3111321084,500.73,Grovelands Park Pre-School
http://statistics.data.gov.uk/id/local-authority/38,Oxfordshire County Council,Support at Home 65+ Physical Support,06/12/2022,5689,,3111305927,501.13,Oxfordshire Crossroads
http://statistics.data.gov.uk/id/local-authority/38,Oxfordshire County Council,Support at Home U65 Learning Disability,12/12/2022,5690,,3111310417,501.14,Style Acre
http://statistics.data.gov.uk/id/local-authority/38,Oxfordshire County Council,TRAINING MANAGEMENT,08/12/2022,3100,Educational and Vocational Training,2201058429,501.50,Ann's Munchies Ltd
http://statistics.data.gov.uk/id/local-authority/38,Oxfordshire County Council,FOSTERING MAIN,13/12/2022,5548,B*Fostering - Special Rates & Plus Amou,3111315683,501.98,Redacted Personal Data
http://statistics.data.gov.uk/id/local-authority/38,Oxfordshire County Council,,08/12/2022,1531,Cash Allocation Control Account,3111309981,502.70,Trade UK
http://statistics.data.gov.uk/id/local-authority/38,Oxfordshire County Council,Support at Home 65+ Physical Support,07/12/2022,5693,,3111308250,502.74,Casa Care Ltd
http://statistics.data.gov.uk/id/local-authority/38,Oxfordshire County Council,Support at Home 65+ Physical Support,21/12/2022,5696,,3111320493,502.74,Orders of St John Care Trust
http://statistics.data.gov.uk/id/local-authority/38,Oxfordshire County Council,Reactive Maintenance,05/12/2022,4042,Fixtures and Fittings,2201056477,503.00,Darren Bryan Security Services
http://statistics.data.gov.uk/id/local-authority/38,Oxfordshire County Council,Support at Home 65+ Physical Support,14/12/2022,5693,,3111315955,504.00,Clark Care Services
http://statistics.data.gov.uk/id/local-authority/38,Oxfordshire County Council,Support at Home 65+ Physical Support,14/12/2022,5693,,3111315956,504.00,Clark Care Services
http://statistics.data.gov.uk/id/local-authority/38,Oxfordshire County Council,Support at Home 65+ Physical Support,14/12/2022,5693,,3111315957,504.00,Clark Care Services
http://statistics.data.gov.uk/id/local-authority/38,Oxfordshire County Council,Support at Home 65+ Physical Support,14/12/2022,5693,,3111315958,504.00,Clark Care Services
http://statistics.data.gov.uk/id/local-authority/38,Oxfordshire County Council,Support at Home 65+ Physical Support,06/12/2022,5699,,3111306274,504.00,Greigcare Home Service
http://statistics.data.gov.uk/id/local-authority/38,Oxfordshire County Council,Support at Home U65 Physical Support,14/12/2022,5693,,3111315993,504.00,HEALTHCARE ACCESS LTD
http://statistics.data.gov.uk/id/local-authority/38,Oxfordshire County Council,Support at Home 65+ Physical Support,09/12/2022,5699,,3111309354,504.00,Mega Resources Ltd
http://statistics.data.gov.uk/id/local-authority/38,Oxfordshire County Council,Family Solutions Plus Non-staff - North,19/12/2022,5227,Other Transport Arrangements,3111318073,504.00,Phoenixx Cars Ltd
http://statistics.data.gov.uk/id/local-authority/38,Oxfordshire County Council,Family Solutions Plus Non-staff - Centra,09/12/2022,4122,Other premises related costs,2201058598,504.00,Total Pest Control (UK) Ltd
http://statistics.data.gov.uk/id/local-authority/38,Oxfordshire County Council,Support at Home U65 Physical Support,06/12/2022,5699,,3111306715,504.00,We-Care-Recruitment Ltd
http://statistics.data.gov.uk/id/local-authority/38,Oxfordshire County Council,Support at Home 65+ Memory & Cognition,06/12/2022,5699,,3111306785,504.00,YOD Ltd
http://statistics.data.gov.uk/id/local-authority/38,Oxfordshire County Council,Support at Home 65+ Physical Support,06/12/2022,5689,,3111306261,504.12,Goldsmith Personnel Ltd
http://statistics.data.gov.uk/id/local-authority/38,Oxfordshire County Council,Support at Home U65 HFA,20/12/2022,5899,Social Care - Direct Payments,3111319062,504.32,Connection Support (Oxford)
http://statistics.data.gov.uk/id/local-authority/38,Oxfordshire County Council,DEPARTMENTAL MANAGE,02/12/2022,8102,Payments to main contractor,2201055931,505.00,Haysham Ltd
http://statistics.data.gov.uk/id/local-authority/38,Oxfordshire County Council,Family Solutions Plus Non-staff - Centra,01/12/2022,5365,Non-Staff Subsistence and Expenses,9300058095,505.05,OCC SS Oxford City Div 1 Cash
http://statistics.data.gov.uk/id/local-authority/38,Oxfordshire County Council,FOSTERING MAIN,28/12/2022,5532,B*Fostering - Loan Equipment,3111321787,505.16,Redacted Personal Data
http://statistics.data.gov.uk/id/local-authority/38,Oxfordshire County Council,TRO TEAM,08/12/2022,4790,"Publicity, Promotions and Advertisement",2201057921,505.20,PEOPLESCOUT LIMITED
http://statistics.data.gov.uk/id/local-authority/38,Oxfordshire County Council,LEGAL BUDGET,20/12/2022,5251,Legal Costs,2201063603,505.38,Dr DBR Bailham
http://statistics.data.gov.uk/id/local-authority/38,Oxfordshire County Council,Support at Home 65+ Physical Support,06/12/2022,5689,,3111306792,505.55,Prestige Nursing Ltd
http://statistics.data.gov.uk/id/local-authority/38,Oxfordshire County Council,Children in Care Non-staffing - Centrl 2,15/12/2022,5415,Residential Activities,9300058283,505.67,OCC SS Oxford City Div 1 Cash
http://statistics.data.gov.uk/id/local-authority/38,Oxfordshire County Council,LEAVING CARE CITY 1,08/12/2022,5555,Payments to Carers,3500090714,505.79,Redacted Personal Data
http://statistics.data.gov.uk/id/local-authority/38,Oxfordshire County Council,LEAVING CARE CITY 1,09/12/2022,5555,Payments to Carers,3500090738,505.79,Redacted Personal Data
http://statistics.data.gov.uk/id/local-authority/38,Oxfordshire County Council,LEAVING CARE CITY 1,16/12/2022,5555,Payments to Carers,3500090985,505.79,Redacted Personal Data
http://statistics.data.gov.uk/id/local-authority/38,Oxfordshire County Council,LEAVING CARE CITY 1,23/12/2022,5555,Payments to Carers,3500091198,505.79,Redacted Personal Data
http://statistics.data.gov.uk/id/local-authority/38,Oxfordshire County Council,LEAVING CARE CITY 1,30/12/2022,5555,Payments to Carers,3500091538,505.79,Redacted Personal Data
http://statistics.data.gov.uk/id/local-authority/38,Oxfordshire County Council,LAC PUPIL PREMIUM,14/12/2022,5537,Payments to Other Establishments,3111316123,506.00,Corsham Primary School
http://statistics.data.gov.uk/id/local-authority/38,Oxfordshire County Council,,13/12/2022,1325,Attachment of Earnings,3111314889,506.06,Kingston upon Thame
http://statistics.data.gov.uk/id/local-authority/38,Oxfordshire County Council,CONCESSIONARY FARES,14/12/2022,5781,Payments to Transport Operators,2201060489,507.00,Henley Town Council
http://statistics.data.gov.uk/id/local-authority/38,Oxfordshire County Council,LEAVING CARE CITY 1,14/12/2022,5665,B*Fostering Project Care Fee,9300058253,507.20,OCC SS Banbury Area Off Cash
http://statistics.data.gov.uk/id/local-authority/38,Oxfordshire County Council,Support at Home 65+ Mental Health,06/12/2022,5698,,3111306654,507.33,Oxford Private Care
http://statistics.data.gov.uk/id/local-authority/38,Oxfordshire County Council,LEAVING CARE NORTH,09/12/2022,5663,B*Birthday Allowance,9300058219,507.35,OCC SS Banbury Area Off Cash
http://statistics.data.gov.uk/id/local-authority/38,Oxfordshire County Council,Support at Home U65 Learning Disability,20/12/2022,5899,Social Care - Direct Payments,3111319994,507.84,Purple Conversation Com In Co (DP)
http://statistics.data.gov.uk/id/local-authority/38,Oxfordshire County Council,FOSTERING MAIN,13/12/2022,5549,B*Fostering Allowance - Regulation 38,3111315735,508.00,Redacted Personal Data
http://statistics.data.gov.uk/id/local-authority/38,Oxfordshire County Council,FOSTERING MAIN,20/12/2022,5227,Other Transport Arrangements,3111318762,508.22,Redacted Personal Data
http://statistics.data.gov.uk/id/local-authority/38,Oxfordshire County Council,Support at Home U65 Physical Support,12/12/2022,5690,,3111310552,508.84,The Camden Society
http://statistics.data.gov.uk/id/local-authority/38,Oxfordshire County Council,Support at Home U65 Learning Disability,12/12/2022,5690,,3111310558,508.84,The Camden Society
http://statistics.data.gov.uk/id/local-authority/38,Oxfordshire County Council,Support at Home U65 Learning Disability,12/12/2022,5690,,3111310569,508.84,The Camden Society
http://statistics.data.gov.uk/id/local-authority/38,Oxfordshire County Council,Support at Home U65 Learning Disability,21/12/2022,5227,Other Transport Arrangements,3111320868,510.00,Abingdon Taxis FKN Autotaxis
http://statistics.data.gov.uk/id/local-authority/38,Oxfordshire County Council,ON ST PARK OXFD P&D,21/12/2022,4861,Hired and Contracted Services,2201063697,510.00,Flowbird Smart City
http://statistics.data.gov.uk/id/local-authority/38,Oxfordshire County Council,Family Solutions Plus Non-staff - South,29/12/2022,5227,Other Transport Arrangements,3111323083,510.00,Her Ride Limited
http://statistics.data.gov.uk/id/local-authority/38,Oxfordshire County Council,Minor Works,14/12/2022,2040,Agency Staff,2201060745,510.00,Michael Page International Recruitm
http://statistics.data.gov.uk/id/local-authority/38,Oxfordshire County Council,Household Support Fund 3,16/12/2022,7690,Additional Grant for Schools,3111317946,510.00,Sibford Gower Endowed Primary Schoo
http://statistics.data.gov.uk/id/local-authority/38,Oxfordshire County Council,Community Support Service - Abingdon,08/12/2022,4450,Disability Aids and Equipment,2201058012,510.25,KOLLER ENGINEERING LTD
http://statistics.data.gov.uk/id/local-authority/38,Oxfordshire County Council,Support at Home U65 Other /Soc Isolation,06/12/2022,5699,,3111306135,510.30,Care Hearted Ltd
http://statistics.data.gov.uk/id/local-authority/38,Oxfordshire County Council,Support at Home 65+ Physical Support,06/12/2022,5689,,3111306800,510.57,Prestige Nursing Ltd
http://statistics.data.gov.uk/id/local-authority/38,Oxfordshire County Council,SEN TRANSPORT,28/12/2022,4330,Transport to School Activities,2201064279,510.71,Haven Care Group
http://statistics.data.gov.uk/id/local-authority/38,Oxfordshire County Council,Support at Home U65 Learning Disability,28/12/2022,5899,Social Care - Direct Payments,3111322595,510.79,Redacted Personal Data
http://statistics.data.gov.uk/id/local-authority/38,Oxfordshire County Council,Support at Home 65+ Learning Disability,09/12/2022,5693,,3111309228,510.80,FLEXI DIRECT LTD
http://statistics.data.gov.uk/id/local-authority/38,Oxfordshire County Council,ATV Adoption Oxford,14/12/2022,4665,Catering,2201060847,511.50,Elegant Cuisine Ltd t/a Lets Do Lun
http://statistics.data.gov.uk/id/local-authority/38,Oxfordshire County Council,Support at Home U65 Physical Support,06/12/2022,5689,,3111305793,511.56,Bicester PA and Care LLP
http://statistics.data.gov.uk/id/local-authority/38,Oxfordshire County Council,Support at Home 65+ Physical Support,06/12/2022,5698,,3111306602,511.88,Oxford Private Care
http://statistics.data.gov.uk/id/local-authority/38,Oxfordshire County Council,SEN TRANSPORT,15/12/2022,5227,Other Transport Arrangements,3111316359,512.00,ABC Travel(Wokingham) limited t/a A
http://statistics.data.gov.uk/id/local-authority/38,Oxfordshire County Council,Support at Home 65+ Other /Soc Isolation,21/12/2022,5693,,3111320639,512.00,Redacted Personal Data
http://statistics.data.gov.uk/id/local-authority/38,Oxfordshire County Council,STI TESTING+TREATMEN,16/12/2022,4940,Other Services,3111318243,512.00,The Newcastle upon Tyne
http://statistics.data.gov.uk/id/local-authority/38,Oxfordshire County Council,Support at Home U65 Learning Disability,20/12/2022,5899,Social Care - Direct Payments,3111319777,512.16,Purple Conversation Com In Co (DP)
http://statistics.data.gov.uk/id/local-authority/38,Oxfordshire County Council,LIBRARY COLLECTIONS,13/12/2022,4539,"Books, DVDs and CDs",3111315073,512.38,ASKEWS & HOLTS LIBRARY SERVICES LTD
http://statistics.data.gov.uk/id/local-authority/38,Oxfordshire County Council,Community Support Service Oxford,19/12/2022,2040,Agency Staff,2201062794,512.40,Completely Care Ltd
http://statistics.data.gov.uk/id/local-authority/38,Oxfordshire County Council,FOSTERING MAIN,28/12/2022,5227,Other Transport Arrangements,3111321938,512.79,Redacted Personal Data
http://statistics.data.gov.uk/id/local-authority/38,Oxfordshire County Council,,02/12/2022,1448,Blackfield Inc & Exp A/c,3111305476,513.50,OCC One Time Vendor
http://statistics.data.gov.uk/id/local-authority/38,Oxfordshire County Council,Support at Home U65 Learning Disability,20/12/2022,5899,Social Care - Direct Payments,3111319355,514.12,Redacted Personal Data
http://statistics.data.gov.uk/id/local-authority/38,Oxfordshire County Council,CORONER,16/12/2022,5202,Use of Mortuary Services,2201062121,515.00,ORAMIS DIGITAL AUTOPSY LTD
http://statistics.data.gov.uk/id/local-authority/38,Oxfordshire County Council,VOIDS/VACANCY COSTS,12/12/2022,3945,Rent,3111312737,515.22,Oxford Citizens Housing Association
http://statistics.data.gov.uk/id/local-authority/38,Oxfordshire County Council,VOIDS/VACANCY COSTS,12/12/2022,3945,Rent,3111312739,515.22,Oxford Citizens Housing Association
http://statistics.data.gov.uk/id/local-authority/38,Oxfordshire County Council,Support at Home U65 Mental Health,20/12/2022,5899,Social Care - Direct Payments,3111320131,515.68,Purple Conversation Com In Co (DP)
http://statistics.data.gov.uk/id/local-authority/38,Oxfordshire County Council,Support at Home U65 Other /Soc Isolation,20/12/2022,5899,Social Care - Direct Payments,3111320069,516.24,Purple Conversation Com In Co (DP)
http://statistics.data.gov.uk/id/local-authority/38,Oxfordshire County Council,PLACEMENTS-FRELEVANT,28/12/2022,5558,,3111322985,516.29,The YMCA Worcestershire
http://statistics.data.gov.uk/id/local-authority/38,Oxfordshire County Council,Support at Home 65+ Memory & Cognition,12/12/2022,5690,,3111310280,516.37,Daybreak Oxford
http://statistics.data.gov.uk/id/local-authority/38,Oxfordshire County Council,Support at Home 65+ Physical Support,06/12/2022,5699,,3111306324,516.60,Home Helpers Care Ltd
http://statistics.data.gov.uk/id/local-authority/38,Oxfordshire County Council,Support at Home U65 Physical Support,07/12/2022,5693,,3111308330,516.60,Oasis Private Care Ltd
http://statistics.data.gov.uk/id/local-authority/38,Oxfordshire County Council,SEN Alternative Provision,19/12/2022,4878,Hired and Contracted Services (Curricul,2201062563,517.00,Teaching Personnel Ltd
http://statistics.data.gov.uk/id/local-authority/38,Oxfordshire County Council,Support at Home U65 Learning Disability,12/12/2022,5690,,3111310523,517.35,MacIntyre Care (Womaston)
http://statistics.data.gov.uk/id/local-authority/38,Oxfordshire County Council,NURSERY ED FUND,16/12/2022,5537,Payments to Other Establishments,3111317181,517.65,Cabin Pre-School
http://statistics.data.gov.uk/id/local-authority/38,Oxfordshire County Council,Support at Home U65 Physical Support,06/12/2022,5689,,3111306215,518.03,Genuine Carers Ltd
http://statistics.data.gov.uk/id/local-authority/38,Oxfordshire County Council,FOSTERING MAIN,20/12/2022,5227,Other Transport Arrangements,3111318651,518.48,Redacted Personal Data
http://statistics.data.gov.uk/id/local-authority/38,Oxfordshire County Council,LOOKED AFTER CITY 1,12/12/2022,5227,Other Transport Arrangements,9300058223,518.90,OCC SS Oxford City Div 1 Cash
http://statistics.data.gov.uk/id/local-authority/38,Oxfordshire County Council,SEN TRANSPORT,06/12/2022,4320,Pupil / Client Travel Reimbursement,3111307930,519.12,Redacted Personal Data
http://statistics.data.gov.uk/id/local-authority/38,Oxfordshire County Council,Support at Home U65 Physical Support,21/12/2022,5696,,3111320469,519.24,Orders of St John Care Trust
http://statistics.data.gov.uk/id/local-authority/38,Oxfordshire County Council,Support at Home U65 Physical Support,21/12/2022,5696,,3111320471,519.24,Orders of St John Care Trust
http://statistics.data.gov.uk/id/local-authority/38,Oxfordshire County Council,Support at Home 65+ Learning Disability,21/12/2022,5696,,3111320477,519.24,Orders of St John Care Trust
http://statistics.data.gov.uk/id/local-authority/38,Oxfordshire County Council,Support at Home 65+ Mental Health,20/12/2022,5899,Social Care - Direct Payments,3111319073,519.84,Redacted Personal Data
http://statistics.data.gov.uk/id/local-authority/38,Oxfordshire County Council,Support at Home U65 Learning Disability,20/12/2022,5899,Social Care - Direct Payments,3111319746,519.88,Purple Conversation Com In Co (DP)
http://statistics.data.gov.uk/id/local-authority/38,Oxfordshire County Council,Support at Home U65 MH OBC Contract,20/12/2022,5899,Social Care - Direct Payments,3111320339,519.92,Purple Conversation Com In Co (DP)
http://statistics.data.gov.uk/id/local-authority/38,Oxfordshire County Council,Support at Home 65+ Physical Support,06/12/2022,5689,,3111306506,519.96,My Carer Ltd
http://statistics.data.gov.uk/id/local-authority/38,Oxfordshire County Council,LD Continuing Care - Sup at Home - U65,19/12/2022,5691,,3111318215,519.99,Helping Hands
http://statistics.data.gov.uk/id/local-authority/38,Oxfordshire County Council,Support at Home 65+ Physical Support,19/12/2022,5227,Other Transport Arrangements,3111318062,520.00,A2B Castle Cars Ltd
http://statistics.data.gov.uk/id/local-authority/38,Oxfordshire County Council,Family Solutions Plus Non-staff - Centra,06/12/2022,5227,Other Transport Arrangements,3111307900,520.00,Go Green Taxis
http://statistics.data.gov.uk/id/local-authority/38,Oxfordshire County Council,LAC PUPIL PREMIUM,20/12/2022,5380,"Author, Speaker and Lecturer Fees",2201063056,520.00,Northampton Saints foundation
http://statistics.data.gov.uk/id/local-authority/38,Oxfordshire County Council,Library Projects,15/12/2022,4042,Fixtures and Fittings,2201061109,520.00,Thames Ceilings Ltd
http://statistics.data.gov.uk/id/local-authority/38,Oxfordshire County Council,Support at Home U65 Physical Support,06/12/2022,5698,,3111306622,520.07,Oxford Private Care
http://statistics.data.gov.uk/id/local-authority/38,Oxfordshire County Council,Support at Home U65 HFA,20/12/2022,5899,Social Care - Direct Payments,3111320023,520.56,Purple Conversation Com In Co (DP)
http://statistics.data.gov.uk/id/local-authority/38,Oxfordshire County Council,Support at Home U65 HFA,20/12/2022,5899,Social Care - Direct Payments,3111320090,520.56,Purple Conversation Com In Co (DP)
http://statistics.data.gov.uk/id/local-authority/38,Oxfordshire County Council,Support at Home U65 MH OBC Contract,20/12/2022,5899,Social Care - Direct Payments,3111320169,520.56,Purple Conversation Com In Co (DP)
http://statistics.data.gov.uk/id/local-authority/38,Oxfordshire County Council,Support at Home 65+ Learning Disability,20/12/2022,5899,Social Care - Direct Payments,3111320253,520.56,Purple Conversation Com In Co (DP)
http://statistics.data.gov.uk/id/local-authority/38,Oxfordshire County Council,Support at Home U65 Physical Support,20/12/2022,5899,Social Care - Direct Payments,3111320298,520.56,Purple Conversation Com In Co (DP)
http://statistics.data.gov.uk/id/local-authority/38,Oxfordshire County Council,Support at Home 65+ Physical Support,06/12/2022,5689,,3111306730,520.71,PLL Care Services
http://statistics.data.gov.uk/id/local-authority/38,Oxfordshire County Council,COMM DRAWDOWN FUNDNG,16/12/2022,8004,Design Consultant,2201061637,520.76,Milestone Infrastructure Limited
http://statistics.data.gov.uk/id/local-authority/38,Oxfordshire County Council,Reactive Maintenance,20/12/2022,3787,Premises Repairs,2201063380,520.82,Rexel UK Ltd
http://statistics.data.gov.uk/id/local-authority/38,Oxfordshire County Council,Support at Home 65+ Learning Disability,12/12/2022,5690,,3111310503,521.07,HF TRUST Ltd
http://statistics.data.gov.uk/id/local-authority/38,Oxfordshire County Council,Support at Home 65+ Physical Support,06/12/2022,5698,,3111306682,521.09,Oxfordshire Crossroads
http://statistics.data.gov.uk/id/local-authority/38,Oxfordshire County Council,LIBRARY COLLECTIONS,22/12/2022,4539,"Books, DVDs and CDs",3111321018,521.25,ASKEWS & HOLTS LIBRARY SERVICES LTD
http://statistics.data.gov.uk/id/local-authority/38,Oxfordshire County Council,Support at Home U65 Physical Support,21/12/2022,5696,,3111320528,521.37,Orders of St John Care Trust
http://statistics.data.gov.uk/id/local-authority/38,Oxfordshire County Council,Support at Home 65+ Physical Support,16/12/2022,5696,,3111316853,521.56,Radis Community Care
http://statistics.data.gov.uk/id/local-authority/38,Oxfordshire County Council,FAM GRP CONFERENCES,14/12/2022,4940,Other Services,2201060687,521.67,Jessica Howards
http://statistics.data.gov.uk/id/local-authority/38,Oxfordshire County Council,NURSERY ED FUND,16/12/2022,5537,Payments to Other Establishments,3111317150,522.00,Bishopswood Day Nursery
http://statistics.data.gov.uk/id/local-authority/38,Oxfordshire County Council,NURSERY ED FUND,16/12/2022,5537,Payments to Other Establishments,3111316966,522.00,Buckland Primary School
http://statistics.data.gov.uk/id/local-authority/38,Oxfordshire County Council,FLEET MAINTENANCE,05/12/2022,4495,IT Software,2201056648,522.00,C Track UK
http://statistics.data.gov.uk/id/local-authority/38,Oxfordshire County Council,NURSERY ED FUND,16/12/2022,5537,Payments to Other Establishments,3111317223,522.00,Toad Hall Day Nursery
http://statistics.data.gov.uk/id/local-authority/38,Oxfordshire County Council,Support at Home 65+ Physical Support,21/12/2022,5696,,3111320427,522.33,Orders of St John Care Trust
http://statistics.data.gov.uk/id/local-authority/38,Oxfordshire County Council,FOSTERING MAIN,20/12/2022,5227,Other Transport Arrangements,3111319039,522.88,Redacted Personal Data
http://statistics.data.gov.uk/id/local-authority/38,Oxfordshire County Council,SEN Inclusion Fund,16/12/2022,5537,Payments to Other Establishments,3111317081,523.60,"Cutteslowe Primary, Cherwell School"
http://statistics.data.gov.uk/id/local-authority/38,Oxfordshire County Council,FLEET COSTS,06/12/2022,4270,HTM / Other Vehicle - Hire Charges,2201057166,524.40,Go Plant Fleet Services
http://statistics.data.gov.uk/id/local-authority/38,Oxfordshire County Council,SM DISABILITIES,28/12/2022,5554,Childrens' Social Care - Direct Payments,3111322556,524.52,Purple Conversation Com In Co (DP)
http://statistics.data.gov.uk/id/local-authority/38,Oxfordshire County Council,SM DISABILITIES,28/12/2022,5554,Childrens' Social Care - Direct Payments,3111322533,524.56,Purple Conversation Com In Co (DP)
http://statistics.data.gov.uk/id/local-authority/38,Oxfordshire County Council,CHC Fast Track - Sup at Homes - Over 65,19/12/2022,5691,,3111318141,525.00,The Caring Company (Oxon)
http://statistics.data.gov.uk/id/local-authority/38,Oxfordshire County Council,Oxfordshire Adoption Support Fund,14/12/2022,4861,Hired and Contracted Services,2201060940,525.00,The Child Psychology Service
http://statistics.data.gov.uk/id/local-authority/38,Oxfordshire County Council,Support at Home U65 Learning Disability,13/12/2022,5227,Other Transport Arrangements,3111314970,525.00,The Oxfordshire Taxi Company Ltd T/
http://statistics.data.gov.uk/id/local-authority/38,Oxfordshire County Council,Support at Home 65+ Physical Support,06/12/2022,5689,,3111306748,525.29,PLL Care Services
http://statistics.data.gov.uk/id/local-authority/38,Oxfordshire County Council,Support at Home 65+ Physical Support,16/12/2022,5696,,3111316854,525.56,Radis Community Care
http://statistics.data.gov.uk/id/local-authority/38,Oxfordshire County Council,Support at Home 65+ Physical Support,16/12/2022,5696,,3111316897,525.56,Radis Community Care
http://statistics.data.gov.uk/id/local-authority/38,Oxfordshire County Council,Support at Home U65 Mental Health,21/12/2022,5696,,3111320505,527.09,Orders of St John Care Trust
http://statistics.data.gov.uk/id/local-authority/38,Oxfordshire County Council,Community Support Service Banbury,22/12/2022,5227,Other Transport Arrangements,3111321406,528.00,Banbury Taxis
http://statistics.data.gov.uk/id/local-authority/38,Oxfordshire County Council,Support at Home U65 Physical Support,21/12/2022,5693,,3111320635,528.01,Care With Dignity Partnerships
http://statistics.data.gov.uk/id/local-authority/38,Oxfordshire County Council,Support at Home U65 Learning Disability,12/12/2022,5690,,3111310479,528.11,ADVANCE HOUSING & SUPPORT LTD
http://statistics.data.gov.uk/id/local-authority/38,Oxfordshire County Council,Support at Home U65 Physical Support,12/12/2022,5690,,3111310497,528.11,ADVANCE HOUSING & SUPPORT LTD
http://statistics.data.gov.uk/id/local-authority/38,Oxfordshire County Council,Support at Home U65 Learning Disability,06/12/2022,5696,,3111306970,528.68,Radis Community Care
http://statistics.data.gov.uk/id/local-authority/38,Oxfordshire County Council,LEAVING CARE CITY 2,28/12/2022,4685,Clothing and Uniforms,9300058412,528.76,OCC SS Oxford City Div 1 Cash
http://statistics.data.gov.uk/id/local-authority/38,Oxfordshire County Council,Support at Home U65 Learning Disability,20/12/2022,5899,Social Care - Direct Payments,3111320357,528.87,Rosekel Resourcing Ltd
http://statistics.data.gov.uk/id/local-authority/38,Oxfordshire County Council,Support at Home 65+ Physical Support,21/12/2022,5693,,3111320617,529.00,Angel Care Group
http://statistics.data.gov.uk/id/local-authority/38,Oxfordshire County Council,FOSTERING MAIN,06/12/2022,5549,B*Fostering Allowance - Regulation 38,3111307550,529.00,Redacted Personal Data
http://statistics.data.gov.uk/id/local-authority/38,Oxfordshire County Council,FOSTERING MAIN,13/12/2022,5549,B*Fostering Allowance - Regulation 38,3111315608,529.00,Redacted Personal Data
http://statistics.data.gov.uk/id/local-authority/38,Oxfordshire County Council,FOSTERING MAIN,20/12/2022,5549,B*Fostering Allowance - Regulation 38,3111318716,529.00,Redacted Personal Data
http://statistics.data.gov.uk/id/local-authority/38,Oxfordshire County Council,FOSTERING MAIN,28/12/2022,5549,B*Fostering Allowance - Regulation 38,3111321778,529.00,Redacted Personal Data
http://statistics.data.gov.uk/id/local-authority/38,Oxfordshire County Council,Support at Home 65+ Physical Support,02/12/2022,5693,,3111305364,529.20,A CARING HAND LTD
http://statistics.data.gov.uk/id/local-authority/38,Oxfordshire County Council,Support at Home 65+ Physical Support,06/12/2022,5699,,3111305741,529.20,Agincare UK Ltd
http://statistics.data.gov.uk/id/local-authority/38,Oxfordshire County Council,Support at Home 65+ Physical Support,06/12/2022,5699,,3111305713,529.20,All Care GB Ltd
http://statistics.data.gov.uk/id/local-authority/38,Oxfordshire County Council,Support at Home 65+ Physical Support,06/12/2022,5699,,3111305730,529.20,All Care GB Ltd
http://statistics.data.gov.uk/id/local-authority/38,Oxfordshire County Council,Support at Home 65+ Memory & Cognition,02/12/2022,5693,,3111305380,529.20,Angel Care Group
http://statistics.data.gov.uk/id/local-authority/38,Oxfordshire County Council,Support at Home 65+ Physical Support,21/12/2022,5693,,3111320618,529.20,Angel Care Group
http://statistics.data.gov.uk/id/local-authority/38,Oxfordshire County Council,Support at Home 65+ Physical Support,29/12/2022,5693,,3111323139,529.20,Angel Care Group
http://statistics.data.gov.uk/id/local-authority/38,Oxfordshire County Council,Support at Home U65 Physical Support,14/12/2022,5693,,3111315949,529.20,Boateng Care Ltd
http://statistics.data.gov.uk/id/local-authority/38,Oxfordshire County Council,Support at Home U65 Mental Health,06/12/2022,5699,,3111305988,529.20,Bridges Home Care Ltd
http://statistics.data.gov.uk/id/local-authority/38,Oxfordshire County Council,Support at Home U65 Physical Support,06/12/2022,5699,,3111306034,529.20,Calvary Care Ltd
http://statistics.data.gov.uk/id/local-authority/38,Oxfordshire County Council,Support at Home 65+ Physical Support,06/12/2022,5699,,3111306139,529.20,Care Hearted Ltd
http://statistics.data.gov.uk/id/local-authority/38,Oxfordshire County Council,Support at Home 65+ Physical Support,06/12/2022,5699,,3111305689,529.20,Care Outlook Ltd
http://statistics.data.gov.uk/id/local-authority/38,Oxfordshire County Council,Support at Home U65 Physical Support,09/12/2022,5699,,3111309291,529.20,CaringPlus Healthcare Services Ltd
http://statistics.data.gov.uk/id/local-authority/38,Oxfordshire County Council,Support at Home U65 Physical Support,09/12/2022,5699,,3111309292,529.20,CaringPlus Healthcare Services Ltd
http://statistics.data.gov.uk/id/local-authority/38,Oxfordshire County Council,Support at Home 65+ Physical Support,09/12/2022,5699,,3111309323,529.20,CaringPlus Healthcare Services Ltd
http://statistics.data.gov.uk/id/local-authority/38,Oxfordshire County Council,Support at Home 65+ Physical Support,02/12/2022,5693,,3111305399,529.20,Direct Link Care Ltd
http://statistics.data.gov.uk/id/local-authority/38,Oxfordshire County Council,Support at Home 65+ Memory & Cognition,06/12/2022,5699,,3111306224,529.20,Direct Link Care Ltd
http://statistics.data.gov.uk/id/local-authority/38,Oxfordshire County Council,Support at Home 65+ Physical Support,13/12/2022,5899,Social Care - Direct Payments,3111315077,529.20,Redacted Personal Data
http://statistics.data.gov.uk/id/local-authority/38,Oxfordshire County Council,Support at Home 65+ Learning Disability,07/12/2022,5693,,3111308276,529.20,FLEXI DIRECT LTD
http://statistics.data.gov.uk/id/local-authority/38,Oxfordshire County Council,Support at Home U65 Physical Support,09/12/2022,5693,,3111309244,529.20,GET CARE LIMITED
http://statistics.data.gov.uk/id/local-authority/38,Oxfordshire County Council,Support at Home 65+ Physical Support,07/12/2022,5693,,3111308318,529.20,JMC Care Solutions Limited
http://statistics.data.gov.uk/id/local-authority/38,Oxfordshire County Council,Support at Home 65+ Physical Support,29/12/2022,5693,,3111323181,529.20,JMC Care Solutions Limited
http://statistics.data.gov.uk/id/local-authority/38,Oxfordshire County Council,Support at Home 65+ Physical Support,29/12/2022,5693,,3111323182,529.20,JMC Care Solutions Limited
http://statistics.data.gov.uk/id/local-authority/38,Oxfordshire County Council,Support at Home 65+ Memory & Cognition,06/12/2022,5699,,3111306427,529.20,Mega Resources Ltd
http://statistics.data.gov.uk/id/local-authority/38,Oxfordshire County Council,Support at Home 65+ Physical Support,09/12/2022,5699,,3111309353,529.20,Mega Resources Ltd
http://statistics.data.gov.uk/id/local-authority/38,Oxfordshire County Council,Support at Home 65+ Physical Support,09/12/2022,5699,,3111309385,529.20,Mega Resources Ltd
http://statistics.data.gov.uk/id/local-authority/38,Oxfordshire County Council,Support at Home 65+ Physical Support,09/12/2022,5693,,3111309255,529.20,Oxford Private Care
http://statistics.data.gov.uk/id/local-authority/38,Oxfordshire County Council,Support at Home 65+ Physical Support,09/12/2022,5699,,3111309415,529.20,Pechiv Ltd
http://statistics.data.gov.uk/id/local-authority/38,Oxfordshire County Council,Support at Home 65+ Physical Support,06/12/2022,5699,,3111306465,529.20,PLL Care Services
http://statistics.data.gov.uk/id/local-authority/38,Oxfordshire County Council,Support at Home 65+ Physical Support,06/12/2022,5699,,3111306587,529.20,PLL Care Services
http://statistics.data.gov.uk/id/local-authority/38,Oxfordshire County Council,Support at Home 65+ Physical Support,06/12/2022,5699,,3111306617,529.20,PLL Care Services
http://statistics.data.gov.uk/id/local-authority/38,Oxfordshire County Council,Support at Home 65+ Physical Support,02/12/2022,5693,,3111305447,529.20,Same Ways Care Ltd
http://statistics.data.gov.uk/id/local-authority/38,Oxfordshire County Council,Support at Home 65+ Physical Support,29/12/2022,5693,,3111323247,529.20,Same Ways Care Ltd
http://statistics.data.gov.uk/id/local-authority/38,Oxfordshire County Council,Support at Home 65+ Physical Support,14/12/2022,5693,,3111316052,529.20,SureCare Oxfordshire
http://statistics.data.gov.uk/id/local-authority/38,Oxfordshire County Council,Support at Home 65+ Physical Support,06/12/2022,5699,,3111306745,529.20,YOD Ltd
http://statistics.data.gov.uk/id/local-authority/38,Oxfordshire County Council,Support at Home U65 Learning Disability,13/12/2022,5899,Social Care - Direct Payments,3111315083,529.28,Redacted Personal Data
http://statistics.data.gov.uk/id/local-authority/38,Oxfordshire County Council,Support at Home 65+ Physical Support,02/12/2022,5693,,3111305347,529.60,A CARING HAND LTD
http://statistics.data.gov.uk/id/local-authority/38,Oxfordshire County Council,2 YEAR OLD FUNDING,16/12/2022,5537,Payments to Other Establishments,3111317258,530.10,Little Treasure Day Nursery
http://statistics.data.gov.uk/id/local-authority/38,Oxfordshire County Council,DEVELOPMENT MANAGEME,06/12/2022,4790,"Publicity, Promotions and Advertisement",2201056962,530.10,PEOPLESCOUT LIMITED
http://statistics.data.gov.uk/id/local-authority/38,Oxfordshire County Council,REAL COST ALLOWANCES,20/12/2022,5662,B*Christmas Allowance,3111318613,530.54,Redacted Personal Data
http://statistics.data.gov.uk/id/local-authority/38,Oxfordshire County Council,Community Support Service Oxford,29/12/2022,5227,Other Transport Arrangements,3111323126,531.00,BORJAN LTD
http://statistics.data.gov.uk/id/local-authority/38,Oxfordshire County Council,Support at Home U65 Learning Disability,02/12/2022,5227,Other Transport Arrangements,3111305591,531.00,Excelsior Taxis Ltd
http://statistics.data.gov.uk/id/local-authority/38,Oxfordshire County Council,Support at Home 65+ Physical Support,06/12/2022,5689,,3111306253,531.30,Golden Services Care Ltd
http://statistics.data.gov.uk/id/local-authority/38,Oxfordshire County Council,LIBRARY COLLECTIONS,12/12/2022,4539,"Books, DVDs and CDs",3111310052,531.39,ASKEWS & HOLTS LIBRARY SERVICES LTD
http://statistics.data.gov.uk/id/local-authority/38,Oxfordshire County Council,DEVELOPMENT MANAGEME,23/12/2022,4790,"Publicity, Promotions and Advertisement",2201064183,531.41,PEOPLESCOUT LIMITED
http://statistics.data.gov.uk/id/local-authority/38,Oxfordshire County Council,LANDFILL IMPROVEMENT,01/12/2022,5526,Payments to Private Contractors,2201055320,532.00,FCC Environment (UK) Ltd
http://statistics.data.gov.uk/id/local-authority/38,Oxfordshire County Council,Delegated Health Tasks  - Over 65,02/12/2022,5691,,3111305556,532.00,Prime Social Care Services Ltd
http://statistics.data.gov.uk/id/local-authority/38,Oxfordshire County Council,COMM DRAWDOWN FUNDNG,16/12/2022,8004,Design Consultant,2201061490,532.24,Milestone Infrastructure Limited
http://statistics.data.gov.uk/id/local-authority/38,Oxfordshire County Council,Support at Home U65 Physical Support,20/12/2022,5899,Social Care - Direct Payments,3111319641,532.44,Redacted Personal Data
http://statistics.data.gov.uk/id/local-authority/38,Oxfordshire County Council,Support at Home U65 Physical Support,06/12/2022,5689,,3111306470,532.77,My Carer Ltd
http://statistics.data.gov.uk/id/local-authority/38,Oxfordshire County Council,Delegated Health Tasks  - Over 65,02/12/2022,5691,,3111305566,533.20,Bluebird Care (Oxford South & West)
http://statistics.data.gov.uk/id/local-authority/38,Oxfordshire County Council,Support at Home 65+ Physical Support,06/12/2022,5689,,3111305837,533.39,Care Outlook Ltd
http://statistics.data.gov.uk/id/local-authority/38,Oxfordshire County Council,LEAVING CARE CITY 1,29/12/2022,5227,Other Transport Arrangements,9300058418,533.60,OCC SS Oxford City Div 1 Cash
http://statistics.data.gov.uk/id/local-authority/38,Oxfordshire County Council,Family Solutions Plus Non-staff - Centra,06/12/2022,5394,Other Expenses,3500090616,534.00,Redacted Personal Data
http://statistics.data.gov.uk/id/local-authority/38,Oxfordshire County Council,Support at Home U65 Physical Support,14/12/2022,5693,,3111315997,534.08,Helping Hands
http://statistics.data.gov.uk/id/local-authority/38,Oxfordshire County Council,Support at Home U65 Sensory Support,20/12/2022,5899,Social Care - Direct Payments,3111319403,534.24,Redacted Personal Data
http://statistics.data.gov.uk/id/local-authority/38,Oxfordshire County Council,SM DISABILITIES,28/12/2022,5554,Childrens' Social Care - Direct Payments,3111322590,534.52,The Disability Resource Centre
http://statistics.data.gov.uk/id/local-authority/38,Oxfordshire County Council,SM DISABILITIES,28/12/2022,5554,Childrens' Social Care - Direct Payments,3111322591,534.52,The Disability Resource Centre
http://statistics.data.gov.uk/id/local-authority/38,Oxfordshire County Council,Support at Home U65 Learning Disability,06/12/2022,5689,,3111306243,534.66,Golden Services Care Ltd
http://statistics.data.gov.uk/id/local-authority/38,Oxfordshire County Council,Support at Home U65 Physical Support,20/12/2022,5899,Social Care - Direct Payments,3111320094,534.76,Purple Conversation Com In Co (DP)
http://statistics.data.gov.uk/id/local-authority/38,Oxfordshire County Council,FOSTERING MAIN,06/12/2022,5541,B*Foster Parents,3111307745,535.00,Redacted Personal Data
http://statistics.data.gov.uk/id/local-authority/38,Oxfordshire County Council,FOSTERING MAIN,13/12/2022,5541,B*Foster Parents,3111315733,535.00,Redacted Personal Data
http://statistics.data.gov.uk/id/local-authority/38,Oxfordshire County Council,FOSTERING MAIN,20/12/2022,5541,B*Foster Parents,3111318912,535.00,Redacted Personal Data
http://statistics.data.gov.uk/id/local-authority/38,Oxfordshire County Council,FOSTERING MAIN,28/12/2022,5541,B*Foster Parents,3111321861,535.00,Redacted Personal Data
http://statistics.data.gov.uk/id/local-authority/38,Oxfordshire County Council,NURSERY ED FUND,16/12/2022,5537,Payments to Other Establishments,3111317249,535.05,John Henry Newman Academy
http://statistics.data.gov.uk/id/local-authority/38,Oxfordshire County Council,NURSERY ED FUND,16/12/2022,5537,Payments to Other Establishments,3111317331,535.05,Rose Hill Primary School
http://statistics.data.gov.uk/id/local-authority/38,Oxfordshire County Council,NURSERY ED FUND,16/12/2022,5537,Payments to Other Establishments,3111317310,535.05,St Mary's Primary School
http://statistics.data.gov.uk/id/local-authority/38,Oxfordshire County Council,UASC 16&17,07/12/2022,4685,Clothing and Uniforms,9300058171,535.10,OCC SS Oxford City Div 1 Cash
http://statistics.data.gov.uk/id/local-authority/38,Oxfordshire County Council,Support at Home 65+ Physical Support,21/12/2022,5693,,3111320631,535.50,Care with Care Ltd
http://statistics.data.gov.uk/id/local-authority/38,Oxfordshire County Council,Support at Home U65 Physical Support,29/12/2022,5693,,3111323199,535.50,Oasis Private Care Ltd
http://statistics.data.gov.uk/id/local-authority/38,Oxfordshire County Council,Planned Maintenance,12/12/2022,3787,Premises Repairs,2201058967,535.61,R J Lift Services Ltd
http://statistics.data.gov.uk/id/local-authority/38,Oxfordshire County Council,Support at Home U65 Learning Disability,20/12/2022,5899,Social Care - Direct Payments,3111319367,535.68,Redacted Personal Data
http://statistics.data.gov.uk/id/local-authority/38,Oxfordshire County Council,Support at Home U65 Physical Support,06/12/2022,5698,,3111305769,535.69,Acquire Care Ltd
http://statistics.data.gov.uk/id/local-authority/38,Oxfordshire County Council,Support at Home U65 Mental Health,20/12/2022,5899,Social Care - Direct Payments,3111320128,535.80,Purple Conversation Com In Co (DP)
http://statistics.data.gov.uk/id/local-authority/38,Oxfordshire County Council,LANDLORD & TENANT,29/12/2022,4001,Uniform Business Rates,3500091351,536.00,Oxford City Council
http://statistics.data.gov.uk/id/local-authority/38,Oxfordshire County Council,FOSTERING MAIN,28/12/2022,5549,B*Fostering Allowance - Regulation 38,3111321696,536.90,Redacted Personal Data
http://statistics.data.gov.uk/id/local-authority/38,Oxfordshire County Council,Support at Home 65+ Physical Support,07/12/2022,5693,,3111308386,537.60,AVR (Oxon) Ltd
http://statistics.data.gov.uk/id/local-authority/38,Oxfordshire County Council,Support at Home 65+ Learning Disability,12/12/2022,5690,,3111310297,537.81,The Ice Centre
http://statistics.data.gov.uk/id/local-authority/38,Oxfordshire County Council,Support at Home 65+ Physical Support,06/12/2022,5689,,3111306317,538.34,Greigcare Home Service
http://statistics.data.gov.uk/id/local-authority/38,Oxfordshire County Council,LIBRARY COLLECTIONS,13/12/2022,4539,"Books, DVDs and CDs",3111315072,538.71,ASKEWS & HOLTS LIBRARY SERVICES LTD
http://statistics.data.gov.uk/id/local-authority/38,Oxfordshire County Council,Support at Home U65 Physical Support,21/12/2022,5696,,3111320433,538.71,Orders of St John Care Trust
http://statistics.data.gov.uk/id/local-authority/38,Oxfordshire County Council,Support at Home U65 MH OBC Contract,20/12/2022,5899,Social Care - Direct Payments,3111319243,538.88,Redacted Personal Data
http://statistics.data.gov.uk/id/local-authority/38,Oxfordshire County Council,Support at Home 65+ Physical Support,06/12/2022,5689,,3111306426,538.89,Kare Plus Oxford
http://statistics.data.gov.uk/id/local-authority/38,Oxfordshire County Council,SEN Inclusion Fund,16/12/2022,5537,Payments to Other Establishments,3111317112,539.00,Abbey Woods Academy
http://statistics.data.gov.uk/id/local-authority/38,Oxfordshire County Council,SEN Inclusion Fund,16/12/2022,5537,Payments to Other Establishments,3111317147,539.00,Benson Children & Family Services
http://statistics.data.gov.uk/id/local-authority/38,Oxfordshire County Council,SEN Inclusion Fund,16/12/2022,5537,Payments to Other Establishments,3111317125,539.00,Buckland Primary School
http://statistics.data.gov.uk/id/local-authority/38,Oxfordshire County Council,SEN Inclusion Fund,16/12/2022,5537,Payments to Other Establishments,3111317127,539.00,Buckland Primary School
http://statistics.data.gov.uk/id/local-authority/38,Oxfordshire County Council,SEN Inclusion Fund,16/12/2022,5537,Payments to Other Establishments,3111317130,539.00,Buckland Primary School
http://statistics.data.gov.uk/id/local-authority/38,Oxfordshire County Council,SEN Inclusion Fund,16/12/2022,5537,Payments to Other Establishments,3111317050,539.00,Chasewell Playgroup
http://statistics.data.gov.uk/id/local-authority/38,Oxfordshire County Council,SEN Inclusion Fund,16/12/2022,5537,Payments to Other Establishments,3111317049,539.00,Courtyard Pre-School
http://statistics.data.gov.uk/id/local-authority/38,Oxfordshire County Council,SEN Inclusion Fund,16/12/2022,5537,Payments to Other Establishments,3111317023,539.00,Cropredy Pre-School
http://statistics.data.gov.uk/id/local-authority/38,Oxfordshire County Council,SEN Inclusion Fund,16/12/2022,5537,Payments to Other Establishments,3111317024,539.00,Cropredy Pre-School
http://statistics.data.gov.uk/id/local-authority/38,Oxfordshire County Council,SEN Inclusion Fund,16/12/2022,5537,Payments to Other Establishments,3111317025,539.00,Cropredy Pre-School
http://statistics.data.gov.uk/id/local-authority/38,Oxfordshire County Council,SEN Inclusion Fund,16/12/2022,5537,Payments to Other Establishments,3111317084,539.00,"Cutteslowe Primary, Cherwell School"
http://statistics.data.gov.uk/id/local-authority/38,Oxfordshire County Council,SEN Inclusion Fund,16/12/2022,5537,Payments to Other Establishments,3111317086,539.00,"Cutteslowe Primary, Cherwell School"
http://statistics.data.gov.uk/id/local-authority/38,Oxfordshire County Council,SEN Inclusion Fund,16/12/2022,5537,Payments to Other Establishments,3111317087,539.00,"Cutteslowe Primary, Cherwell School"
http://statistics.data.gov.uk/id/local-authority/38,Oxfordshire County Council,SEN Inclusion Fund,16/12/2022,5537,Payments to Other Establishments,3111317067,539.00,Cygnets Playschool
http://statistics.data.gov.uk/id/local-authority/38,Oxfordshire County Council,SEN Inclusion Fund,16/12/2022,5537,Payments to Other Establishments,3111317151,539.00,Edith Moorhouse Primary School
http://statistics.data.gov.uk/id/local-authority/38,Oxfordshire County Council,SEN Inclusion Fund,16/12/2022,5537,Payments to Other Establishments,3111317119,539.00,Eynsham Community
http://statistics.data.gov.uk/id/local-authority/38,Oxfordshire County Council,SEN Inclusion Fund,16/12/2022,5537,Payments to Other Establishments,3111317121,539.00,Eynsham Community
http://statistics.data.gov.uk/id/local-authority/38,Oxfordshire County Council,SEN Inclusion Fund,16/12/2022,5537,Payments to Other Establishments,3111317228,539.00,Grow Learn Play Project CIC
http://statistics.data.gov.uk/id/local-authority/38,Oxfordshire County Council,SEN Inclusion Fund,16/12/2022,5537,Payments to Other Establishments,3111317232,539.00,Grow Learn Play Project CIC
http://statistics.data.gov.uk/id/local-authority/38,Oxfordshire County Council,SEN Inclusion Fund,16/12/2022,5537,Payments to Other Establishments,3111317234,539.00,Grow Learn Play Project CIC
http://statistics.data.gov.uk/id/local-authority/38,Oxfordshire County Council,SEN Inclusion Fund,16/12/2022,5537,Payments to Other Establishments,3111317237,539.00,Grow Learn Play Project CIC
http://statistics.data.gov.uk/id/local-authority/38,Oxfordshire County Council,SEN Inclusion Fund,16/12/2022,5537,Payments to Other Establishments,3111317241,539.00,Grow Learn Play Project CIC
http://statistics.data.gov.uk/id/local-authority/38,Oxfordshire County Council,SEN Inclusion Fund,16/12/2022,5537,Payments to Other Establishments,3111317245,539.00,Grow Learn Play Project CIC
http://statistics.data.gov.uk/id/local-authority/38,Oxfordshire County Council,SEN Inclusion Fund,16/12/2022,5537,Payments to Other Establishments,3111317248,539.00,Grow Learn Play Project CIC
http://statistics.data.gov.uk/id/local-authority/38,Oxfordshire County Council,SEN Inclusion Fund,16/12/2022,5537,Payments to Other Establishments,3111317253,539.00,Grow Learn Play Project CIC
http://statistics.data.gov.uk/id/local-authority/38,Oxfordshire County Council,SEN Inclusion Fund,16/12/2022,5537,Payments to Other Establishments,3111317036,539.00,Hardwick & Arden Pre-School
http://statistics.data.gov.uk/id/local-authority/38,Oxfordshire County Council,SEN Inclusion Fund,16/12/2022,5537,Payments to Other Establishments,3111317007,539.00,Harriers Banbury Academy
http://statistics.data.gov.uk/id/local-authority/38,Oxfordshire County Council,SEN Inclusion Fund,16/12/2022,5537,Payments to Other Establishments,3111317008,539.00,Harriers Banbury Academy
http://statistics.data.gov.uk/id/local-authority/38,Oxfordshire County Council,SEN Inclusion Fund,16/12/2022,5537,Payments to Other Establishments,3111317009,539.00,Harriers Banbury Academy
http://statistics.data.gov.uk/id/local-authority/38,Oxfordshire County Council,SEN Inclusion Fund,16/12/2022,5537,Payments to Other Establishments,3111317010,539.00,Harriers Banbury Academy
http://statistics.data.gov.uk/id/local-authority/38,Oxfordshire County Council,SEN Inclusion Fund,16/12/2022,5537,Payments to Other Establishments,3111317011,539.00,Harriers Banbury Academy
http://statistics.data.gov.uk/id/local-authority/38,Oxfordshire County Council,SEN Inclusion Fund,16/12/2022,5537,Payments to Other Establishments,3111317077,539.00,John Henry Newman Academy
http://statistics.data.gov.uk/id/local-authority/38,Oxfordshire County Council,SEN Inclusion Fund,16/12/2022,5537,Payments to Other Establishments,3111317079,539.00,John Henry Newman Academy
http://statistics.data.gov.uk/id/local-authority/38,Oxfordshire County Council,SEN Inclusion Fund,16/12/2022,5537,Payments to Other Establishments,3111317013,539.00,Kingfisher Kindergarten
http://statistics.data.gov.uk/id/local-authority/38,Oxfordshire County Council,SEN Inclusion Fund,16/12/2022,5537,Payments to Other Establishments,3111317014,539.00,Kingfisher Kindergarten
http://statistics.data.gov.uk/id/local-authority/38,Oxfordshire County Council,SEN Inclusion Fund,16/12/2022,5537,Payments to Other Establishments,3111317015,539.00,Kingfisher Kindergarten
http://statistics.data.gov.uk/id/local-authority/38,Oxfordshire County Council,SEN Inclusion Fund,16/12/2022,5537,Payments to Other Establishments,3111317180,539.00,Larkrise Primary School
http://statistics.data.gov.uk/id/local-authority/38,Oxfordshire County Council,SEN Inclusion Fund,16/12/2022,5537,Payments to Other Establishments,3111317182,539.00,Larkrise Primary School
http://statistics.data.gov.uk/id/local-authority/38,Oxfordshire County Council,SEN Inclusion Fund,16/12/2022,5537,Payments to Other Establishments,3111317185,539.00,Larkrise Primary School
http://statistics.data.gov.uk/id/local-authority/38,Oxfordshire County Council,SEN Inclusion Fund,16/12/2022,5537,Payments to Other Establishments,3111317056,539.00,Little Bears Pre-School (PFSU)
http://statistics.data.gov.uk/id/local-authority/38,Oxfordshire County Council,SEN Inclusion Fund,16/12/2022,5537,Payments to Other Establishments,3111317069,539.00,Little Dots Daycare
http://statistics.data.gov.uk/id/local-authority/38,Oxfordshire County Council,SEN Inclusion Fund,16/12/2022,5537,Payments to Other Establishments,3111317071,539.00,Little Dots Daycare
http://statistics.data.gov.uk/id/local-authority/38,Oxfordshire County Council,SEN Inclusion Fund,16/12/2022,5537,Payments to Other Establishments,3111317073,539.00,Little Dots Daycare
http://statistics.data.gov.uk/id/local-authority/38,Oxfordshire County Council,SEN Inclusion Fund,16/12/2022,5537,Payments to Other Establishments,3111317161,539.00,Little Dots Daycare Ltd
http://statistics.data.gov.uk/id/local-authority/38,Oxfordshire County Council,SEN Inclusion Fund,16/12/2022,5537,Payments to Other Establishments,3111317163,539.00,Little Dots Daycare Ltd
http://statistics.data.gov.uk/id/local-authority/38,Oxfordshire County Council,SEN Inclusion Fund,16/12/2022,5537,Payments to Other Establishments,3111317016,539.00,Little Pippins Pre-Schoo
http://statistics.data.gov.uk/id/local-authority/38,Oxfordshire County Council,SEN Inclusion Fund,16/12/2022,5537,Payments to Other Establishments,3111317046,539.00,Long Hanborough Playgroup
http://statistics.data.gov.uk/id/local-authority/38,Oxfordshire County Council,SEN Inclusion Fund,16/12/2022,5537,Payments to Other Establishments,3111317156,539.00,Longford Park Primary School
http://statistics.data.gov.uk/id/local-authority/38,Oxfordshire County Council,SEN Inclusion Fund,16/12/2022,5537,Payments to Other Establishments,3111317143,539.00,Mortimer Hall Pre-School CIO
http://statistics.data.gov.uk/id/local-authority/38,Oxfordshire County Council,SEN Inclusion Fund,16/12/2022,5537,Payments to Other Establishments,3111317145,539.00,Mortimer Hall Pre-School CIO
http://statistics.data.gov.uk/id/local-authority/38,Oxfordshire County Council,FOSTERING MAIN,06/12/2022,5549,B*Fostering Allowance - Regulation 38,3111307736,539.00,Redacted Personal Data
http://statistics.data.gov.uk/id/local-authority/38,Oxfordshire County Council,FOSTERING MAIN,13/12/2022,5549,B*Fostering Allowance - Regulation 38,3111315728,539.00,Redacted Personal Data
http://statistics.data.gov.uk/id/local-authority/38,Oxfordshire County Council,FOSTERING MAIN,28/12/2022,5549,B*Fostering Allowance - Regulation 38,3111321856,539.00,Redacted Personal Data
http://statistics.data.gov.uk/id/local-authority/38,Oxfordshire County Council,SEN Inclusion Fund,16/12/2022,5537,Payments to Other Establishments,3111317104,539.00,Orchard Meadow Primary School
http://statistics.data.gov.uk/id/local-authority/38,Oxfordshire County Council,SEN Inclusion Fund,16/12/2022,5537,Payments to Other Establishments,3111317192,539.00,Roots for Life Thame
http://statistics.data.gov.uk/id/local-authority/38,Oxfordshire County Council,SEN Inclusion Fund,16/12/2022,5537,Payments to Other Establishments,3111317194,539.00,Roots for Life Thame
http://statistics.data.gov.uk/id/local-authority/38,Oxfordshire County Council,SEN Inclusion Fund,16/12/2022,5537,Payments to Other Establishments,3111317198,539.00,Roots for Life Thame
http://statistics.data.gov.uk/id/local-authority/38,Oxfordshire County Council,SEN Inclusion Fund,16/12/2022,5537,Payments to Other Establishments,3111317200,539.00,Roots for Life Thame
http://statistics.data.gov.uk/id/local-authority/38,Oxfordshire County Council,SEN Inclusion Fund,16/12/2022,5537,Payments to Other Establishments,3111317202,539.00,Roots for Life Thame
http://statistics.data.gov.uk/id/local-authority/38,Oxfordshire County Council,SEN Inclusion Fund,16/12/2022,5537,Payments to Other Establishments,3111317204,539.00,Roots for Life Thame
http://statistics.data.gov.uk/id/local-authority/38,Oxfordshire County Council,SEN Inclusion Fund,16/12/2022,5537,Payments to Other Establishments,3111317206,539.00,Roots for Life Thame
http://statistics.data.gov.uk/id/local-authority/38,Oxfordshire County Council,SEN Inclusion Fund,16/12/2022,5537,Payments to Other Establishments,3111317208,539.00,Roots for Life Thame
http://statistics.data.gov.uk/id/local-authority/38,Oxfordshire County Council,SEN Inclusion Fund,16/12/2022,5537,Payments to Other Establishments,3111317168,539.00,Rose Hill Primary School
http://statistics.data.gov.uk/id/local-authority/38,Oxfordshire County Council,SEN Inclusion Fund,16/12/2022,5537,Payments to Other Establishments,3111317170,539.00,Rose Hill Primary School
http://statistics.data.gov.uk/id/local-authority/38,Oxfordshire County Council,SEN Inclusion Fund,16/12/2022,5537,Payments to Other Establishments,3111317132,539.00,St Josephs Catholic Primary School
http://statistics.data.gov.uk/id/local-authority/38,Oxfordshire County Council,SEN Inclusion Fund,16/12/2022,5537,Payments to Other Establishments,3111317164,539.00,St Mary's Primary School
http://statistics.data.gov.uk/id/local-authority/38,Oxfordshire County Council,SEN Inclusion Fund,16/12/2022,5537,Payments to Other Establishments,3111317089,539.00,St Thomas More Primary School - Aca
http://statistics.data.gov.uk/id/local-authority/38,Oxfordshire County Council,SEN Inclusion Fund,16/12/2022,5537,Payments to Other Establishments,3111317027,539.00,Stonesfield Pre-School
http://statistics.data.gov.uk/id/local-authority/38,Oxfordshire County Council,SEN Inclusion Fund,16/12/2022,5537,Payments to Other Establishments,3111317176,539.00,Tackley COFE Primary School
http://statistics.data.gov.uk/id/local-authority/38,Oxfordshire County Council,SEN Inclusion Fund,16/12/2022,5537,Payments to Other Establishments,3111317134,539.00,The Warriner Multi Academy Trust
http://statistics.data.gov.uk/id/local-authority/38,Oxfordshire County Council,SEN Inclusion Fund,16/12/2022,5537,Payments to Other Establishments,3111317113,539.00,Wantage CE Primary School # Academy
http://statistics.data.gov.uk/id/local-authority/38,Oxfordshire County Council,SEN Inclusion Fund,16/12/2022,5537,Payments to Other Establishments,3111317093,539.00,Willowcroft Community School
http://statistics.data.gov.uk/id/local-authority/38,Oxfordshire County Council,SEN Inclusion Fund,16/12/2022,5537,Payments to Other Establishments,3111317095,539.00,Willowcroft Community School
http://statistics.data.gov.uk/id/local-authority/38,Oxfordshire County Council,SEN Inclusion Fund,16/12/2022,5537,Payments to Other Establishments,3111317097,539.00,Willowcroft Community School
http://statistics.data.gov.uk/id/local-authority/38,Oxfordshire County Council,SEN Inclusion Fund,16/12/2022,5537,Payments to Other Establishments,3111317100,539.00,Willowcroft Community School
http://statistics.data.gov.uk/id/local-authority/38,Oxfordshire County Council,SEN Inclusion Fund,16/12/2022,5537,Payments to Other Establishments,3111317102,539.00,Willowcroft Community School
http://statistics.data.gov.uk/id/local-authority/38,Oxfordshire County Council,SEN Inclusion Fund,16/12/2022,5537,Payments to Other Establishments,3111317227,539.00,Windrush Church of England Primary
http://statistics.data.gov.uk/id/local-authority/38,Oxfordshire County Council,SEN Inclusion Fund,16/12/2022,5537,Payments to Other Establishments,3111317212,539.00,Witney Community Primary Nursery
http://statistics.data.gov.uk/id/local-authority/38,Oxfordshire County Council,SEN Inclusion Fund,16/12/2022,5537,Payments to Other Establishments,3111317216,539.00,Witney Community Primary Nursery
http://statistics.data.gov.uk/id/local-authority/38,Oxfordshire County Council,SEN Inclusion Fund,16/12/2022,5537,Payments to Other Establishments,3111317136,539.00,Wolvercote Primary School
http://statistics.data.gov.uk/id/local-authority/38,Oxfordshire County Council,Support at Home 65+ Mental Health,20/12/2022,5899,Social Care - Direct Payments,3111319770,539.08,Purple Conversation Com In Co (DP)
http://statistics.data.gov.uk/id/local-authority/38,Oxfordshire County Council,Support at Home 65+ Physical Support,06/12/2022,5698,,3111306428,539.97,KCARE NURSING AGENCY
http://statistics.data.gov.uk/id/local-authority/38,Oxfordshire County Council,LIBRARY COLLECTIONS,19/12/2022,4706,Stationery and other office consumables,2201062268,540.00,Bibliotheca Ltd
http://statistics.data.gov.uk/id/local-authority/38,Oxfordshire County Council,Family Solutions Plus Non-staff - North,02/12/2022,5227,Other Transport Arrangements,3111305450,540.00,Bicester Cars UK Ltd
http://statistics.data.gov.uk/id/local-authority/38,Oxfordshire County Council,Household Support Fund 3,22/12/2022,7690,Additional Grant for Schools,3111321323,540.00,Busy Bees Day Nursery (Bicester)
http://statistics.data.gov.uk/id/local-authority/38,Oxfordshire County Council,Household Support Fund 3,22/12/2022,7690,Additional Grant for Schools,3111321336,540.00,Cherry Tree Nursery (Oxford)
http://statistics.data.gov.uk/id/local-authority/38,Oxfordshire County Council,Household Support Fund 3,22/12/2022,7690,Additional Grant for Schools,3111321566,540.00,Co-Op Oxford Nursery
http://statistics.data.gov.uk/id/local-authority/38,Oxfordshire County Council,Household Support Fund 3,16/12/2022,7690,Additional Grant for Schools,3111317890,540.00,Gagle Brook Primary School
http://statistics.data.gov.uk/id/local-authority/38,Oxfordshire County Council,Household Support Fund 3,22/12/2022,7690,Additional Grant for Schools,3111321383,540.00,Grovelands Park Pre-School
http://statistics.data.gov.uk/id/local-authority/38,Oxfordshire County Council,MEADOWBROOK TRANSPT,07/12/2022,4330,Transport to School Activities,3111308451,540.00,Her Ride Limited
http://statistics.data.gov.uk/id/local-authority/38,Oxfordshire County Council,Oxfordshire Adoption Support Fund,14/12/2022,4861,Hired and Contracted Services,2201060968,540.00,Joanna Cowley
http://statistics.data.gov.uk/id/local-authority/38,Oxfordshire County Council,Oxfordshire Adoption Support Fund,14/12/2022,4861,Hired and Contracted Services,2201060980,540.00,Joanna Cowley
http://statistics.data.gov.uk/id/local-authority/38,Oxfordshire County Council,Household Support Fund 3,22/12/2022,7690,Additional Grant for Schools,3111321455,540.00,LITTLE TREASURES ACADEMY
http://statistics.data.gov.uk/id/local-authority/38,Oxfordshire County Council,Household Support Fund 3,22/12/2022,7690,Additional Grant for Schools,3111321457,540.00,Longford Park Primary School
http://statistics.data.gov.uk/id/local-authority/38,Oxfordshire County Council,CORPORATE SECURITY,05/12/2022,4111,Security Costs,2201056864,540.00,Oxford Security Services Ltd
http://statistics.data.gov.uk/id/local-authority/38,Oxfordshire County Council,Household Support Fund 3,22/12/2022,7690,Additional Grant for Schools,3111321512,540.00,Rose Hill Pre-School
http://statistics.data.gov.uk/id/local-authority/38,Oxfordshire County Council,Household Support Fund 3,22/12/2022,7690,Additional Grant for Schools,3111321538,540.00,St Hugh of Lincoln Nursery School
http://statistics.data.gov.uk/id/local-authority/38,Oxfordshire County Council,MAINSTREAM-SECONDARY,12/12/2022,4330,Transport to School Activities,3111309637,540.00,Woodstock Travel
http://statistics.data.gov.uk/id/local-authority/38,Oxfordshire County Council,LIBRARY COLLECTIONS,07/12/2022,4539,"Books, DVDs and CDs",3111307942,540.09,ASKEWS & HOLTS LIBRARY SERVICES LTD
http://statistics.data.gov.uk/id/local-authority/38,Oxfordshire County Council,Support at Home U65 Learning Disability,20/12/2022,5899,Social Care - Direct Payments,3111319997,540.12,Purple Conversation Com In Co (DP)
http://statistics.data.gov.uk/id/local-authority/38,Oxfordshire County Council,Family Solutions Plus Non-staff - South,14/12/2022,5227,Other Transport Arrangements,9300058255,540.80,OCC SS Vale of White Horse Cash
http://statistics.data.gov.uk/id/local-authority/38,Oxfordshire County Council,Support at Home U65 Learning Disability,20/12/2022,5899,Social Care - Direct Payments,3111319067,541.72,Connection Support (Oxford)
http://statistics.data.gov.uk/id/local-authority/38,Oxfordshire County Council,Community Support Service Bicester,06/12/2022,4232,Vehicle Fuel,2201056983,541.79,Allstar Business Solutions Ltd
http://statistics.data.gov.uk/id/local-authority/38,Oxfordshire County Council,Support at Home 65+ Physical Support,06/12/2022,5689,,3111306329,542.00,Greigcare Home Service
http://statistics.data.gov.uk/id/local-authority/38,Oxfordshire County Council,FOSTERING MAIN,06/12/2022,5545,B*Fostering Enhancements - Level 2,3111307498,542.00,Redacted Personal Data
http://statistics.data.gov.uk/id/local-authority/38,Oxfordshire County Council,FOSTERING MAIN,13/12/2022,5545,B*Fostering Enhancements - Level 2,3111315520,542.00,Redacted Personal Data
http://statistics.data.gov.uk/id/local-authority/38,Oxfordshire County Council,FOSTERING MAIN,20/12/2022,5545,B*Fostering Enhancements - Level 2,3111318649,542.00,Redacted Personal Data
http://statistics.data.gov.uk/id/local-authority/38,Oxfordshire County Council,Support at Home U65 Physical Support,20/12/2022,5899,Social Care - Direct Payments,3111319646,542.00,Redacted Personal Data
http://statistics.data.gov.uk/id/local-authority/38,Oxfordshire County Council,Support at Home 65+ Physical Support,06/12/2022,5689,,3111305883,542.54,Caremark (West Oxfordshire & Cherwe
http://statistics.data.gov.uk/id/local-authority/38,Oxfordshire County Council,Support at Home U65 Learning Disability,20/12/2022,5899,Social Care - Direct Payments,3111319483,542.72,Redacted Personal Data
http://statistics.data.gov.uk/id/local-authority/38,Oxfordshire County Council,NURSERY ED FUND,16/12/2022,5537,Payments to Other Establishments,3111317287,542.88,The Treehouse Thame Limited
http://statistics.data.gov.uk/id/local-authority/38,Oxfordshire County Council,Oxfordshire Adoption Support Fund,13/12/2022,4861,Hired and Contracted Services,2201060409,544.00,The Owl Centre Ltd
http://statistics.data.gov.uk/id/local-authority/38,Oxfordshire County Council,Support at Home U65 Autism /Abated,12/12/2022,5690,,3111310517,544.05,Autism at Kingwood Limited
http://statistics.data.gov.uk/id/local-authority/38,Oxfordshire County Council,Support at Home U65 Learning Disability,12/12/2022,5690,,3111310383,544.71,Turnstyle
http://statistics.data.gov.uk/id/local-authority/38,Oxfordshire County Council,Support at Home U65 MH OBC Contract,06/12/2022,5899,Social Care - Direct Payments,3111307216,544.84,Rosekel Resourcing Ltd
http://statistics.data.gov.uk/id/local-authority/38,Oxfordshire County Council,Support at Home U65 MH OBC Contract,20/12/2022,5899,Social Care - Direct Payments,3111320355,544.84,Rosekel Resourcing Ltd
http://statistics.data.gov.uk/id/local-authority/38,Oxfordshire County Council,STI TESTING+TREATMEN,01/12/2022,4940,Other Services,3111305617,544.86,Imperial College Healthcare
http://statistics.data.gov.uk/id/local-authority/38,Oxfordshire County Council,KNIGHTS COURT,07/12/2022,4092,General Refuse Collection and Disposal,2201057720,545.00,Headington Carriers Limited
http://statistics.data.gov.uk/id/local-authority/38,Oxfordshire County Council,LIABILITY,14/12/2022,3153,,3111315826,545.00,OCC One Time Vendor
http://statistics.data.gov.uk/id/local-authority/38,Oxfordshire County Council,UASC 16&17,07/12/2022,5663,B*Birthday Allowance,9300058170,545.05,OCC SS Oxford City Div 1 Cash
http://statistics.data.gov.uk/id/local-authority/38,Oxfordshire County Council,Support at Home 65+ Physical Support,06/12/2022,5699,,3111306565,545.15,PLL Care Services
http://statistics.data.gov.uk/id/local-authority/38,Oxfordshire County Council,Support at Home 65+ Physical Support,21/12/2022,5696,,3111320490,545.33,Orders of St John Care Trust
http://statistics.data.gov.uk/id/local-authority/38,Oxfordshire County Council,Support at Home U65 Memory & Cognition,20/12/2022,5899,Social Care - Direct Payments,3111320269,545.56,Purple Conversation Com In Co (DP)
http://statistics.data.gov.uk/id/local-authority/38,Oxfordshire County Council,Support at Home 65+ Learning Disability,06/12/2022,5689,,3111306311,545.66,Greigcare Home Service
http://statistics.data.gov.uk/id/local-authority/38,Oxfordshire County Council,FOSTERING MAIN,06/12/2022,5541,B*Foster Parents,3111307535,546.00,Redacted Personal Data
http://statistics.data.gov.uk/id/local-authority/38,Oxfordshire County Council,FOSTERING MAIN,13/12/2022,5541,B*Foster Parents,3111315584,546.00,Redacted Personal Data
http://statistics.data.gov.uk/id/local-authority/38,Oxfordshire County Council,FOSTERING MAIN,20/12/2022,5541,B*Foster Parents,3111318697,546.00,Redacted Personal Data
http://statistics.data.gov.uk/id/local-authority/38,Oxfordshire County Council,FOSTERING MAIN,28/12/2022,5541,B*Foster Parents,3111321769,546.00,Redacted Personal Data
http://statistics.data.gov.uk/id/local-authority/38,Oxfordshire County Council,FOSTERING MAIN,06/12/2022,5541,B*Foster Parents,3111307544,546.00,Redacted Personal Data
http://statistics.data.gov.uk/id/local-authority/38,Oxfordshire County Council,FOSTERING MAIN,06/12/2022,5541,B*Foster Parents,3111307546,546.00,Redacted Personal Data
http://statistics.data.gov.uk/id/local-authority/38,Oxfordshire County Council,FOSTERING MAIN,13/12/2022,5541,B*Foster Parents,3111315601,546.00,Redacted Personal Data
http://statistics.data.gov.uk/id/local-authority/38,Oxfordshire County Council,FOSTERING MAIN,20/12/2022,5541,B*Foster Parents,3111318709,546.00,Redacted Personal Data
http://statistics.data.gov.uk/id/local-authority/38,Oxfordshire County Council,FOSTERING MAIN,20/12/2022,5541,B*Foster Parents,3111318711,546.00,Redacted Personal Data
http://statistics.data.gov.uk/id/local-authority/38,Oxfordshire County Council,FOSTERING MAIN,28/12/2022,5541,B*Foster Parents,3111321774,546.00,Redacted Personal Data
http://statistics.data.gov.uk/id/local-authority/38,Oxfordshire County Council,FOSTERING MAIN,28/12/2022,5541,B*Foster Parents,3111321775,546.00,Redacted Personal Data
http://statistics.data.gov.uk/id/local-authority/38,Oxfordshire County Council,Support at Home 65+ Physical Support,20/12/2022,5899,Social Care - Direct Payments,3111320037,546.00,Purple Conversation Com In Co (DP)
http://statistics.data.gov.uk/id/local-authority/38,Oxfordshire County Council,Support at Home U65 Sensory Support,20/12/2022,5899,Social Care - Direct Payments,3111319400,546.44,Redacted Personal Data
http://statistics.data.gov.uk/id/local-authority/38,Oxfordshire County Council,Support at Home U65 Learning Disability,16/12/2022,5693,,3111316764,547.25,Autism at Kingwood Limited
http://statistics.data.gov.uk/id/local-authority/38,Oxfordshire County Council,Support at Home U65 Physical Support,20/12/2022,5899,Social Care - Direct Payments,3111319972,547.76,Purple Conversation Com In Co (DP)
http://statistics.data.gov.uk/id/local-authority/38,Oxfordshire County Council,2 YEAR OLD FUNDING,16/12/2022,5537,Payments to Other Establishments,3111317048,547.77,Courtyard Pre-School
http://statistics.data.gov.uk/id/local-authority/38,Oxfordshire County Council,Support at Home 65+ Physical Support,20/12/2022,5899,Social Care - Direct Payments,3111319305,547.80,Redacted Personal Data
http://statistics.data.gov.uk/id/local-authority/38,Oxfordshire County Council,NURSERY ED FUND,16/12/2022,5537,Payments to Other Establishments,3111316968,548.10,Busy Bees at Oxford
http://statistics.data.gov.uk/id/local-authority/38,Oxfordshire County Council,NURSERY ED FUND,16/12/2022,5537,Payments to Other Establishments,3111316940,548.10,Chasewell Playgroup
http://statistics.data.gov.uk/id/local-authority/38,Oxfordshire County Council,NURSERY ED FUND,16/12/2022,5537,Payments to Other Establishments,3111317006,548.10,Dr South's CE Primary School
http://statistics.data.gov.uk/id/local-authority/38,Oxfordshire County Council,NURSERY ED FUND,16/12/2022,5537,Payments to Other Establishments,3111317316,548.10,Hazel Bridle
http://statistics.data.gov.uk/id/local-authority/38,Oxfordshire County Council,NURSERY ED FUND,16/12/2022,5537,Payments to Other Establishments,3111317324,548.10,St Nicholas CE Infants'School
http://statistics.data.gov.uk/id/local-authority/38,Oxfordshire County Council,,16/12/2022,1448,Blackfield Inc & Exp A/c,3111316738,548.30,OCC One Time Vendor
http://statistics.data.gov.uk/id/local-authority/38,Oxfordshire County Council,FAM GRP CONFERENCES,21/12/2022,4940,Other Services,2201063725,548.40,Jessica Howards
http://statistics.data.gov.uk/id/local-authority/38,Oxfordshire County Council,Support at Home 65+ Physical Support,06/12/2022,5689,,3111306746,548.64,PLL Care Services
http://statistics.data.gov.uk/id/local-authority/38,Oxfordshire County Council,Support at Home U65 Learning Disability,20/12/2022,5899,Social Care - Direct Payments,3111319609,548.99,Redacted Personal Data
http://statistics.data.gov.uk/id/local-authority/38,Oxfordshire County Council,HIGHWAYS GENERAL,01/12/2022,4001,Uniform Business Rates,3500090498,549.00,South Oxfordshire District Council
http://statistics.data.gov.uk/id/local-authority/38,Oxfordshire County Council,Support at Home U65 Learning Disability,12/12/2022,5690,,3111310483,549.23,ADVANCE HOUSING & SUPPORT LTD
http://statistics.data.gov.uk/id/local-authority/38,Oxfordshire County Council,LEGAL BUDGET,01/12/2022,5251,Legal Costs,2201055519,549.76,Kay-Marie Taylor-Duke
http://statistics.data.gov.uk/id/local-authority/38,Oxfordshire County Council,Family Solutions Plus Non-staff - North,12/12/2022,5227,Other Transport Arrangements,3111310081,550.00,Blackstar Chauffeur Ltd T/A Blackst
http://statistics.data.gov.uk/id/local-authority/38,Oxfordshire County Council,ASC WORKFORCE STRAT,08/12/2022,4790,"Publicity, Promotions and Advertisement",2201058483,550.00,Entec Si Limited
http://statistics.data.gov.uk/id/local-authority/38,Oxfordshire County Council,Family Solutions Plus Non-staff - South,02/12/2022,3100,Educational and Vocational Training,2201056082,550.00,Family Links
http://statistics.data.gov.uk/id/local-authority/38,Oxfordshire County Council,UASC 16&17,06/12/2022,5227,Other Transport Arrangements,3111307909,550.00,Go Green Taxis
http://statistics.data.gov.uk/id/local-authority/38,Oxfordshire County Council,Early Help - Abingdon,29/12/2022,5227,Other Transport Arrangements,3111323066,550.00,Her Ride Limited
http://statistics.data.gov.uk/id/local-authority/38,Oxfordshire County Council,LEGAL SERVICES,09/12/2022,5251,Legal Costs,2201058679,550.00,Kate Ferguson
http://statistics.data.gov.uk/id/local-authority/38,Oxfordshire County Council,Planned Maintenance,07/12/2022,3787,Premises Repairs,2201057386,550.00,Marlowe Fire & Security Ltd
http://statistics.data.gov.uk/id/local-authority/38,Oxfordshire County Council,LEGAL SERVICES,09/12/2022,5251,Legal Costs,2201058571,550.00,Ms Sian Cox
http://statistics.data.gov.uk/id/local-authority/38,Oxfordshire County Council,Reactive Maintenance,08/12/2022,3821,Grounds Maintenance Contracts,2201057914,550.00,Parker Contract Cleaning
http://statistics.data.gov.uk/id/local-authority/38,Oxfordshire County Council,L&D CORE PROGRAMME,05/12/2022,3103,Other Training Courses and Qualification,2201056224,550.00,Premier Partnership
http://statistics.data.gov.uk/id/local-authority/38,Oxfordshire County Council,L&D CORE PROGRAMME,16/12/2022,3103,Other Training Courses and Qualification,2201062149,550.00,Premier Partnership
http://statistics.data.gov.uk/id/local-authority/38,Oxfordshire County Council,LEGAL SERVICES,21/12/2022,5251,Legal Costs,2201063792,550.00,Vicky Reynolds
http://statistics.data.gov.uk/id/local-authority/38,Oxfordshire County Council,SEN TRANSPORT,19/12/2022,4320,Pupil / Client Travel Reimbursement,3111318104,550.71,Redacted Personal Data
http://statistics.data.gov.uk/id/local-authority/38,Oxfordshire County Council,CHC Fast Track - Sup at Homes - Over 65,08/12/2022,5691,,3111308827,551.00,Redacted Personal Data
http://statistics.data.gov.uk/id/local-authority/38,Oxfordshire County Council,Support at Home 65+ Physical Support,16/12/2022,5696,,3111316848,551.10,Radis Community Care
http://statistics.data.gov.uk/id/local-authority/38,Oxfordshire County Council,Support at Home U65 Physical Support,20/12/2022,5899,Social Care - Direct Payments,3111320049,551.12,Purple Conversation Com In Co (DP)
http://statistics.data.gov.uk/id/local-authority/38,Oxfordshire County Council,Early Years Pupil Premium,16/12/2022,5537,Payments to Other Establishments,3111317209,551.46,Harpsden Pre-School Playgroup
http://statistics.data.gov.uk/id/local-authority/38,Oxfordshire County Council,Support at Home U65 Learning Disability,06/12/2022,5682,,3111307068,551.70,The Brandon Trust
http://statistics.data.gov.uk/id/local-authority/38,Oxfordshire County Council,Delegated Health Tasks  - Under 65,22/12/2022,5691,,3111321161,551.80,FiNN Homecare Ltd
http://statistics.data.gov.uk/id/local-authority/38,Oxfordshire County Council,Support at Home 65+ Physical Support,16/12/2022,5227,Other Transport Arrangements,3111317384,551.84,LINK SHIRES LTD
http://statistics.data.gov.uk/id/local-authority/38,Oxfordshire County Council,Support at Home U65 Learning Disability,06/12/2022,5689,,3111305935,552.13,Oxfordshire Crossroads
http://statistics.data.gov.uk/id/local-authority/38,Oxfordshire County Council,Support at Home U65 Physical Support,20/12/2022,5899,Social Care - Direct Payments,3111320198,552.76,Purple Conversation Com In Co (DP)
http://statistics.data.gov.uk/id/local-authority/38,Oxfordshire County Council,Support at Home 65+ Physical Support,06/12/2022,5699,,3111305922,553.56,Agincare UK Ltd
http://statistics.data.gov.uk/id/local-authority/38,Oxfordshire County Council,OPERATIONS,08/12/2022,4498,Health and Safety Equipment,2201058065,553.56,Vimpex Ltd
http://statistics.data.gov.uk/id/local-authority/38,Oxfordshire County Council,Support at Home U65 Other /Soc Isolation,12/12/2022,5690,,3111310498,553.57,Headway Oxford
http://statistics.data.gov.uk/id/local-authority/38,Oxfordshire County Council,Continuing Care - Support at Home - U65,22/12/2022,5691,,3111321072,554.00,OCC One Time Vendor
http://statistics.data.gov.uk/id/local-authority/38,Oxfordshire County Council,Support at Home 65+ Physical Support,09/12/2022,5699,,3111309332,554.40,CaringPlus Healthcare Services Ltd
http://statistics.data.gov.uk/id/local-authority/38,Oxfordshire County Council,Early Years SEN Funding,02/12/2022,5537,Payments to Other Establishments,3111305481,554.40,Chipping Warden School Kindergarten
http://statistics.data.gov.uk/id/local-authority/38,Oxfordshire County Council,Support at Home 65+ Physical Support,09/12/2022,5699,,3111309357,554.40,Mega Resources Ltd
http://statistics.data.gov.uk/id/local-authority/38,Oxfordshire County Council,Support at Home 65+ Learning Disability,20/12/2022,5899,Social Care - Direct Payments,3111319895,554.48,Purple Conversation Com In Co (DP)
http://statistics.data.gov.uk/id/local-authority/38,Oxfordshire County Council,Support at Home U65 Learning Disability,20/12/2022,5899,Social Care - Direct Payments,3111319374,555.44,Redacted Personal Data
http://statistics.data.gov.uk/id/local-authority/38,Oxfordshire County Council,Support at Home U65 Physical Support,02/12/2022,5693,,3111305332,555.80,A CARING HAND LTD
http://statistics.data.gov.uk/id/local-authority/38,Oxfordshire County Council,Support at Home 65+ Physical Support,02/12/2022,5693,,3111305337,555.80,A CARING HAND LTD
http://statistics.data.gov.uk/id/local-authority/38,Oxfordshire County Council,Support at Home 65+ Physical Support,09/12/2022,5693,,3111309209,555.80,CaringPlus Healthcare Services Ltd
http://statistics.data.gov.uk/id/local-authority/38,Oxfordshire County Council,LAC PUPIL PREMIUM,14/12/2022,5537,Payments to Other Establishments,3111316111,556.00,Westwood Farm Schools Fed
http://statistics.data.gov.uk/id/local-authority/38,Oxfordshire County Council,Fostering tool kit,23/12/2022,5520,Payments to Voluntary bodies,2201064199,556.20,Kidlington Baptist Church
http://statistics.data.gov.uk/id/local-authority/38,Oxfordshire County Council,Support at Home 65+ Memory & Cognition,20/12/2022,5899,Social Care - Direct Payments,3111319207,556.52,Redacted Personal Data
http://statistics.data.gov.uk/id/local-authority/38,Oxfordshire County Council,FOSTERING MAIN,06/12/2022,5549,B*Fostering Allowance - Regulation 38,3111307589,556.90,Redacted Personal Data
http://statistics.data.gov.uk/id/local-authority/38,Oxfordshire County Council,Support at Home U65 Learning Disability,20/12/2022,5899,Social Care - Direct Payments,3111319964,557.84,Purple Conversation Com In Co (DP)
http://statistics.data.gov.uk/id/local-authority/38,Oxfordshire County Council,Support at Home U65 MH OBC Contract,06/12/2022,5689,,3111306857,558.04,Response Organisation
http://statistics.data.gov.uk/id/local-authority/38,Oxfordshire County Council,Support at Home U65 MH OBC Contract,06/12/2022,5689,,3111306887,558.04,Response Organisation
http://statistics.data.gov.uk/id/local-authority/38,Oxfordshire County Council,Children in Care Non-staffing - North,16/12/2022,5365,Non-Staff Subsistence and Expenses,9300058305,559.05,OCC SS Witney Area Off Cash
http://statistics.data.gov.uk/id/local-authority/38,Oxfordshire County Council,Support at Home U65 MH OBC Contract,20/12/2022,5899,Social Care - Direct Payments,3111319337,559.12,Redacted Personal Data
http://statistics.data.gov.uk/id/local-authority/38,Oxfordshire County Council,Support at Home U65 MH OBC Contract,20/12/2022,5899,Social Care - Direct Payments,3111319101,559.12,Redacted Personal Data
http://statistics.data.gov.uk/id/local-authority/38,Oxfordshire County Council,Support at Home U65 Learning Disability,12/12/2022,5690,,3111310542,559.73,The Camden Society
http://statistics.data.gov.uk/id/local-authority/38,Oxfordshire County Council,Transition Team,28/12/2022,4330,Transport to School Activities,3111322619,560.00,Banbury Taxis
http://statistics.data.gov.uk/id/local-authority/38,Oxfordshire County Council,Support at Home U65 MH OBC Contract,20/12/2022,5899,Social Care - Direct Payments,3111319706,560.00,Redacted Personal Data
http://statistics.data.gov.uk/id/local-authority/38,Oxfordshire County Council,Support at Home U65 Learning Disability,20/12/2022,5899,Social Care - Direct Payments,3111319258,560.00,Redacted Personal Data
http://statistics.data.gov.uk/id/local-authority/38,Oxfordshire County Council,Safeguarding commissioning,13/12/2022,5380,"Author, Speaker and Lecturer Fees",2201060320,560.00,MLS Safeguarding and Consultancy Lt
http://statistics.data.gov.uk/id/local-authority/38,Oxfordshire County Council,Reading Adoption Support Fund,14/12/2022,4861,Hired and Contracted Services,2201060842,560.00,PACT (PARENTS & CHILDREN TOGETHER)
http://statistics.data.gov.uk/id/local-authority/38,Oxfordshire County Council,Support at Home 65+ Memory & Cognition,20/12/2022,5899,Social Care - Direct Payments,3111319129,560.00,Redacted Personal Data
http://statistics.data.gov.uk/id/local-authority/38,Oxfordshire County Council,Swindon Adoption Support Fund,19/12/2022,4861,Hired and Contracted Services,2201062800,560.00,The Family Place
http://statistics.data.gov.uk/id/local-authority/38,Oxfordshire County Council,FAMILY TIME TEAM,29/12/2022,3942,Hire of Accommodation and Facilities,2201064640,560.00,The Salvation Army
http://statistics.data.gov.uk/id/local-authority/38,Oxfordshire County Council,Support at Home 65+ Physical Support,06/12/2022,5899,Social Care - Direct Payments,3111307199,560.25,Redacted Personal Data
http://statistics.data.gov.uk/id/local-authority/38,Oxfordshire County Council,Support at Home 65+ Physical Support,06/12/2022,5698,,3111306023,560.58,Day & Night Care Assistance
http://statistics.data.gov.uk/id/local-authority/38,Oxfordshire County Council,Voice of Customer,05/12/2022,4861,Hired and Contracted Services,2201056405,561.00,Suzanne Gibbon
http://statistics.data.gov.uk/id/local-authority/38,Oxfordshire County Council,LANDLORD & TENANT,29/12/2022,4001,Uniform Business Rates,3500091413,561.00,West Oxfordshire District Council
http://statistics.data.gov.uk/id/local-authority/38,Oxfordshire County Council,Support at Home U65 Learning Disability,12/12/2022,5688,,3111312631,561.28,Autism at Kingwood Limited
http://statistics.data.gov.uk/id/local-authority/38,Oxfordshire County Council,LIBRARY COLLECTIONS,12/12/2022,4539,"Books, DVDs and CDs",3111310051,561.42,ASKEWS & HOLTS LIBRARY SERVICES LTD
http://statistics.data.gov.uk/id/local-authority/38,Oxfordshire County Council,Support at Home 65+ Memory & Cognition,06/12/2022,5699,,3111305718,561.60,All Care GB Ltd
http://statistics.data.gov.uk/id/local-authority/38,Oxfordshire County Council,COMM DRAWDOWN FUNDNG,16/12/2022,8102,Payments to main contractor,2201061509,561.64,Milestone Infrastructure Limited
http://statistics.data.gov.uk/id/local-authority/38,Oxfordshire County Council,SM DISABILITIES,28/12/2022,5554,Childrens' Social Care - Direct Payments,3111322473,562.43,Redacted Personal Data
http://statistics.data.gov.uk/id/local-authority/38,Oxfordshire County Council,SM DISABILITIES,28/12/2022,5554,Childrens' Social Care - Direct Payments,3111322483,562.43,Redacted Personal Data
http://statistics.data.gov.uk/id/local-authority/38,Oxfordshire County Council,Support at Home 65+ Physical Support,06/12/2022,5689,,3111305931,562.46,Oxfordshire Crossroads
http://statistics.data.gov.uk/id/local-authority/38,Oxfordshire County Council,UASC 16&17,28/12/2022,5785,Client Lodgings and Accommodation,3111322130,562.69,Response Organisation
http://statistics.data.gov.uk/id/local-authority/38,Oxfordshire County Council,UASC 16&17,28/12/2022,5785,Client Lodgings and Accommodation,3111322132,562.69,Response Organisation
http://statistics.data.gov.uk/id/local-authority/38,Oxfordshire County Council,PLACEMENTS- RELEVANT,28/12/2022,5785,Client Lodgings and Accommodation,3111322134,562.69,Response Organisation
http://statistics.data.gov.uk/id/local-authority/38,Oxfordshire County Council,UASC 16&17,28/12/2022,5785,Client Lodgings and Accommodation,3111322136,562.69,Response Organisation
http://statistics.data.gov.uk/id/local-authority/38,Oxfordshire County Council,Support at Home U65 Physical Support,20/12/2022,5899,Social Care - Direct Payments,3111319840,562.96,Purple Conversation Com In Co (DP)
http://statistics.data.gov.uk/id/local-authority/38,Oxfordshire County Council,Support at Home U65 Learning Disability,06/12/2022,5682,,3111307056,563.71,The Brandon Trust
http://statistics.data.gov.uk/id/local-authority/38,Oxfordshire County Council,Support at Home U65 Mental Health,06/12/2022,5696,,3111306856,563.92,All Care GB Ltd
http://statistics.data.gov.uk/id/local-authority/38,Oxfordshire County Council,Support at Home U65 Physical Support,06/12/2022,5696,,3111306882,563.92,All Care GB Ltd
http://statistics.data.gov.uk/id/local-authority/38,Oxfordshire County Council,Support at Home 65+ Memory & Cognition,06/12/2022,5696,,3111306890,563.92,All Care GB Ltd
http://statistics.data.gov.uk/id/local-authority/38,Oxfordshire County Council,Support at Home 65+ Physical Support,06/12/2022,5696,,3111306920,563.92,All Care GB Ltd
http://statistics.data.gov.uk/id/local-authority/38,Oxfordshire County Council,Support at Home 65+ Physical Support,06/12/2022,5696,,3111307010,563.92,All Care GB Ltd
http://statistics.data.gov.uk/id/local-authority/38,Oxfordshire County Council,Support at Home 65+ Physical Support,06/12/2022,5696,,3111307011,563.92,All Care GB Ltd
http://statistics.data.gov.uk/id/local-authority/38,Oxfordshire County Council,Support at Home 65+ Physical Support,06/12/2022,5696,,3111307017,563.92,All Care GB Ltd
http://statistics.data.gov.uk/id/local-authority/38,Oxfordshire County Council,Support at Home 65+ Physical Support,06/12/2022,5696,,3111307018,563.92,All Care GB Ltd
http://statistics.data.gov.uk/id/local-authority/38,Oxfordshire County Council,Support at Home 65+ Physical Support,06/12/2022,5696,,3111307022,563.92,All Care GB Ltd
http://statistics.data.gov.uk/id/local-authority/38,Oxfordshire County Council,Support at Home 65+ Physical Support,06/12/2022,5696,,3111306945,563.92,Radis Community Care
http://statistics.data.gov.uk/id/local-authority/38,Oxfordshire County Council,Support at Home 65+ Physical Support,06/12/2022,5696,,3111306956,563.92,Radis Community Care
http://statistics.data.gov.uk/id/local-authority/38,Oxfordshire County Council,Support at Home 65+ Physical Support,06/12/2022,5696,,3111306979,563.92,Radis Community Care
http://statistics.data.gov.uk/id/local-authority/38,Oxfordshire County Council,POST 16 SEN,20/12/2022,4330,Transport to School Activities,3111320553,564.00,A2B Castle Cars Ltd
http://statistics.data.gov.uk/id/local-authority/38,Oxfordshire County Council,FOSTERING MAIN,06/12/2022,5532,B*Fostering - Loan Equipment,3111307324,564.00,Redacted Personal Data
http://statistics.data.gov.uk/id/local-authority/38,Oxfordshire County Council,SEN Alternative Provision,05/12/2022,4878,Hired and Contracted Services (Curricul,2201056736,564.00,Teaching Personnel Ltd
http://statistics.data.gov.uk/id/local-authority/38,Oxfordshire County Council,SEN Alternative Provision,09/12/2022,4878,Hired and Contracted Services (Curricul,2201058832,564.00,Teaching Personnel Ltd
http://statistics.data.gov.uk/id/local-authority/38,Oxfordshire County Council,VOIDS/VACANCY COSTS,12/12/2022,3945,Rent,3111312723,564.73,Cherwell District Council
http://statistics.data.gov.uk/id/local-authority/38,Oxfordshire County Council,VOIDS/VACANCY COSTS,12/12/2022,3945,Rent,3111312725,564.73,Cherwell District Council
http://statistics.data.gov.uk/id/local-authority/38,Oxfordshire County Council,Support at Home 65+ Mental Health,29/12/2022,5693,,3111323151,564.76,Genuine Carers Ltd
http://statistics.data.gov.uk/id/local-authority/38,Oxfordshire County Council,2 YEAR OLD FUNDING,16/12/2022,5537,Payments to Other Establishments,3111317152,565.44,Co-op Blackbird Leys Nursery
http://statistics.data.gov.uk/id/local-authority/38,Oxfordshire County Council,2 YEAR OLD FUNDING,16/12/2022,5537,Payments to Other Establishments,3111317169,565.44,Polstead Preschool Oxford
http://statistics.data.gov.uk/id/local-authority/38,Oxfordshire County Council,FOSTERING MAIN,13/12/2022,5394,Other Expenses,3111315813,565.45,Redacted Personal Data
http://statistics.data.gov.uk/id/local-authority/38,Oxfordshire County Council,UASC 16&17,28/12/2022,5549,B*Fostering Allowance - Regulation 38,3111321811,565.90,Redacted Personal Data
http://statistics.data.gov.uk/id/local-authority/38,Oxfordshire County Council,FOSTERING MAIN,06/12/2022,5549,B*Fostering Allowance - Regulation 38,3111307405,565.90,Redacted Personal Data
http://statistics.data.gov.uk/id/local-authority/38,Oxfordshire County Council,FOSTERING MAIN,06/12/2022,5549,B*Fostering Allowance - Regulation 38,3111307592,565.90,Redacted Personal Data
http://statistics.data.gov.uk/id/local-authority/38,Oxfordshire County Council,FOSTERING MAIN,13/12/2022,5549,B*Fostering Allowance - Regulation 38,3111315653,565.90,Redacted Personal Data
http://statistics.data.gov.uk/id/local-authority/38,Oxfordshire County Council,FOSTERING MAIN,06/12/2022,5549,B*Fostering Allowance - Regulation 38,3111307670,565.90,Redacted Personal Data
http://statistics.data.gov.uk/id/local-authority/38,Oxfordshire County Council,Reactive Maintenance,07/12/2022,3787,Premises Repairs,2201057548,566.95,Wolseley UK Limited
http://statistics.data.gov.uk/id/local-authority/38,Oxfordshire County Council,Support at Home U65 Learning Disability,20/12/2022,5899,Social Care - Direct Payments,3111319799,566.96,Purple Conversation Com In Co (DP)
http://statistics.data.gov.uk/id/local-authority/38,Oxfordshire County Council,Support at Home U65 Physical Support,06/12/2022,5699,,3111306364,567.00,Kare Plus Oxford
http://statistics.data.gov.uk/id/local-authority/38,Oxfordshire County Council,Support at Home 65+ Physical Support,29/12/2022,5693,,3111323221,567.00,Oasis Private Care Ltd
http://statistics.data.gov.uk/id/local-authority/38,Oxfordshire County Council,LAC PUPIL PREMIUM,14/12/2022,5537,Payments to Other Establishments,3111316119,568.00,Hanborough Manor CE School
http://statistics.data.gov.uk/id/local-authority/38,Oxfordshire County Council,Support at Home U65 Learning Disability,08/12/2022,5227,Other Transport Arrangements,3111308735,568.00,My Cabbie LTD t/a J and A Transport
http://statistics.data.gov.uk/id/local-authority/38,Oxfordshire County Council,Support at Home U65 Physical Support,20/12/2022,5899,Social Care - Direct Payments,3111319410,568.16,Redacted Personal Data
http://statistics.data.gov.uk/id/local-authority/38,Oxfordshire County Council,Support at Home U65 Learning Disability,20/12/2022,5899,Social Care - Direct Payments,3111319462,568.16,Redacted Personal Data
http://statistics.data.gov.uk/id/local-authority/38,Oxfordshire County Council,Support at Home U65 Learning Disability,06/12/2022,5682,,3111307100,568.70,The Brandon Trust
http://statistics.data.gov.uk/id/local-authority/38,Oxfordshire County Council,Support at Home 65+ Memory & Cognition,14/12/2022,5693,,3111315944,569.08,247 HOME CARE LTD
http://statistics.data.gov.uk/id/local-authority/38,Oxfordshire County Council,FOSTERING MAIN,06/12/2022,5394,Other Expenses,3111307858,569.55,Redacted Personal Data
http://statistics.data.gov.uk/id/local-authority/38,Oxfordshire County Council,Support at Home U65 Other /Soc Isolation,20/12/2022,5899,Social Care - Direct Payments,3111319187,569.60,Redacted Personal Data
http://statistics.data.gov.uk/id/local-authority/38,Oxfordshire County Council,Support at Home 65+ Physical Support,06/12/2022,5689,,3111305933,569.68,Oxfordshire Crossroads
http://statistics.data.gov.uk/id/local-authority/38,Oxfordshire County Council,REAL COST ALLOWANCES,20/12/2022,5662,B*Christmas Allowance,3111318609,569.82,Redacted Personal Data
http://statistics.data.gov.uk/id/local-authority/38,Oxfordshire County Council,REAL COST ALLOWANCES,20/12/2022,5662,B*Christmas Allowance,3111318611,569.82,Redacted Personal Data
http://statistics.data.gov.uk/id/local-authority/38,Oxfordshire County Council,Household Support Fund 3,16/12/2022,7690,Additional Grant for Schools,3111317766,570.00,"King Alfred's School, Wantage"
http://statistics.data.gov.uk/id/local-authority/38,Oxfordshire County Council,Household Support Fund 3,16/12/2022,7690,Additional Grant for Schools,3111317965,570.00,St Nicholas C of E Primary School
http://statistics.data.gov.uk/id/local-authority/38,Oxfordshire County Council,Household Support Fund 3,16/12/2022,7690,Additional Grant for Schools,3111317970,570.00,Standlake Primary School
http://statistics.data.gov.uk/id/local-authority/38,Oxfordshire County Council,Support at Home U65 Learning Disability,06/12/2022,5682,,3111307075,570.48,The Brandon Trust
http://statistics.data.gov.uk/id/local-authority/38,Oxfordshire County Council,Catering Management Soft FM,14/12/2022,4477,Catering Equipment,2201060952,571.10,Whitco Catering & Bakery Equipment
http://statistics.data.gov.uk/id/local-authority/38,Oxfordshire County Council,Family Solutions Plus Non-staff - South,01/12/2022,4320,Pupil / Client Travel Reimbursement,9300058101,571.99,OCC SS Vale of White Horse Bank
http://statistics.data.gov.uk/id/local-authority/38,Oxfordshire County Council,Community Support Service Banbury,28/12/2022,5227,Other Transport Arrangements,3111322623,572.00,Banbury Taxis
http://statistics.data.gov.uk/id/local-authority/38,Oxfordshire County Council,NTS UASC Agency,21/12/2022,2040,Agency Staff,2201063801,572.00,Completely Care Ltd
http://statistics.data.gov.uk/id/local-authority/38,Oxfordshire County Council,DISABILITIES TEAM-C,22/12/2022,5227,Other Transport Arrangements,9300058404,572.05,OCC SS Oxford City Div 1 Cash
http://statistics.data.gov.uk/id/local-authority/38,Oxfordshire County Council,Support at Home U65 Learning Disability,12/12/2022,5688,,3111311132,572.08,ADVANCE HOUSING & SUPPORT LTD
http://statistics.data.gov.uk/id/local-authority/38,Oxfordshire County Council,Support at Home U65 Learning Disability,12/12/2022,5688,,3111311135,572.08,ADVANCE HOUSING & SUPPORT LTD
http://statistics.data.gov.uk/id/local-authority/38,Oxfordshire County Council,Support at Home U65 Learning Disability,12/12/2022,5688,,3111311138,572.08,ADVANCE HOUSING & SUPPORT LTD
http://statistics.data.gov.uk/id/local-authority/38,Oxfordshire County Council,Support at Home U65 Learning Disability,12/12/2022,5688,,3111311142,572.08,ADVANCE HOUSING & SUPPORT LTD
http://statistics.data.gov.uk/id/local-authority/38,Oxfordshire County Council,Home Improvement Agency,01/12/2022,4940,Other Services,2201055418,572.40,Mears Home Improvement Ltd
http://statistics.data.gov.uk/id/local-authority/38,Oxfordshire County Council,Support at Home U65 HFA,12/12/2022,5688,,3111314636,572.84,The Laurels (Witney)
http://statistics.data.gov.uk/id/local-authority/38,Oxfordshire County Council,Support at Home 65+ Physical Support,06/12/2022,5699,,3111305962,573.30,Bridges Home Care Ltd
http://statistics.data.gov.uk/id/local-authority/38,Oxfordshire County Council,Support at Home 65+ Physical Support,07/12/2022,5693,,3111308327,573.30,Oasis Private Care Ltd
http://statistics.data.gov.uk/id/local-authority/38,Oxfordshire County Council,Support at Home 65+ Physical Support,07/12/2022,5693,,3111308328,573.30,Oasis Private Care Ltd
http://statistics.data.gov.uk/id/local-authority/38,Oxfordshire County Council,Support at Home 65+ Physical Support,29/12/2022,5693,,3111323198,573.30,Oasis Private Care Ltd
http://statistics.data.gov.uk/id/local-authority/38,Oxfordshire County Council,Start Well Staffing,22/12/2022,4495,IT Software,2201064163,573.38,Bytes Software Services
http://statistics.data.gov.uk/id/local-authority/38,Oxfordshire County Council,Support at Home 65+ Physical Support,06/12/2022,5696,,3111306960,573.99,Radis Community Care
http://statistics.data.gov.uk/id/local-authority/38,Oxfordshire County Council,LANDLORD & TENANT,29/12/2022,4001,Uniform Business Rates,3500091340,574.00,Cherwell District Council
http://statistics.data.gov.uk/id/local-authority/38,Oxfordshire County Council,HN IN SEC SCHOOLS,15/12/2022,5537,Payments to Other Establishments,3111316314,574.00,FUTURES INSTITUTE BANBURY
http://statistics.data.gov.uk/id/local-authority/38,Oxfordshire County Council,LANDLORD & TENANT,29/12/2022,4001,Uniform Business Rates,3500091426,574.00,South Oxfordshire District Council
http://statistics.data.gov.uk/id/local-authority/38,Oxfordshire County Council,SEN TRANSPORT,22/12/2022,4320,Pupil / Client Travel Reimbursement,3111321058,574.20,Redacted Personal Data
http://statistics.data.gov.uk/id/local-authority/38,Oxfordshire County Council,FAM GRP CONFERENCES,13/12/2022,4940,Other Services,2201060386,575.00,Andy Robinson
http://statistics.data.gov.uk/id/local-authority/38,Oxfordshire County Council,LAC PUPIL PREMIUM,14/12/2022,5537,Payments to Other Establishments,3111316152,575.00,Greenley�s First School
http://statistics.data.gov.uk/id/local-authority/38,Oxfordshire County Council,Clinical Team,07/12/2022,3100,Educational and Vocational Training,2201057794,575.00,Partnership Projects
http://statistics.data.gov.uk/id/local-authority/38,Oxfordshire County Council,VACANT PROPERTY,01/12/2022,4000,Council Tax,3500090465,575.00,West Oxfordshire District Council
http://statistics.data.gov.uk/id/local-authority/38,Oxfordshire County Council,Support at Home U65 Physical Support,12/12/2022,5696,,3111310142,575.52,Radis Community Care
http://statistics.data.gov.uk/id/local-authority/38,Oxfordshire County Council,Support at Home U65 Learning Disability,20/12/2022,5899,Social Care - Direct Payments,3111319792,575.68,Purple Conversation Com In Co (DP)
http://statistics.data.gov.uk/id/local-authority/38,Oxfordshire County Council,Support at Home U65 Learning Disability,20/12/2022,5899,Social Care - Direct Payments,3111320297,575.68,Purple Conversation Com In Co (DP)
http://statistics.data.gov.uk/id/local-authority/38,Oxfordshire County Council,DISABILITIES TEAM-C,29/12/2022,5526,Payments to Private Contractors,2201064403,576.00,Completely Care Ltd
http://statistics.data.gov.uk/id/local-authority/38,Oxfordshire County Council,Support at Home 65+ Memory & Cognition,20/12/2022,5899,Social Care - Direct Payments,3111319382,576.00,Redacted Personal Data
http://statistics.data.gov.uk/id/local-authority/38,Oxfordshire County Council,Support at Home U65 Physical Support,09/12/2022,5227,Other Transport Arrangements,3111309149,576.00,TOOTS TAXIS LTD
http://statistics.data.gov.uk/id/local-authority/38,Oxfordshire County Council,Mockingbird,13/12/2022,5394,Other Expenses,3111315534,576.46,Redacted Personal Data
http://statistics.data.gov.uk/id/local-authority/38,Oxfordshire County Council,Support at Home U65 Learning Disability,14/12/2022,5697,,3111315939,576.80,Stepping Stones
http://statistics.data.gov.uk/id/local-authority/38,Oxfordshire County Council,AIDS & ADPT TEAM,07/12/2022,4450,Disability Aids and Equipment,2201057363,577.50,Oxford University Hospitals NHS Tru
http://statistics.data.gov.uk/id/local-authority/38,Oxfordshire County Council,ELEC NPR ST LTG,09/12/2022,5526,Payments to Private Contractors,2201058791,577.76,Cable Damages South
http://statistics.data.gov.uk/id/local-authority/38,Oxfordshire County Council,Support at Home U65 Physical Support,06/12/2022,5689,,3111306939,577.93,T.HOW HOMELY LTD
http://statistics.data.gov.uk/id/local-authority/38,Oxfordshire County Council,LEAVING CARE SOUTH,29/12/2022,5663,B*Birthday Allowance,9300058426,578.15,OCC SS Vale of White Horse Cash
http://statistics.data.gov.uk/id/local-authority/38,Oxfordshire County Council,CLOSED LANDFILL,21/12/2022,4861,Hired and Contracted Services,2201063876,578.59,FCC Environment (UK) Ltd
http://statistics.data.gov.uk/id/local-authority/38,Oxfordshire County Council,Support at Home U65 Learning Disability,06/12/2022,5698,,3111305818,579.60,Bridges Home Care Ltd
http://statistics.data.gov.uk/id/local-authority/38,Oxfordshire County Council,Support at Home 65+ Physical Support,06/12/2022,5699,,3111306014,579.60,Calvary Care Ltd
http://statistics.data.gov.uk/id/local-authority/38,Oxfordshire County Council,Support at Home U65 HFA,14/12/2022,5693,,3111315959,579.60,Direct Link Care Ltd
http://statistics.data.gov.uk/id/local-authority/38,Oxfordshire County Council,Support at Home 65+ Physical Support,09/12/2022,5693,,3111309233,579.60,GET CARE LIMITED
http://statistics.data.gov.uk/id/local-authority/38,Oxfordshire County Council,Support at Home 65+ Physical Support,06/12/2022,5699,,3111306264,579.60,Greigcare Home Service
http://statistics.data.gov.uk/id/local-authority/38,Oxfordshire County Council,Support at Home 65+ Physical Support,06/12/2022,5699,,3111306392,579.60,Mega Resources Ltd
http://statistics.data.gov.uk/id/local-authority/38,Oxfordshire County Council,Support at Home U65 Physical Support,09/12/2022,5699,,3111309360,579.60,Mega Resources Ltd
http://statistics.data.gov.uk/id/local-authority/38,Oxfordshire County Council,Support at Home U65 Physical Support,07/12/2022,5693,,3111308347,579.60,Oasis Private Care Ltd
http://statistics.data.gov.uk/id/local-authority/38,Oxfordshire County Council,Support at Home U65 Physical Support,29/12/2022,5693,,3111323211,579.60,Oasis Private Care Ltd
http://statistics.data.gov.uk/id/local-authority/38,Oxfordshire County Council,Support at Home 65+ Physical Support,14/12/2022,5693,,3111316028,579.60,SureCare Oxfordshire
http://statistics.data.gov.uk/id/local-authority/38,Oxfordshire County Council,Support at Home 65+ Physical Support,06/12/2022,5699,,3111306751,579.60,YOD Ltd
http://statistics.data.gov.uk/id/local-authority/38,Oxfordshire County Council,Support at Home 65+ Physical Support,21/12/2022,5696,,3111320519,579.80,Orders of St John Care Trust
http://statistics.data.gov.uk/id/local-authority/38,Oxfordshire County Council,L&D CORE PROGRAMME,08/12/2022,4615,Drugs and Medical Supplies,2201058168,580.00,ST JOHN AMBULANCE
http://statistics.data.gov.uk/id/local-authority/38,Oxfordshire County Council,SM DISABILITIES,28/12/2022,5554,Childrens' Social Care - Direct Payments,3111322538,580.81,Purple Conversation Com In Co (DP)
http://statistics.data.gov.uk/id/local-authority/38,Oxfordshire County Council,Delegated Health Tasks  - Over 65,06/12/2022,5698,,3111306009,580.86,Day & Night Care Assistance
http://statistics.data.gov.uk/id/local-authority/38,Oxfordshire County Council,LIBRARY COLLECTIONS,12/12/2022,4539,"Books, DVDs and CDs",3111310067,581.13,ASKEWS & HOLTS LIBRARY SERVICES LTD
http://statistics.data.gov.uk/id/local-authority/38,Oxfordshire County Council,Support at Home 65+ Physical Support,06/12/2022,5689,,3111306176,581.82,Elite Care Agency
http://statistics.data.gov.uk/id/local-authority/38,Oxfordshire County Council,Voice of Customer,08/12/2022,4861,Hired and Contracted Services,2201057894,582.00,Trish Amesbury
http://statistics.data.gov.uk/id/local-authority/38,Oxfordshire County Council,Support at Home U65 Mental Health,20/12/2022,5899,Social Care - Direct Payments,3111319121,582.40,Redacted Personal Data
http://statistics.data.gov.uk/id/local-authority/38,Oxfordshire County Council,FOSTERING MAIN,13/12/2022,5545,B*Fostering Enhancements - Level 2,3111315257,583.00,Redacted Personal Data
http://statistics.data.gov.uk/id/local-authority/38,Oxfordshire County Council,FOSTERING MAIN,20/12/2022,5545,B*Fostering Enhancements - Level 2,3111318405,583.00,Redacted Personal Data
http://statistics.data.gov.uk/id/local-authority/38,Oxfordshire County Council,FOSTERING MAIN,28/12/2022,5545,B*Fostering Enhancements - Level 2,3111321634,583.00,Redacted Personal Data
http://statistics.data.gov.uk/id/local-authority/38,Oxfordshire County Council,FOSTERING MAIN,06/12/2022,5532,B*Fostering - Loan Equipment,3111307476,583.00,Redacted Personal Data
http://statistics.data.gov.uk/id/local-authority/38,Oxfordshire County Council,TRANSLATION,16/12/2022,5668,Technical and Professional Consultant F,2201062040,583.03,K International PLC
http://statistics.data.gov.uk/id/local-authority/38,Oxfordshire County Council,Support at Home U65 Learning Disability,20/12/2022,5899,Social Care - Direct Payments,3111320266,583.48,Purple Conversation Com In Co (DP)
http://statistics.data.gov.uk/id/local-authority/38,Oxfordshire County Council,Support at Home U65 Learning Disability,20/12/2022,5682,,3111318256,583.57,The Brandon Trust
http://statistics.data.gov.uk/id/local-authority/38,Oxfordshire County Council,Support at Home U65 MH OBC Contract,06/12/2022,5689,,3111305919,583.65,Casa Care Ltd
http://statistics.data.gov.uk/id/local-authority/38,Oxfordshire County Council,Support at Home U65 Learning Disability,20/12/2022,5682,,3111318263,583.92,The Brandon Trust
http://statistics.data.gov.uk/id/local-authority/38,Oxfordshire County Council,Planned Maintenance,07/12/2022,4861,Hired and Contracted Services,2201057515,584.00,Barker & Evans Ltd
http://statistics.data.gov.uk/id/local-authority/38,Oxfordshire County Council,Support at Home 65+ Mental Health,20/12/2022,5899,Social Care - Direct Payments,3111319901,584.16,Purple Conversation Com In Co (DP)
http://statistics.data.gov.uk/id/local-authority/38,Oxfordshire County Council,Household Support Fund 3,16/12/2022,7690,Additional Grant for Schools,3111317742,585.00,Faringdon Academy Schools
http://statistics.data.gov.uk/id/local-authority/38,Oxfordshire County Council,ADOPTION ALLOWANCES,06/12/2022,5664,B*Holiday Allowance,3111307690,585.30,Redacted Personal Data
http://statistics.data.gov.uk/id/local-authority/38,Oxfordshire County Council,ADOPTION ALLOWANCES,13/12/2022,5664,B*Holiday Allowance,3111315571,585.30,Redacted Personal Data
http://statistics.data.gov.uk/id/local-authority/38,Oxfordshire County Council,ADOPTION ALLOWANCES,20/12/2022,5664,B*Holiday Allowance,3111318871,585.30,Redacted Personal Data
http://statistics.data.gov.uk/id/local-authority/38,Oxfordshire County Council,ADOPTION ALLOWANCES,28/12/2022,5664,B*Holiday Allowance,3111322370,585.30,Redacted Personal Data
http://statistics.data.gov.uk/id/local-authority/38,Oxfordshire County Council,FAM GRP CONFERENCES,05/12/2022,4940,Other Services,2201056775,585.63,Shellie Keen
http://statistics.data.gov.uk/id/local-authority/38,Oxfordshire County Council,FLEET COSTS,06/12/2022,4270,HTM / Other Vehicle - Hire Charges,2201057169,586.50,Go Plant Fleet Services
http://statistics.data.gov.uk/id/local-authority/38,Oxfordshire County Council,Support at Home 65+ Physical Support,20/12/2022,5899,Social Care - Direct Payments,3111319089,586.72,Redacted Personal Data
http://statistics.data.gov.uk/id/local-authority/38,Oxfordshire County Council,CORONER,02/12/2022,4940,Other Services,2201055860,587.09,Nationwide Business Relocations Ltd
http://statistics.data.gov.uk/id/local-authority/38,Oxfordshire County Council,NURSERY ED FUND,16/12/2022,5537,Payments to Other Establishments,3111317211,587.25,SKIPS
http://statistics.data.gov.uk/id/local-authority/38,Oxfordshire County Council,NURSERY ED FUND,16/12/2022,5537,Payments to Other Establishments,3111317291,587.25,The Early Years Nursery
http://statistics.data.gov.uk/id/local-authority/38,Oxfordshire County Council,Support at Home 65+ Physical Support,06/12/2022,5689,,3111306305,587.92,Greigcare Home Service
http://statistics.data.gov.uk/id/local-authority/38,Oxfordshire County Council,AGENCY RESID - DISAB,06/12/2022,5549,B*Fostering Allowance - Regulation 38,3111307861,588.00,Redacted Personal Data
http://statistics.data.gov.uk/id/local-authority/38,Oxfordshire County Council,AGENCY RESID - DISAB,13/12/2022,5549,B*Fostering Allowance - Regulation 38,3111315817,588.00,Redacted Personal Data
http://statistics.data.gov.uk/id/local-authority/38,Oxfordshire County Council,AGENCY RESID - DISAB,20/12/2022,5549,B*Fostering Allowance - Regulation 38,3111319042,588.00,Redacted Personal Data
http://statistics.data.gov.uk/id/local-authority/38,Oxfordshire County Council,AGENCY RESID - DISAB,28/12/2022,5549,B*Fostering Allowance - Regulation 38,3111321940,588.00,Redacted Personal Data
http://statistics.data.gov.uk/id/local-authority/38,Oxfordshire County Council,AGENCY RESID - DISAB,06/12/2022,5549,B*Fostering Allowance - Regulation 38,3111307666,588.00,Redacted Personal Data
http://statistics.data.gov.uk/id/local-authority/38,Oxfordshire County Council,AGENCY RESID - DISAB,13/12/2022,5549,B*Fostering Allowance - Regulation 38,3111315693,588.00,Redacted Personal Data
http://statistics.data.gov.uk/id/local-authority/38,Oxfordshire County Council,AGENCY RESID - DISAB,20/12/2022,5549,B*Fostering Allowance - Regulation 38,3111318822,588.00,Redacted Personal Data
http://statistics.data.gov.uk/id/local-authority/38,Oxfordshire County Council,AGENCY RESID - DISAB,28/12/2022,5549,B*Fostering Allowance - Regulation 38,3111321825,588.00,Redacted Personal Data
http://statistics.data.gov.uk/id/local-authority/38,Oxfordshire County Council,Support at Home U65 Physical Support,15/12/2022,5227,Other Transport Arrangements,3111316369,588.00,Oxfordlinks
http://statistics.data.gov.uk/id/local-authority/38,Oxfordshire County Council,FOSTERING MAIN,06/12/2022,5541,B*Foster Parents,3111307577,588.00,Redacted Personal Data
http://statistics.data.gov.uk/id/local-authority/38,Oxfordshire County Council,FOSTERING MAIN,13/12/2022,5541,B*Foster Parents,3111315638,588.00,Redacted Personal Data
http://statistics.data.gov.uk/id/local-authority/38,Oxfordshire County Council,FOSTERING MAIN,20/12/2022,5541,B*Foster Parents,3111318742,588.00,Redacted Personal Data
http://statistics.data.gov.uk/id/local-authority/38,Oxfordshire County Council,FOSTERING MAIN,28/12/2022,5541,B*Foster Parents,3111321790,588.00,Redacted Personal Data
http://statistics.data.gov.uk/id/local-authority/38,Oxfordshire County Council,Support at Home 65+ Physical Support,06/12/2022,5699,,3111305934,589.26,Agincare UK Ltd
http://statistics.data.gov.uk/id/local-authority/38,Oxfordshire County Council,SM DISABILITIES,28/12/2022,5554,Childrens' Social Care - Direct Payments,3111322563,589.49,Purple Conversation Com In Co (DP)
http://statistics.data.gov.uk/id/local-authority/38,Oxfordshire County Council,Support at Home 65+ Physical Support,14/12/2022,5693,,3111315950,589.76,CARE COMPASSION AND CONVERSATIONS
http://statistics.data.gov.uk/id/local-authority/38,Oxfordshire County Council,Support at Home 65+ Physical Support,06/12/2022,5699,,3111306407,590.06,Mega Resources Ltd
http://statistics.data.gov.uk/id/local-authority/38,Oxfordshire County Council,Support at Home U65 Learning Disability,12/12/2022,5690,,3111310290,590.86,Guideposts Trust
http://statistics.data.gov.uk/id/local-authority/38,Oxfordshire County Council,Support at Home U65 Learning Disability,20/12/2022,5899,Social Care - Direct Payments,3111319419,591.04,Redacted Personal Data
http://statistics.data.gov.uk/id/local-authority/38,Oxfordshire County Council,Support at Home U65 Learning Disability,12/12/2022,5690,,3111310555,591.48,The Camden Society
http://statistics.data.gov.uk/id/local-authority/38,Oxfordshire County Council,Support at Home 65+ Physical Support,20/12/2022,5899,Social Care - Direct Payments,3111319257,592.00,Redacted Personal Data
http://statistics.data.gov.uk/id/local-authority/38,Oxfordshire County Council,Support at Home 65+ Physical Support,06/12/2022,5699,,3111306137,592.20,Care Hearted Ltd
http://statistics.data.gov.uk/id/local-authority/38,Oxfordshire County Council,Support at Home 65+ Physical Support,02/12/2022,5693,,3111305414,592.20,Kwikfix Recruitment Services Ltd
http://statistics.data.gov.uk/id/local-authority/38,Oxfordshire County Council,Support at Home 65+ Physical Support,06/12/2022,5698,,3111306148,592.39,Day & Night Care Assistance
http://statistics.data.gov.uk/id/local-authority/38,Oxfordshire County Council,Support at Home U65 Mental Health,20/12/2022,5899,Social Care - Direct Payments,3111319750,592.64,Purple Conversation Com In Co (DP)
http://statistics.data.gov.uk/id/local-authority/38,Oxfordshire County Council,Support at Home 65+ Physical Support,06/12/2022,5698,,3111306596,592.87,Oxford Private Care
http://statistics.data.gov.uk/id/local-authority/38,Oxfordshire County Council,Support at Home 65+ Physical Support,20/12/2022,5899,Social Care - Direct Payments,3111319206,593.60,Redacted Personal Data
http://statistics.data.gov.uk/id/local-authority/38,Oxfordshire County Council,Support at Home U65 Learning Disability,06/12/2022,5689,,3111306706,593.79,Pechiv Ltd
http://statistics.data.gov.uk/id/local-authority/38,Oxfordshire County Council,Children in Care Non-staffing - Centrl 1,28/12/2022,5665,B*Fostering Project Care Fee,9300058411,594.00,OCC SS Oxford City Div 1 Cash
http://statistics.data.gov.uk/id/local-authority/38,Oxfordshire County Council,UASC 16&17,30/12/2022,5665,B*Fostering Project Care Fee,9300058432,594.20,OCC SS Oxford City Div 1 Cash
http://statistics.data.gov.uk/id/local-authority/38,Oxfordshire County Council,ELEC NPR ST LTG,01/12/2022,5526,Payments to Private Contractors,2201055486,595.30,VolkerHighways
http://statistics.data.gov.uk/id/local-authority/38,Oxfordshire County Council,ELEC NPR ST LTG,15/12/2022,5526,Payments to Private Contractors,2201061081,595.30,VolkerHighways
http://statistics.data.gov.uk/id/local-authority/38,Oxfordshire County Council,ELEC NPR ST LTG,19/12/2022,5526,Payments to Private Contractors,2201062272,595.30,VolkerHighways
http://statistics.data.gov.uk/id/local-authority/38,Oxfordshire County Council,ELEC NPR ST LTG,19/12/2022,5526,Payments to Private Contractors,2201062273,595.30,VolkerHighways
http://statistics.data.gov.uk/id/local-authority/38,Oxfordshire County Council,ELEC NPR ST LTG,19/12/2022,5526,Payments to Private Contractors,2201062277,595.30,VolkerHighways
http://statistics.data.gov.uk/id/local-authority/38,Oxfordshire County Council,ELEC NPR ST LTG,19/12/2022,5526,Payments to Private Contractors,2201062278,595.30,VolkerHighways
http://statistics.data.gov.uk/id/local-authority/38,Oxfordshire County Council,ELEC NPR ST LTG,19/12/2022,5526,Payments to Private Contractors,2201062279,595.30,VolkerHighways
http://statistics.data.gov.uk/id/local-authority/38,Oxfordshire County Council,ELEC NPR ST LTG,19/12/2022,5526,Payments to Private Contractors,2201062287,595.30,VolkerHighways
http://statistics.data.gov.uk/id/local-authority/38,Oxfordshire County Council,ELEC NPR ST LTG,19/12/2022,5526,Payments to Private Contractors,2201062288,595.30,VolkerHighways
http://statistics.data.gov.uk/id/local-authority/38,Oxfordshire County Council,ELEC NPR ST LTG,19/12/2022,5526,Payments to Private Contractors,2201062292,595.30,VolkerHighways
http://statistics.data.gov.uk/id/local-authority/38,Oxfordshire County Council,ELEC NPR ST LTG,19/12/2022,5526,Payments to Private Contractors,2201062293,595.30,VolkerHighways
http://statistics.data.gov.uk/id/local-authority/38,Oxfordshire County Council,ELEC NPR ST LTG,19/12/2022,5526,Payments to Private Contractors,2201062296,595.30,VolkerHighways
http://statistics.data.gov.uk/id/local-authority/38,Oxfordshire County Council,ELEC NPR ST LTG,19/12/2022,5526,Payments to Private Contractors,2201062298,595.30,VolkerHighways
http://statistics.data.gov.uk/id/local-authority/38,Oxfordshire County Council,ELEC NPR ST LTG,19/12/2022,5526,Payments to Private Contractors,2201062319,595.30,VolkerHighways
http://statistics.data.gov.uk/id/local-authority/38,Oxfordshire County Council,ELEC NPR ST LTG,19/12/2022,5526,Payments to Private Contractors,2201062327,595.30,VolkerHighways
http://statistics.data.gov.uk/id/local-authority/38,Oxfordshire County Council,ELEC NPR ST LTG,19/12/2022,5526,Payments to Private Contractors,2201062337,595.30,VolkerHighways
http://statistics.data.gov.uk/id/local-authority/38,Oxfordshire County Council,ELEC NPR ST LTG,19/12/2022,5526,Payments to Private Contractors,2201062338,595.30,VolkerHighways
http://statistics.data.gov.uk/id/local-authority/38,Oxfordshire County Council,ELEC NPR ST LTG,19/12/2022,5526,Payments to Private Contractors,2201062398,595.30,VolkerHighways
http://statistics.data.gov.uk/id/local-authority/38,Oxfordshire County Council,ELEC NPR ST LTG,19/12/2022,5526,Payments to Private Contractors,2201062603,595.30,VolkerHighways
http://statistics.data.gov.uk/id/local-authority/38,Oxfordshire County Council,ELEC NPR ST LTG,19/12/2022,5526,Payments to Private Contractors,2201062612,595.30,VolkerHighways
http://statistics.data.gov.uk/id/local-authority/38,Oxfordshire County Council,LIBRARY SERV MANAGER,05/12/2022,3241,Professional Subscriptions,2201056765,595.88,Libraries Connected
http://statistics.data.gov.uk/id/local-authority/38,Oxfordshire County Council,Care Packages & Placements- LD - OCC,16/12/2022,5227,Other Transport Arrangements,3111317392,596.00,LINK SHIRES LTD
http://statistics.data.gov.uk/id/local-authority/38,Oxfordshire County Council,Support at Home U65 Physical Support,20/12/2022,5899,Social Care - Direct Payments,3111319809,596.00,Purple Conversation Com In Co (DP)
http://statistics.data.gov.uk/id/local-authority/38,Oxfordshire County Council,COMM DRAWDOWN FUNDNG,01/12/2022,8004,Design Consultant,2201055540,597.00,Oxford Direct Services Trading Ltd
http://statistics.data.gov.uk/id/local-authority/38,Oxfordshire County Council,Support at Home U65 Learning Disability,21/12/2022,5696,,3111320439,597.14,Orders of St John Care Trust
http://statistics.data.gov.uk/id/local-authority/38,Oxfordshire County Council,Support at Home 65+ Mental Health,21/12/2022,5696,,3111320460,597.14,Orders of St John Care Trust
http://statistics.data.gov.uk/id/local-authority/38,Oxfordshire County Council,Support at Home 65+ Physical Support,21/12/2022,5693,,3111320625,597.46,CARE & CARERS LTD
http://statistics.data.gov.uk/id/local-authority/38,Oxfordshire County Council,Support at Home U65 Learning Disability,20/12/2022,5899,Social Care - Direct Payments,3111320044,597.56,Purple Conversation Com In Co (DP)
http://statistics.data.gov.uk/id/local-authority/38,Oxfordshire County Council,Support at Home 65+ Physical Support,12/12/2022,5685,B*Cycle tracks,3111312803,597.69,Freeland House
http://statistics.data.gov.uk/id/local-authority/38,Oxfordshire County Council,Community Support Service - Abingdon,22/12/2022,2040,Agency Staff,2201063954,597.80,Completely Care Ltd
http://statistics.data.gov.uk/id/local-authority/38,Oxfordshire County Council,Support at Home U65 Learning Disability,06/12/2022,5698,,3111306652,598.33,Oxford Private Care
http://statistics.data.gov.uk/id/local-authority/38,Oxfordshire County Council,Support at Home 65+ Physical Support,06/12/2022,5699,,3111305960,598.50,Bridges Home Care Ltd
http://statistics.data.gov.uk/id/local-authority/38,Oxfordshire County Council,Support at Home 65+ Physical Support,06/12/2022,5699,,3111306398,598.50,Mega Resources Ltd
http://statistics.data.gov.uk/id/local-authority/38,Oxfordshire County Council,Support at Home U65 Learning Disability,21/12/2022,5696,,3111320513,599.28,Orders of St John Care Trust
http://statistics.data.gov.uk/id/local-authority/38,Oxfordshire County Council,Support at Home U65 Learning Disability,20/12/2022,5899,Social Care - Direct Payments,3111319735,599.84,Redacted Personal Data
http://statistics.data.gov.uk/id/local-authority/38,Oxfordshire County Council,Support at Home 65+ Physical Support,20/12/2022,5899,Social Care - Direct Payments,3111319128,599.92,Redacted Personal Data
http://statistics.data.gov.uk/id/local-authority/38,Oxfordshire County Council,Support at Home 65+ Physical Support,06/12/2022,5698,,3111306674,599.96,Oxfordshire Crossroads
http://statistics.data.gov.uk/id/local-authority/38,Oxfordshire County Council,SEN TRANSPORT,15/12/2022,5227,Other Transport Arrangements,3111316361,600.00,ABC Travel(Wokingham) limited t/a A
http://statistics.data.gov.uk/id/local-authority/38,Oxfordshire County Council,MUSIC UNALLOCABLE,28/12/2022,5380,"Author, Speaker and Lecturer Fees",2201064253,600.00,Alberto Sanna
http://statistics.data.gov.uk/id/local-authority/38,Oxfordshire County Council,OSCB,15/12/2022,3103,Other Training Courses and Qualification,2201061032,600.00,Betsy de Thierry Limited
http://statistics.data.gov.uk/id/local-authority/38,Oxfordshire County Council,Swindon Adoption Support Fund,16/12/2022,4861,Hired and Contracted Services,2201061468,600.00,Carla Reece-Saunders
http://statistics.data.gov.uk/id/local-authority/38,Oxfordshire County Council,LEGAL SERVICES,09/12/2022,5251,Legal Costs,2201058593,600.00,Caroline Budden
http://statistics.data.gov.uk/id/local-authority/38,Oxfordshire County Council,Household Support Fund 3,16/12/2022,7690,Additional Grant for Schools,3111317864,600.00,Charlbury Primary School
http://statistics.data.gov.uk/id/local-authority/38,Oxfordshire County Council,Support at Home U65 Learning Disability,09/12/2022,5227,Other Transport Arrangements,3111309489,600.00,Chauffeur Executives Oxford Limited
http://statistics.data.gov.uk/id/local-authority/38,Oxfordshire County Council,Oxfordshire Adoption Support Fund,28/12/2022,4861,Hired and Contracted Services,2201064328,600.00,Creative Therapy Options
http://statistics.data.gov.uk/id/local-authority/38,Oxfordshire County Council,FOSTER CARE RECRUIT,21/12/2022,4940,Other Services,2201063762,600.00,EPIC Media Services
http://statistics.data.gov.uk/id/local-authority/38,Oxfordshire County Council,Household Support Fund 3,16/12/2022,7690,Additional Grant for Schools,3111317891,600.00,Garsington School
http://statistics.data.gov.uk/id/local-authority/38,Oxfordshire County Council,Support at Home 65+ Physical Support,06/12/2022,5227,Other Transport Arrangements,3111307882,600.00,Go Green Taxis
http://statistics.data.gov.uk/id/local-authority/38,Oxfordshire County Council,Oxfordshire Adoption Support Fund,07/12/2022,4861,Hired and Contracted Services,2201057705,600.00,Heads & Hearts Ltd
http://statistics.data.gov.uk/id/local-authority/38,Oxfordshire County Council,Reading Adoption Support Fund,07/12/2022,4861,Hired and Contracted Services,2201057706,600.00,Heads & Hearts Ltd
http://statistics.data.gov.uk/id/local-authority/38,Oxfordshire County Council,Wokingham Adoption Support Fund,07/12/2022,4861,Hired and Contracted Services,2201057716,600.00,Heads & Hearts Ltd
http://statistics.data.gov.uk/id/local-authority/38,Oxfordshire County Council,West Berkshire Adoption Support Fund,07/12/2022,4861,Hired and Contracted Services,2201057743,600.00,Heads & Hearts Ltd
http://statistics.data.gov.uk/id/local-authority/38,Oxfordshire County Council,Swindon Adoption Support Fund,21/12/2022,4861,Hired and Contracted Services,2201063857,600.00,Heads & Hearts Ltd
http://statistics.data.gov.uk/id/local-authority/38,Oxfordshire County Council,Swindon Adoption Support Fund,21/12/2022,4861,Hired and Contracted Services,2201063860,600.00,Heads & Hearts Ltd
http://statistics.data.gov.uk/id/local-authority/38,Oxfordshire County Council,IN YEAR FAIR ACCESS,14/12/2022,5537,Payments to Other Establishments,3111316561,600.00,Icknield Community College
http://statistics.data.gov.uk/id/local-authority/38,Oxfordshire County Council,Household Support Fund 3,16/12/2022,7690,Additional Grant for Schools,3111317919,600.00,Longford Park Primary School
http://statistics.data.gov.uk/id/local-authority/38,Oxfordshire County Council,Support at Home 65+ Physical Support,12/12/2022,5227,Other Transport Arrangements,3111309577,600.00,Oxfordshire Travel Ltd
http://statistics.data.gov.uk/id/local-authority/38,Oxfordshire County Council,Household Support Fund 3,22/12/2022,7690,Additional Grant for Schools,3111321508,600.00,Red Dragon Pre-School Gr
http://statistics.data.gov.uk/id/local-authority/38,Oxfordshire County Council,Safeguarding commissioning,15/12/2022,4861,Hired and Contracted Services,3111316387,600.00,Red Kite Family Centre
http://statistics.data.gov.uk/id/local-authority/38,Oxfordshire County Council,Household Support Fund 3,22/12/2022,7690,Additional Grant for Schools,3111321513,600.00,Rose Hill Primary School
http://statistics.data.gov.uk/id/local-authority/38,Oxfordshire County Council,Household Support Fund 3,22/12/2022,7690,Additional Grant for Schools,3111321525,600.00,SKIPS
http://statistics.data.gov.uk/id/local-authority/38,Oxfordshire County Council,Household Support Fund 3,16/12/2022,7690,Additional Grant for Schools,3111317971,600.00,Stanton Harcourt CE
http://statistics.data.gov.uk/id/local-authority/38,Oxfordshire County Council,Household Support Fund 3,16/12/2022,7690,Additional Grant for Schools,3111317949,600.00,The Gallery Trust
http://statistics.data.gov.uk/id/local-authority/38,Oxfordshire County Council,Support at Home U65 Learning Disability,13/12/2022,5227,Other Transport Arrangements,3111314960,600.00,The Oxfordshire Taxi Company Ltd T/
http://statistics.data.gov.uk/id/local-authority/38,Oxfordshire County Council,Wokingham Adoption Support Fund,28/12/2022,4861,Hired and Contracted Services,2201064366,600.00,The Paperclip Group
http://statistics.data.gov.uk/id/local-authority/38,Oxfordshire County Council,Wokingham Adoption Support Fund,14/12/2022,4861,Hired and Contracted Services,2201060928,600.00,The Therapy Frame
http://statistics.data.gov.uk/id/local-authority/38,Oxfordshire County Council,Councillors Priorities Fund,06/12/2022,4940,Other Services,3111305664,600.00,Uffington Parish Council
http://statistics.data.gov.uk/id/local-authority/38,Oxfordshire County Council,Household Support Fund 3,22/12/2022,7690,Additional Grant for Schools,3111321558,600.00,Wantage Preschool
http://statistics.data.gov.uk/id/local-authority/38,Oxfordshire County Council,Household Support Fund 3,16/12/2022,7690,Additional Grant for Schools,3111317825,600.00,Wykham Park Academy
http://statistics.data.gov.uk/id/local-authority/38,Oxfordshire County Council,NURSERY ED FUND,16/12/2022,5537,Payments to Other Establishments,3111317500,600.30,Julia Durbin Day Nursery
http://statistics.data.gov.uk/id/local-authority/38,Oxfordshire County Council,Support at Home 65+ Physical Support,21/12/2022,5693,,3111320626,601.22,CARE & CARERS LTD
http://statistics.data.gov.uk/id/local-authority/38,Oxfordshire County Council,Early Years Pupil Premium,16/12/2022,5537,Payments to Other Establishments,3111317346,601.62,Witney Community Primary Nursery
http://statistics.data.gov.uk/id/local-authority/38,Oxfordshire County Council,Support at Home 65+ Memory & Cognition,20/12/2022,5899,Social Care - Direct Payments,3111319718,601.76,Redacted Personal Data
http://statistics.data.gov.uk/id/local-authority/38,Oxfordshire County Council,Catering Management Soft FM,07/12/2022,5460,Entertainment Expenses,2201057597,602.00,LACA Ltd
http://statistics.data.gov.uk/id/local-authority/38,Oxfordshire County Council,Support at Home U65 Learning Disability,12/12/2022,5690,,3111310313,603.30,MacIntyre Care (Womaston)
http://statistics.data.gov.uk/id/local-authority/38,Oxfordshire County Council,Support at Home U65 Learning Disability,12/12/2022,5690,,3111310321,603.30,MacIntyre Care (Womaston)
http://statistics.data.gov.uk/id/local-authority/38,Oxfordshire County Council,Support at Home 65+ Learning Disability,12/12/2022,5690,,3111310326,603.30,MacIntyre Care (Womaston)
http://statistics.data.gov.uk/id/local-authority/38,Oxfordshire County Council,Support at Home U65 Learning Disability,12/12/2022,5690,,3111310328,603.30,MacIntyre Care (Womaston)
http://statistics.data.gov.uk/id/local-authority/38,Oxfordshire County Council,Support at Home 65+ Physical Support,12/12/2022,5696,,3111310131,603.44,Radis Community Care
http://statistics.data.gov.uk/id/local-authority/38,Oxfordshire County Council,Support at Home U65 Learning Disability,12/12/2022,5690,,3111310505,603.57,Autism at Kingwood Limited
http://statistics.data.gov.uk/id/local-authority/38,Oxfordshire County Council,Support at Home U65 Learning Disability,12/12/2022,5690,,3111310511,603.57,Autism at Kingwood Limited
http://statistics.data.gov.uk/id/local-authority/38,Oxfordshire County Council,L&D CORE PROGRAMME,12/12/2022,3100,Educational and Vocational Training,2201058906,604.00,Premier Partnership
http://statistics.data.gov.uk/id/local-authority/38,Oxfordshire County Council,Support at Home U65 Learning Disability,02/12/2022,5693,,3111305335,604.80,A CARING HAND LTD
http://statistics.data.gov.uk/id/local-authority/38,Oxfordshire County Council,Support at Home 65+ Memory & Cognition,06/12/2022,5698,,3111305808,604.80,Bridges Home Care Ltd
http://statistics.data.gov.uk/id/local-authority/38,Oxfordshire County Council,Support at Home U65 MH OBC Contract,06/12/2022,5699,,3111306074,604.80,Calvary Care Ltd
http://statistics.data.gov.uk/id/local-authority/38,Oxfordshire County Council,Support at Home 65+ Physical Support,06/12/2022,5689,,3111306237,604.80,Golden Services Care Ltd
http://statistics.data.gov.uk/id/local-authority/38,Oxfordshire County Council,Support at Home U65 Physical Support,06/12/2022,5689,,3111306241,604.80,Golden Services Care Ltd
http://statistics.data.gov.uk/id/local-authority/38,Oxfordshire County Council,Support at Home 65+ Memory & Cognition,06/12/2022,5699,,3111306533,604.80,PLL Care Services
http://statistics.data.gov.uk/id/local-authority/38,Oxfordshire County Council,Support at Home U65 MH OBC Contract,07/12/2022,5693,,3111308392,604.80,We-Care-Recruitment Ltd
http://statistics.data.gov.uk/id/local-authority/38,Oxfordshire County Council,L&D CORE PROGRAMME,09/12/2022,3105,Training related expenditure,3111309088,605.00,OCC One Time Vendor
http://statistics.data.gov.uk/id/local-authority/38,Oxfordshire County Council,Support at Home U65 Physical Support,20/12/2022,5899,Social Care - Direct Payments,3111320268,605.36,Purple Conversation Com In Co (DP)
http://statistics.data.gov.uk/id/local-authority/38,Oxfordshire County Council,Support at Home U65 Physical Support,06/12/2022,5698,,3111306434,605.38,KCARE NURSING AGENCY
http://statistics.data.gov.uk/id/local-authority/38,Oxfordshire County Council,FOSTERING MAIN,06/12/2022,5548,B*Fostering - Special Rates & Plus Amou,3111307381,605.43,Redacted Personal Data
http://statistics.data.gov.uk/id/local-authority/38,Oxfordshire County Council,FOSTERING MAIN,06/12/2022,5548,B*Fostering - Special Rates & Plus Amou,3111307383,605.43,Redacted Personal Data
http://statistics.data.gov.uk/id/local-authority/38,Oxfordshire County Council,FOSTERING MAIN,06/12/2022,5548,B*Fostering - Special Rates & Plus Amou,3111307385,605.43,Redacted Personal Data
http://statistics.data.gov.uk/id/local-authority/38,Oxfordshire County Council,Support at Home U65 Learning Disability,20/12/2022,5899,Social Care - Direct Payments,3111320351,605.84,Rosekel Resourcing Ltd
http://statistics.data.gov.uk/id/local-authority/38,Oxfordshire County Council,LIBRARY COLLECTIONS,07/12/2022,4539,"Books, DVDs and CDs",3111308617,606.45,ASKEWS & HOLTS LIBRARY SERVICES LTD
http://statistics.data.gov.uk/id/local-authority/38,Oxfordshire County Council,Support at Home 65+ Physical Support,06/12/2022,5689,,3111306387,606.48,Home Helpers Care Ltd
http://statistics.data.gov.uk/id/local-authority/38,Oxfordshire County Council,SM DISABILITIES,20/12/2022,5555,Payments to Carers,3111318291,606.90,OCC One Time Vendor
http://statistics.data.gov.uk/id/local-authority/38,Oxfordshire County Council,LIBRARY SERV MANAGER,05/12/2022,3241,Professional Subscriptions,2201056767,607.03,Libraries Connected
http://statistics.data.gov.uk/id/local-authority/38,Oxfordshire County Council,Support at Home 65+ Physical Support,06/12/2022,5696,,3111307003,608.44,Radis Community Care
http://statistics.data.gov.uk/id/local-authority/38,Oxfordshire County Council,Community Support Service - Abingdon,20/12/2022,2040,Agency Staff,2201063201,608.48,Completely Care Ltd
http://statistics.data.gov.uk/id/local-authority/38,Oxfordshire County Council,Reactive Maintenance,21/12/2022,4498,Health and Safety Equipment,2201063750,608.73,Oxford Security Services Ltd
http://statistics.data.gov.uk/id/local-authority/38,Oxfordshire County Council,FOSTERING MAIN,28/12/2022,5549,B*Fostering Allowance - Regulation 38,3111321684,608.98,Redacted Personal Data
http://statistics.data.gov.uk/id/local-authority/38,Oxfordshire County Council,UASC 16&17,20/12/2022,5549,B*Fostering Allowance - Regulation 38,3111318617,608.98,Redacted Personal Data
http://statistics.data.gov.uk/id/local-authority/38,Oxfordshire County Council,FOSTERING MAIN,28/12/2022,5549,B*Fostering Allowance - Regulation 38,3111321924,608.98,Redacted Personal Data
http://statistics.data.gov.uk/id/local-authority/38,Oxfordshire County Council,FPT SOUTH/VALE,13/12/2022,4940,Other Services,3111315685,609.00,Redacted Personal Data
http://statistics.data.gov.uk/id/local-authority/38,Oxfordshire County Council,Support at Home 65+ Learning Disability,07/12/2022,5693,,3111308382,609.00,Pioneering Care Bicester Limited
http://statistics.data.gov.uk/id/local-authority/38,Oxfordshire County Council,Reading Adoption Support Fund,28/12/2022,4861,Hired and Contracted Services,2201064375,610.00,Heads & Hearts Ltd
http://statistics.data.gov.uk/id/local-authority/38,Oxfordshire County Council,Wokingham Adoption Support Fund,19/12/2022,4861,Hired and Contracted Services,2201063008,610.00,Topaz Therapeutic Life Story
http://statistics.data.gov.uk/id/local-authority/38,Oxfordshire County Council,OTHER NON-HOUSEHOLD,19/12/2022,5526,Payments to Private Contractors,2201062227,610.05,Cawleys Ltd
http://statistics.data.gov.uk/id/local-authority/38,Oxfordshire County Council,2 YEAR OLD FUNDING,16/12/2022,5537,Payments to Other Establishments,3111317240,610.20,Rainbows Day Nursery
http://statistics.data.gov.uk/id/local-authority/38,Oxfordshire County Council,Support at Home U65 Learning Disability,06/12/2022,5682,,3111307097,610.37,The Brandon Trust
http://statistics.data.gov.uk/id/local-authority/38,Oxfordshire County Council,LIBRARY COLLECTIONS,19/12/2022,4539,"Books, DVDs and CDs",2201062575,610.40,W F HOWES LTD
http://statistics.data.gov.uk/id/local-authority/38,Oxfordshire County Council,Support at Home U65 Learning Disability,12/12/2022,5690,,3111310547,610.61,The Camden Society
http://statistics.data.gov.uk/id/local-authority/38,Oxfordshire County Council,Support at Home U65 Learning Disability,12/12/2022,5690,,3111310549,610.61,The Camden Society
http://statistics.data.gov.uk/id/local-authority/38,Oxfordshire County Council,Support at Home U65 Learning Disability,12/12/2022,5690,,3111310556,610.61,The Camden Society
http://statistics.data.gov.uk/id/local-authority/38,Oxfordshire County Council,Support at Home U65 Learning Disability,12/12/2022,5690,,3111310557,610.61,The Camden Society
http://statistics.data.gov.uk/id/local-authority/38,Oxfordshire County Council,Support at Home U65 Learning Disability,06/12/2022,5682,,3111307118,611.76,The Brandon Trust
http://statistics.data.gov.uk/id/local-authority/38,Oxfordshire County Council,Support at Home U65 Learning Disability,20/12/2022,5682,,3111318272,611.76,The Brandon Trust
http://statistics.data.gov.uk/id/local-authority/38,Oxfordshire County Council,Support at Home U65 Learning Disability,20/12/2022,5682,,3111318278,611.76,The Brandon Trust
http://statistics.data.gov.uk/id/local-authority/38,Oxfordshire County Council,Support at Home 65+ Physical Support,20/12/2022,5899,Social Care - Direct Payments,3111319865,611.88,Purple Conversation Com In Co (DP)
http://statistics.data.gov.uk/id/local-authority/38,Oxfordshire County Council,Support at Home U65 HFA,20/12/2022,5899,Social Care - Direct Payments,3111319842,612.24,Purple Conversation Com In Co (DP)
http://statistics.data.gov.uk/id/local-authority/38,Oxfordshire County Council,COUNTY PRINT FINSHRS,22/12/2022,5091,Postage and Delivery,2201064008,612.27,Whistl
http://statistics.data.gov.uk/id/local-authority/38,Oxfordshire County Council,Support at Home U65 MH OBC Contract,07/12/2022,5693,,3111308300,612.30,Care at Home
http://statistics.data.gov.uk/id/local-authority/38,Oxfordshire County Council,,02/12/2022,1531,Cash Allocation Control Account,3111305669,612.36,IBS Office Solutions Ltd
http://statistics.data.gov.uk/id/local-authority/38,Oxfordshire County Council,Support at Home 65+ Physical Support,06/12/2022,5689,,3111306496,612.78,My Carer Ltd
http://statistics.data.gov.uk/id/local-authority/38,Oxfordshire County Council,LIBRARY COLLECTIONS,08/12/2022,4539,"Books, DVDs and CDs",2201058350,612.80,W F HOWES LTD
http://statistics.data.gov.uk/id/local-authority/38,Oxfordshire County Council,LD Continuing Care - Sup at Home - U65,14/12/2022,5691,,3111316169,613.05,THORNBURY NURSING SERVICES
http://statistics.data.gov.uk/id/local-authority/38,Oxfordshire County Council,LD Continuing Care - Sup at Home - U65,22/12/2022,5691,,3111321174,613.05,THORNBURY NURSING SERVICES
http://statistics.data.gov.uk/id/local-authority/38,Oxfordshire County Council,Catering Management Soft FM,14/12/2022,4477,Catering Equipment,2201060942,613.17,Whitco Catering & Bakery Equipment
http://statistics.data.gov.uk/id/local-authority/38,Oxfordshire County Council,STI TESTING+TREATMEN,01/12/2022,4940,Other Services,3111305609,613.97,George Eliot Hospital NHS Trust
http://statistics.data.gov.uk/id/local-authority/38,Oxfordshire County Council,Oxfordshire Adoption Support Fund,08/12/2022,4861,Hired and Contracted Services,2201057942,615.00,Julia Woods
http://statistics.data.gov.uk/id/local-authority/38,Oxfordshire County Council,Support at Home U65 Learning Disability,12/12/2022,5690,,3111310530,615.66,Real Life Options
http://statistics.data.gov.uk/id/local-authority/38,Oxfordshire County Council,Support at Home 65+ Learning Disability,12/12/2022,5688,,3111312482,615.66,The Brandon Trust
http://statistics.data.gov.uk/id/local-authority/38,Oxfordshire County Council,SEN TRANSPORT,28/12/2022,5227,Other Transport Arrangements,3111322632,616.00,Banbury Taxis
http://statistics.data.gov.uk/id/local-authority/38,Oxfordshire County Council,Support at Home 65+ Physical Support,12/12/2022,5686,,3111311507,616.29,Orders of St John
http://statistics.data.gov.uk/id/local-authority/38,Oxfordshire County Council,Support at Home 65+ Memory & Cognition,29/12/2022,5693,,3111323278,617.40,We-Care-Recruitment Ltd
http://statistics.data.gov.uk/id/local-authority/38,Oxfordshire County Council,Care Homes - Over 65 Physical Sypport,12/12/2022,5687,,3111314303,617.55,The Triangle Nursing Home
http://statistics.data.gov.uk/id/local-authority/38,Oxfordshire County Council,Support at Home U65 MH OBC Contract,20/12/2022,5691,,3111320383,618.00,Care With Dignity Partnerships
http://statistics.data.gov.uk/id/local-authority/38,Oxfordshire County Council,2 YEAR OLD FUNDING,16/12/2022,5537,Payments to Other Establishments,3111316933,618.45,Ascott-under-Wychwood Pre-School
http://statistics.data.gov.uk/id/local-authority/38,Oxfordshire County Council,2 YEAR OLD FUNDING,16/12/2022,5537,Payments to Other Establishments,3111317344,618.45,Marcham Little Angels
http://statistics.data.gov.uk/id/local-authority/38,Oxfordshire County Council,2 YEAR OLD FUNDING,16/12/2022,5537,Payments to Other Establishments,3111317116,618.45,Robin Playgroup
http://statistics.data.gov.uk/id/local-authority/38,Oxfordshire County Council,Support at Home U65 MH OBC Contract,20/12/2022,5899,Social Care - Direct Payments,3111320366,618.48,Redacted Personal Data
http://statistics.data.gov.uk/id/local-authority/38,Oxfordshire County Council,LAC PUPIL PREMIUM,14/12/2022,5537,Payments to Other Establishments,3111316122,619.00,Bishop Challoner Catholic Secondary
http://statistics.data.gov.uk/id/local-authority/38,Oxfordshire County Council,Support at Home 65+ Physical Support,20/12/2022,5899,Social Care - Direct Payments,3111319929,619.08,Purple Conversation Com In Co (DP)
http://statistics.data.gov.uk/id/local-authority/38,Oxfordshire County Council,Support at Home U65 MH OBC Contract,06/12/2022,5689,,3111306845,620.04,Response Organisation
http://statistics.data.gov.uk/id/local-authority/38,Oxfordshire County Council,Support at Home U65 MH OBC Contract,06/12/2022,5689,,3111306861,620.04,Response Organisation
http://statistics.data.gov.uk/id/local-authority/38,Oxfordshire County Council,Support at Home U65 MH OBC Contract,06/12/2022,5689,,3111306883,620.04,Response Organisation
http://statistics.data.gov.uk/id/local-authority/38,Oxfordshire County Council,Support at Home U65 Learning Disability,20/12/2022,5899,Social Care - Direct Payments,3111319496,621.76,Redacted Personal Data
http://statistics.data.gov.uk/id/local-authority/38,Oxfordshire County Council,ALTERNATIVES TO CARE,16/12/2022,4859,Medical and Counselling Fees,2201061897,623.45,THORNBURY NURSING SERVICES
http://statistics.data.gov.uk/id/local-authority/38,Oxfordshire County Council,Support at Home U65 Learning Disability,20/12/2022,5899,Social Care - Direct Payments,3111320003,623.52,Purple Conversation Com In Co (DP)
http://statistics.data.gov.uk/id/local-authority/38,Oxfordshire County Council,LANDLORD & TENANT,29/12/2022,4001,Uniform Business Rates,3500091414,624.00,West Oxfordshire District Council
http://statistics.data.gov.uk/id/local-authority/38,Oxfordshire County Council,NURSERY ED FUND,16/12/2022,5537,Payments to Other Establishments,3111317177,624.26,Cabin Pre-School
http://statistics.data.gov.uk/id/local-authority/38,Oxfordshire County Council,Support at Home U65 Physical Support,06/12/2022,5696,,3111306878,624.34,All Care GB Ltd
http://statistics.data.gov.uk/id/local-authority/38,Oxfordshire County Council,Support at Home 65+ Physical Support,21/12/2022,5693,,3111320634,624.75,Care with Care Ltd
http://statistics.data.gov.uk/id/local-authority/38,Oxfordshire County Council,Support at Home 65+ Physical Support,06/12/2022,5699,,3111306701,625.38,T.HOW HOMELY LTD
http://statistics.data.gov.uk/id/local-authority/38,Oxfordshire County Council,Support at Home U65 Learning Disability,06/12/2022,5682,,3111307093,625.74,The Brandon Trust
http://statistics.data.gov.uk/id/local-authority/38,Oxfordshire County Council,Support at Home U65 Learning Disability,20/12/2022,5899,Social Care - Direct Payments,3111319676,625.88,Redacted Personal Data
http://statistics.data.gov.uk/id/local-authority/38,Oxfordshire County Council,SODC P&D INCOME,02/12/2022,4790,"Publicity, Promotions and Advertisement",2201056019,625.94,PEOPLESCOUT LIMITED
http://statistics.data.gov.uk/id/local-authority/38,Oxfordshire County Council,NURSERY ED FUND,16/12/2022,5537,Payments to Other Establishments,3111317128,626.40,Steeple Aston Pre-School
http://statistics.data.gov.uk/id/local-authority/38,Oxfordshire County Council,LIBRARY COLLECTIONS,19/12/2022,4539,"Books, DVDs and CDs",3111318048,627.77,ASKEWS & HOLTS LIBRARY SERVICES LTD
http://statistics.data.gov.uk/id/local-authority/38,Oxfordshire County Council,LIBRARY COLLECTIONS,07/12/2022,4539,"Books, DVDs and CDs",3111307939,628.12,ASKEWS & HOLTS LIBRARY SERVICES LTD
http://statistics.data.gov.uk/id/local-authority/38,Oxfordshire County Council,Care Homes - Over 65 Memory & Cognition,12/12/2022,5687,,3111311630,628.57,Grace Care Service Ltd T/A Burford
http://statistics.data.gov.uk/id/local-authority/38,Oxfordshire County Council,Support at Home U65 Memory & Cognition,12/12/2022,5690,,3111310513,628.60,Autism at Kingwood Limited
http://statistics.data.gov.uk/id/local-authority/38,Oxfordshire County Council,LIBRARY COLLECTIONS,08/12/2022,4539,"Books, DVDs and CDs",2201058346,628.72,ULVERSCROFT LARGE PRINT BOOKS LTD
http://statistics.data.gov.uk/id/local-authority/38,Oxfordshire County Council,LIBRARY COLLECTIONS,08/12/2022,4539,"Books, DVDs and CDs",2201058347,628.72,ULVERSCROFT LARGE PRINT BOOKS LTD
http://statistics.data.gov.uk/id/local-authority/38,Oxfordshire County Council,LIBRARY COLLECTIONS,19/12/2022,4539,"Books, DVDs and CDs",2201062411,628.72,ULVERSCROFT LARGE PRINT BOOKS LTD
http://statistics.data.gov.uk/id/local-authority/38,Oxfordshire County Council,LIBRARY COLLECTIONS,19/12/2022,4539,"Books, DVDs and CDs",2201062416,628.72,ULVERSCROFT LARGE PRINT BOOKS LTD
http://statistics.data.gov.uk/id/local-authority/38,Oxfordshire County Council,Delegated Health Tasks  - Over 65,19/12/2022,5691,,3111318185,629.00,SEABROOK SERVICES LTD
http://statistics.data.gov.uk/id/local-authority/38,Oxfordshire County Council,Community Support Service - Abingdon,05/12/2022,2040,Agency Staff,2201056940,629.83,Completely Care Ltd
http://statistics.data.gov.uk/id/local-authority/38,Oxfordshire County Council,Community Support Service Oxford,08/12/2022,2040,Agency Staff,2201058167,629.83,Completely Care Ltd
http://statistics.data.gov.uk/id/local-authority/38,Oxfordshire County Council,Support at Home 65+ Physical Support,29/12/2022,5693,,3111323140,630.00,Angel Care Group
http://statistics.data.gov.uk/id/local-authority/38,Oxfordshire County Council,Household Support Fund 3,16/12/2022,7690,Additional Grant for Schools,3111317861,630.00,Burford Primary School (Academy)
http://statistics.data.gov.uk/id/local-authority/38,Oxfordshire County Council,Support at Home U65 Physical Support,29/12/2022,5697,,3111323160,630.00,Guideposts Trust
http://statistics.data.gov.uk/id/local-authority/38,Oxfordshire County Council,Support at Home U65 Physical Support,06/12/2022,5689,,3111306343,630.00,Home Helpers Care Ltd
http://statistics.data.gov.uk/id/local-authority/38,Oxfordshire County Council,Household Support Fund 3,16/12/2022,7690,Additional Grant for Schools,3111317913,630.00,Ladygrove Park Primary School
http://statistics.data.gov.uk/id/local-authority/38,Oxfordshire County Council,Support at Home U65 Learning Disability,13/12/2022,5227,Other Transport Arrangements,3111315065,630.00,Oxon Transport Services Ltd
http://statistics.data.gov.uk/id/local-authority/38,Oxfordshire County Council,Swindon Adoption Support Fund,19/12/2022,4861,Hired and Contracted Services,2201062848,630.00,The Family Place
http://statistics.data.gov.uk/id/local-authority/38,Oxfordshire County Council,Support at Home 65+ Physical Support,06/12/2022,5699,,3111306759,630.00,YOD Ltd
http://statistics.data.gov.uk/id/local-authority/38,Oxfordshire County Council,Support at Home U65 Learning Disability,20/12/2022,5899,Social Care - Direct Payments,3111319823,630.28,Purple Conversation Com In Co (DP)
http://statistics.data.gov.uk/id/local-authority/38,Oxfordshire County Council,Delegated Health Tasks  - Over 65,14/12/2022,5691,,3111316180,630.75,Bluebird Care
http://statistics.data.gov.uk/id/local-authority/38,Oxfordshire County Council,Support at Home U65 Physical Support,20/12/2022,5899,Social Care - Direct Payments,3111319575,631.76,Redacted Personal Data
http://statistics.data.gov.uk/id/local-authority/38,Oxfordshire County Council,Support at Home 65+ Physical Support,20/12/2022,5899,Social Care - Direct Payments,3111320130,633.24,Purple Conversation Com In Co (DP)
http://statistics.data.gov.uk/id/local-authority/38,Oxfordshire County Council,Support at Home U65 Other /Soc Isolation,12/12/2022,5690,,3111310481,633.73,ADVANCE HOUSING & SUPPORT LTD
http://statistics.data.gov.uk/id/local-authority/38,Oxfordshire County Council,Support at Home U65 Physical Support,06/12/2022,5689,,3111305826,634.36,Care Outlook Ltd
http://statistics.data.gov.uk/id/local-authority/38,Oxfordshire County Council,Support at Home 65+ Physical Support,06/12/2022,5689,,3111306486,634.56,My Carer Ltd
http://statistics.data.gov.uk/id/local-authority/38,Oxfordshire County Council,Support at Home U65 Physical Support,06/12/2022,5698,,3111306606,634.81,Oxford Private Care
http://statistics.data.gov.uk/id/local-authority/38,Oxfordshire County Council,LIBRARY COLLECTIONS,22/12/2022,4539,"Books, DVDs and CDs",2201063986,634.95,Books Asia Ltd
http://statistics.data.gov.uk/id/local-authority/38,Oxfordshire County Council,Community Support Service - Abingdon,02/12/2022,4641,Catering Provisions,2201055898,635.19,Savona Provisions
http://statistics.data.gov.uk/id/local-authority/38,Oxfordshire County Council,Support at Home U65 Physical Support,09/12/2022,5693,,3111309203,635.28,CaringPlus Healthcare Services Ltd
http://statistics.data.gov.uk/id/local-authority/38,Oxfordshire County Council,Support at Home U65 Physical Support,09/12/2022,5693,,3111309219,635.60,Chamomile Care Ltd
http://statistics.data.gov.uk/id/local-authority/38,Oxfordshire County Council,FOSTERING MAIN,06/12/2022,5532,B*Fostering - Loan Equipment,3111307322,636.00,Redacted Personal Data
http://statistics.data.gov.uk/id/local-authority/38,Oxfordshire County Council,Support at Home 65+ Memory & Cognition,20/12/2022,5899,Social Care - Direct Payments,3111319163,636.00,Redacted Personal Data
http://statistics.data.gov.uk/id/local-authority/38,Oxfordshire County Council,Voice of Customer,08/12/2022,4861,Hired and Contracted Services,2201057897,636.00,Trish Amesbury
http://statistics.data.gov.uk/id/local-authority/38,Oxfordshire County Council,FOSTERING MAIN,13/12/2022,5394,Other Expenses,3111315773,636.60,Redacted Personal Data
http://statistics.data.gov.uk/id/local-authority/38,Oxfordshire County Council,FOSTERING MAIN,06/12/2022,5549,B*Fostering Allowance - Regulation 38,3111307296,636.90,Redacted Personal Data
http://statistics.data.gov.uk/id/local-authority/38,Oxfordshire County Council,Support at Home U65 Physical Support,12/12/2022,5690,,3111310437,637.01,Style Acre
http://statistics.data.gov.uk/id/local-authority/38,Oxfordshire County Council,Support at Home U65 Learning Disability,12/12/2022,5690,,3111310450,637.01,Style Acre
http://statistics.data.gov.uk/id/local-authority/38,Oxfordshire County Council,Support at Home U65 Learning Disability,12/12/2022,5690,,3111310467,637.01,Style Acre
http://statistics.data.gov.uk/id/local-authority/38,Oxfordshire County Council,Support at Home U65 Learning Disability,12/12/2022,5690,,3111310368,637.01,Turnstyle
http://statistics.data.gov.uk/id/local-authority/38,Oxfordshire County Council,Support at Home 65+ Learning Disability,12/12/2022,5690,,3111310399,637.01,Turnstyle
http://statistics.data.gov.uk/id/local-authority/38,Oxfordshire County Council,Support at Home 65+ Physical Support,29/12/2022,5693,,3111323143,637.50,Care with Care Ltd
http://statistics.data.gov.uk/id/local-authority/38,Oxfordshire County Council,FAM GRP CONFERENCES,13/12/2022,4940,Other Services,2201060387,637.78,Andy Robinson
http://statistics.data.gov.uk/id/local-authority/38,Oxfordshire County Council,Support at Home 65+ Physical Support,14/12/2022,5693,,3111315954,638.00,Clark Care Services
http://statistics.data.gov.uk/id/local-authority/38,Oxfordshire County Council,Support at Home 65+ Physical Support,21/12/2022,5696,,3111320520,638.23,Orders of St John Care Trust
http://statistics.data.gov.uk/id/local-authority/38,Oxfordshire County Council,Support at Home 65+ Learning Disability,21/12/2022,5696,,3111320531,638.23,Orders of St John Care Trust
http://statistics.data.gov.uk/id/local-authority/38,Oxfordshire County Council,Delegated Health Tasks  - Over 65,08/12/2022,5691,,3111308756,638.50,Care With Dignity Partnerships
http://statistics.data.gov.uk/id/local-authority/38,Oxfordshire County Council,FLEET OPERATIONS,06/12/2022,4210,Vehicles and Plant - Repairs and Main,2201057195,638.96,Cherwell District Council
http://statistics.data.gov.uk/id/local-authority/38,Oxfordshire County Council,Support at Home 65+ Physical Support,21/12/2022,5696,,3111320482,639.07,Orders of St John Care Trust
http://statistics.data.gov.uk/id/local-authority/38,Oxfordshire County Council,Support at Home 65+ Physical Support,21/12/2022,5696,,3111320492,639.07,Orders of St John Care Trust
http://statistics.data.gov.uk/id/local-authority/38,Oxfordshire County Council,Support at Home 65+ Physical Support,21/12/2022,5696,,3111320417,639.18,Orders of St John Care Trust
http://statistics.data.gov.uk/id/local-authority/38,Oxfordshire County Council,LIBRARY COLLECTIONS,21/12/2022,4539,"Books, DVDs and CDs",2201063773,639.20,Bolinda UK Ltd
http://statistics.data.gov.uk/id/local-authority/38,Oxfordshire County Council,,20/12/2022,1531,Cash Allocation Control Account,3111323296,639.40,Redacted Personal Data
http://statistics.data.gov.uk/id/local-authority/38,Oxfordshire County Council,NURSERY ED FUND,16/12/2022,5537,Payments to Other Establishments,3111316916,639.45,Cholsey Pre-School (PFSU)
http://statistics.data.gov.uk/id/local-authority/38,Oxfordshire County Council,NURSERY ED FUND,16/12/2022,5537,Payments to Other Establishments,3111317272,639.45,The Kings School
http://statistics.data.gov.uk/id/local-authority/38,Oxfordshire County Council,Planned Maintenance,20/12/2022,4407,Equipment,2201063269,639.98,PTSG
http://statistics.data.gov.uk/id/local-authority/38,Oxfordshire County Council,Support at Home U65 Learning Disability,20/12/2022,5899,Social Care - Direct Payments,3111319142,640.00,Redacted Personal Data
http://statistics.data.gov.uk/id/local-authority/38,Oxfordshire County Council,Support at Home U65 Learning Disability,20/12/2022,5899,Social Care - Direct Payments,3111319717,640.00,Redacted Personal Data
http://statistics.data.gov.uk/id/local-authority/38,Oxfordshire County Council,Swindon Adoption Support Fund,21/12/2022,4861,Hired and Contracted Services,2201063787,640.00,Julie Lender-Swain
http://statistics.data.gov.uk/id/local-authority/38,Oxfordshire County Council,SEN TRANSPORT,12/12/2022,5227,Other Transport Arrangements,3111309593,640.00,Oxfordshire Travel Ltd
http://statistics.data.gov.uk/id/local-authority/38,Oxfordshire County Council,Family Solutions Plus Non-staff - Centra,21/12/2022,3942,Hire of Accommodation and Facilities,2201063774,640.00,Precious Child Contact Services
